Workbook

Sheet Sverigeranking
B1: Svenska Hästskokastarförbundets Sverigeranking | X1: Antal kastare som deltagit i samtliga tävlingar senaste 12 månaderna: | Y1: =COUNTIF(F5:F199,15) -> 7
B3: SLUTSTÄLLNING 2015/2016 | I3: =IF(SUM(I5:I400)>100,1,"") -> 1 | J3: 1 | K3: 1 | L3: 1 | M3: 1 | N3: 1 | O3: 1 | P3: 1 | Q3: 1 | R3: 1 | S3: 1 | T3: 1 | U3: 1 | V3: 1 | W3: 1 | X3: 1 | Y3: 1 | Z3: 1 | AA3: 1
A4: Plac. | B4: Kastare | C4: Klubb | D4: Rankingpoäng | F4: Antal tävlingar | G4: Snitt per serie | I4: Växjö Open | J4: Björkenäs Open | K4: Utomhus-SM Dag 1 | L4: Utomhus-SM Dag 2 | M4: Utomhus Smålandsmästaren | N4: Gotlands-DM | O4: Gotland Open | P4: Septemberskon | Q4: Dynapac Open | R4: Blekinge-DM Ute | S4: Åseda Open | T4: Höstskon Nybro | U4: Novemberkampen | V4: Inomhus-SM | W4: Gotlands-DM Inomhus | X4: Inomhus Smålandsmästaren | Y4: Blekinge DM inne | Z4: Värendspokalen | AA4: Tingsryds Open | AB4: Antal arrangerade tävlingar | AC4: Ej medräknat resultat | AD4: Ej medräknat resultat | BH4: 1 | BI4: 2 | BJ4: 3 | BK4: 4 | BL4: 5 | BM4: 6 | BN4: 7 | BO4: 8 | BP4: 9 | BQ4: 10 | BR4: 11 | BS4: 12 | BT4: 13 | BU4: 14 | BV4: 15 | BW4: ej medräknad | BY4: missade tävlingar
A5: =IF(BE5>1,AF5&" ("&AE5&")",AF5&" ("&AG5&")") -> 1 (1) | B5: Sandor Bodi | C5: Växjö | D5: =SUM(BH5:BT5) -> 4836 | F5: =COUNT(I5:AA5) -> 13 | G5: =SUM((CA5)/(F5*2)) -> 186 | I5: 350 | K5: 449 | L5: 369 | M5: 325 | P5: 354 | Q5: 267 | S5: 479 | T5: 439 | U5: 414 | V5: 336 | X5: 422 | Z5: 244 | AA5: 388 | AB5: =SUM($I$3:$AA$3) -> 19 | AC5: =BW5 -> - | AD5: =BX5 -> - | AE5: 1 | AF5: 1 | AG5: =IF(F5>1,ROW(1:1),"-") -> 1 | AH5: 1 | AK5: =COUNT($I$3,I5,H5) -> 2 | AL5: =COUNT($J$3,J5,I5) -> 2 | AM5: =COUNT($K$3,K5,J5) -> 2 | AN5: =COUNT($L$3,L5,K5) -> 3 | AO5: =COUNT($M$3,M5,L5) -> 3 | AP5: =COUNT($N$3,N5,M5) -> 2 | AQ5: =COUNT($O$3,O5,N5) -> 1 | AR5: =COUNT($P$3,P5,O5) -> 2 | AS5: =COUNT($Q$3,Q5,P5) -> 3 | AT5: =COUNT($R$3,R5,Q5) -> 2 | AU5: =COUNT($S$3,S5,R5) -> 2 | AV5: =COUNT($T$3,T5,S5) -> 3 | AW5: =COUNT($U$3,U5,T5) -> 3 | AX5: =COUNT($V$3,V5,U5) -> 3 | AY5: =COUNT($W$3,W5,V5) -> 2 | AZ5: =COUNT($X$3,X5,W5) -> 2 | BA5: =COUNT($Y$3,Y5,X5) -> 2 | BB5: =COUNT($Z$3,Z5,Y5) -> 2 | BC5: =COUNT($AA$3,AA5,Z5) -> 3 | BE5: =IF(H5="x",1,2) -> 2 | BH5: =IF($F5>0,LARGE($I5:$AA5,1),"") -> 479 | BI5: =IF($F5>1,LARGE($I5:$AA5,2),"") -> 449 | BJ5: =IF($F5>2,LARGE($I5:$AA5,3),"") -> 439 | BK5: =IF($F5>3,LARGE($I5:$AA5,4),"") -> 422 | BL5: =IF($F5>4,LARGE($I5:$AA5,5),"") -> 414 | BM5: =IF($F5>5,LARGE($I5:$AA5,6),"") -> 388 | BN5: =IF($F5>6,LARGE($I5:$AA5,7),"") -> 369 | BO5: =IF($F5>7,LARGE($I5:$AA5,8),"") -> 354 | BP5: =IF($F5>8,LARGE($I5:$AA5,9),"") -> 350 | BQ5: =IF($F5>9,LARGE($I5:$AA5,10),"") -> 336 | BR5: =IF($F5>10,LARGE($I5:$AA5,11),"") -> 325 | BS5: =IF($F5>11,LARGE($I5:$AA5,12),"") -> 267 | BT5: =IF($F5>12,LARGE($I5:$AA5,13),"") -> 244 | BU5: =IF($F5>13,LARGE($I5:$AA5,14),"") ->  | BV5: =IF($F5>14,LARGE($I5:$AA5,15),"") ->  | BW5: =IF($F5>13,LARGE($I5:$AA5,14),"-") -> - | BX5: =IF($F5>14,LARGE($I5:$AA5,15),"-") -> - | BY5: =SUM(AB5-F5)-3 -> 3 | CA5: =SUM(BH5:BV5) -> 4836 | EL5: 1 | EN5: =IF(BE5>=1,AF5,"") -> 1 | EO5: =IF(BE5>1,"("&AE5&")","("&AG5&")") -> (1)
A6: 2 (2) | B6: Tobias Gneupel | C6: Sibbamåla | D6: 4231 | F6: 13 | G6: 162.7307692 | K6: 307 | L6: 364 | O6: 209 | P6: 410 | Q6: 287 | R6: 297 | S6: 328 | T6: 231 | U6: 446 | V6: 335 | Y6: 361 | Z6: 357 | AA6: 299 | AB6: 19 | AC6: - | AD6: - | AE6: 2 | AF6: =IF(D6<D5,AH6,AF5) -> 2 | AG6: 2 | AH6: 2 | AK6: =COUNT($I$3,I6,H6) -> 1 | AL6: =COUNT($J$3,J6,I6) -> 1 | AM6: =COUNT($K$3,K6,J6) -> 2 | AN6: =COUNT($L$3,L6,K6) -> 3 | AO6: =COUNT($M$3,M6,L6) -> 2 | AP6: =COUNT($N$3,N6,M6) -> 1 | AQ6: =COUNT($O$3,O6,N6) -> 2 | AR6: =COUNT($P$3,P6,O6) -> 3 | AS6: =COUNT($Q$3,Q6,P6) -> 3 | AT6: =COUNT($R$3,R6,Q6) -> 3 | AU6: =COUNT($S$3,S6,R6) -> 3 | AV6: =COUNT($T$3,T6,S6) -> 3 | AW6: =COUNT($U$3,U6,T6) -> 3 | AX6: =COUNT($V$3,V6,U6) -> 3 | AY6: =COUNT($W$3,W6,V6) -> 2 | AZ6: =COUNT($X$3,X6,W6) -> 1 | BA6: =COUNT($Y$3,Y6,X6) -> 2 | BB6: =COUNT($Z$3,Z6,Y6) -> 3 | BC6: =COUNT($AA$3,AA6,Z6) -> 3 | BE6: 2 | BH6: =IF($F6>0,LARGE($I6:$AA6,1),"") -> 446 | BI6: =IF($F6>1,LARGE($I6:$AA6,2),"") -> 410 | BJ6: =IF($F6>2,LARGE($I6:$AA6,3),"") -> 364 | BK6: =IF($F6>3,LARGE($I6:$AA6,4),"") -> 361 | BL6: =IF($F6>4,LARGE($I6:$AA6,5),"") -> 357 | BM6: =IF($F6>5,LARGE($I6:$AA6,6),"") -> 335 | BN6: =IF($F6>6,LARGE($I6:$AA6,7),"") -> 328 | BO6: =IF($F6>7,LARGE($I6:$AA6,8),"") -> 307 | BP6: =IF($F6>8,LARGE($I6:$AA6,9),"") -> 299 | BQ6: =IF($F6>9,LARGE($I6:$AA6,10),"") -> 297 | BR6: =IF($F6>10,LARGE($I6:$AA6,11),"") -> 287 | BS6: =IF($F6>11,LARGE($I6:$AA6,12),"") -> 231 | BT6: =IF($F6>12,LARGE($I6:$AA6,13),"") -> 209 | BU6: =IF($F6>13,LARGE($I6:$AA6,14),"") ->  | BV6: =IF($F6>14,LARGE($I6:$AA6,15),"") ->  | BW6: =IF($F6>13,LARGE($I6:$AA6,14),"-") -> - | BX6: =IF($F6>14,LARGE($I6:$AA6,15),"-") -> - | BY6: =SUM(AB6-F6)-3 -> 3 | CA6: =SUM(BH6:BV6) -> 4231 | EL6: 2 | EN6: =IF(BE6>=1,AF6,"") -> 2 | EO6: =IF(BE6>1,"("&AE6&")","("&AG6&")") -> (2)
A7: 3 (3) | B7: Ingvar Eriksson | C7: Carlskrona | D7: 3828 | F7: 13 | G7: 147.2307692 | I7: 305 | J7: 341 | L7: 215 | O7: 229 | P7: 348 | Q7: 272 | R7: 258 | T7: 321 | U7: 266 | V7: 291 | Y7: 368 | Z7: 273 | AA7: 341 | AB7: 19 | AC7: - | AD7: - | AE7: 3 | AF7: =IF(D7<D6,AH7,AF6) -> 3 | AG7: 3 | AH7: 3 | AK7: 2 | AL7: 3 | AM7: 2 | AN7: 2 | AO7: 2 | AP7: 1 | AQ7: 2 | AR7: 3 | AS7: 3 | AT7: 3 | AU7: 2 | AV7: 2 | AW7: 3 | AX7: 3 | AY7: 2 | AZ7: 1 | BA7: 2 | BB7: 3 | BC7: 3 | BE7: 2 | BH7: =IF($F7>0,LARGE($I7:$AA7,1),"") -> 368 | BI7: =IF($F7>1,LARGE($I7:$AA7,2),"") -> 348 | BJ7: =IF($F7>2,LARGE($I7:$AA7,3),"") -> 341 | BK7: =IF($F7>3,LARGE($I7:$AA7,4),"") -> 341 | BL7: =IF($F7>4,LARGE($I7:$AA7,5),"") -> 321 | BM7: =IF($F7>5,LARGE($I7:$AA7,6),"") -> 305 | BN7: =IF($F7>6,LARGE($I7:$AA7,7),"") -> 291 | BO7: =IF($F7>7,LARGE($I7:$AA7,8),"") -> 273 | BP7: =IF($F7>8,LARGE($I7:$AA7,9),"") -> 272 | BQ7: =IF($F7>9,LARGE($I7:$AA7,10),"") -> 266 | BR7: =IF($F7>10,LARGE($I7:$AA7,11),"") -> 258 | BS7: =IF($F7>11,LARGE($I7:$AA7,12),"") -> 229 | BT7: =IF($F7>12,LARGE($I7:$AA7,13),"") -> 215 | BW7: - | BX7: - | BY7: 3 | CA7: 3828 | EL7: 3 | EN7: =IF(BE7>=1,AF7,"") -> 3 | EO7: =IF(BE7>1,"("&AE7&")","("&AG7&")") -> (3)
A8: 4 (4) | B8: Olle Ottosson | C8: Dynapac | D8: 3736 | F8: 13 | G8: 143.6923077 | I8: 314 | J8: 331 | K8: 294 | P8: 236 | Q8: 310 | R8: 315 | S8: 303 | T8: 286 | U8: 329 | V8: 244 | Y8: 298 | Z8: 180 | AA8: 296 | AB8: 19 | AC8: - | AD8: - | AE8: 4 | AF8: 4 | AG8: =IF(F8>1,ROW(4:4),"-") -> 4 | AH8: 4 | AK8: =COUNT($I$3,I8,H8) -> 2 | AL8: =COUNT($J$3,J8,I8) -> 3 | AM8: =COUNT($K$3,K8,J8) -> 3 | AN8: =COUNT($L$3,L8,K8) -> 2 | AO8: =COUNT($M$3,M8,L8) -> 1 | AP8: =COUNT($N$3,N8,M8) -> 1 | AQ8: =COUNT($O$3,O8,N8) -> 1 | AR8: =COUNT($P$3,P8,O8) -> 2 | AS8: =COUNT($Q$3,Q8,P8) -> 3 | AT8: =COUNT($R$3,R8,Q8) -> 3 | AU8: =COUNT($S$3,S8,R8) -> 3 | AV8: =COUNT($T$3,T8,S8) -> 3 | AW8: =COUNT($U$3,U8,T8) -> 3 | AX8: =COUNT($V$3,V8,U8) -> 3 | AY8: =COUNT($W$3,W8,V8) -> 2 | AZ8: =COUNT($X$3,X8,W8) -> 1 | BA8: =COUNT($Y$3,Y8,X8) -> 2 | BB8: =COUNT($Z$3,Z8,Y8) -> 3 | BC8: =COUNT($AA$3,AA8,Z8) -> 3 | BE8: 2 | BH8: =IF($F8>0,LARGE($I8:$AA8,1),"") -> 331 | BI8: =IF($F8>1,LARGE($I8:$AA8,2),"") -> 329 | BJ8: =IF($F8>2,LARGE($I8:$AA8,3),"") -> 315 | BK8: =IF($F8>3,LARGE($I8:$AA8,4),"") -> 314 | BL8: =IF($F8>4,LARGE($I8:$AA8,5),"") -> 310 | BM8: =IF($F8>5,LARGE($I8:$AA8,6),"") -> 303 | BN8: =IF($F8>6,LARGE($I8:$AA8,7),"") -> 298 | BO8: =IF($F8>7,LARGE($I8:$AA8,8),"") -> 296 | BP8: =IF($F8>8,LARGE($I8:$AA8,9),"") -> 294 | BQ8: =IF($F8>9,LARGE($I8:$AA8,10),"") -> 286 | BR8: =IF($F8>10,LARGE($I8:$AA8,11),"") -> 244 | BS8: =IF($F8>11,LARGE($I8:$AA8,12),"") -> 236 | BT8: =IF($F8>12,LARGE($I8:$AA8,13),"") -> 180 | BU8: =IF($F8>13,LARGE($I8:$AA8,14),"") ->  | BV8: =IF($F8>14,LARGE($I8:$AA8,15),"") ->  | BW8: =IF($F8>13,LARGE($I8:$AA8,14),"-") -> - | BX8: =IF($F8>14,LARGE($I8:$AA8,15),"-") -> - | BY8: =SUM(AB8-F8)-3 -> 3 | CA8: =SUM(BH8:BV8) -> 3736 | EL8: 4 | EN8: =IF(BE8>=1,AF8,"") -> 4 | EO8: =IF(BE8>1,"("&AE8&")","("&AG8&")") -> (4)
A9: 5 (5) | B9: Gert Karlsson | C9: Korpen Åseda | D9: 3598 | F9: 15 | G9: 133.2333333 | I9: 362 | J9: 237 | K9: 248 | L9: 268 | M9: 229 | O9: 213 | P9: 275 | Q9: 186 | S9: 285 | T9: 288 | U9: 248 | V9: 246 | X9: 353 | Z9: 241 | AA9: 318 | AB9: 19 | AC9: 213 | AD9: 186 | AE9: 5 | AF9: 5 | AG9: =IF(F9>1,ROW(5:5),"-") -> 5 | AH9: 5 | AK9: =COUNT($I$3,I9,H9) -> 2 | AL9: =COUNT($J$3,J9,I9) -> 3 | AM9: =COUNT($K$3,K9,J9) -> 3 | AN9: =COUNT($L$3,L9,K9) -> 3 | AO9: =COUNT($M$3,M9,L9) -> 3 | AP9: =COUNT($N$3,N9,M9) -> 2 | AQ9: =COUNT($O$3,O9,N9) -> 2 | AR9: =COUNT($P$3,P9,O9) -> 3 | AS9: =COUNT($Q$3,Q9,P9) -> 3 | AT9: =COUNT($R$3,R9,Q9) -> 2 | AU9: =COUNT($S$3,S9,R9) -> 2 | AV9: =COUNT($T$3,T9,S9) -> 3 | AW9: =COUNT($U$3,U9,T9) -> 3 | AX9: =COUNT($V$3,V9,U9) -> 3 | AY9: =COUNT($W$3,W9,V9) -> 2 | AZ9: =COUNT($X$3,X9,W9) -> 2 | BA9: =COUNT($Y$3,Y9,X9) -> 2 | BB9: =COUNT($Z$3,Z9,Y9) -> 2 | BC9: =COUNT($AA$3,AA9,Z9) -> 3 | BE9: 2 | BH9: =IF($F9>0,LARGE($I9:$AA9,1),"") -> 362 | BI9: =IF($F9>1,LARGE($I9:$AA9,2),"") -> 353 | BJ9: =IF($F9>2,LARGE($I9:$AA9,3),"") -> 318 | BK9: =IF($F9>3,LARGE($I9:$AA9,4),"") -> 288 | BL9: =IF($F9>4,LARGE($I9:$AA9,5),"") -> 285 | BM9: =IF($F9>5,LARGE($I9:$AA9,6),"") -> 275 | BN9: =IF($F9>6,LARGE($I9:$AA9,7),"") -> 268 | BO9: =IF($F9>7,LARGE($I9:$AA9,8),"") -> 248 | BP9: =IF($F9>8,LARGE($I9:$AA9,9),"") -> 248 | BQ9: =IF($F9>9,LARGE($I9:$AA9,10),"") -> 246 | BR9: =IF($F9>10,LARGE($I9:$AA9,11),"") -> 241 | BS9: =IF($F9>11,LARGE($I9:$AA9,12),"") -> 237 | BT9: =IF($F9>12,LARGE($I9:$AA9,13),"") -> 229 | BU9: =IF($F9>13,LARGE($I9:$AA9,14),"") -> 213 | BV9: =IF($F9>14,LARGE($I9:$AA9,15),"") -> 186 | BW9: =IF($F9>13,LARGE($I9:$AA9,14),"-") -> 213 | BX9: =IF($F9>14,LARGE($I9:$AA9,15),"-") -> 186 | BY9: =SUM(AB9-F9)-3 -> 1 | CA9: =SUM(BH9:BV9) -> 3997 | EL9: 5 | EN9: =IF(BE9>=1,AF9,"") -> 5 | EO9: =IF(BE9>1,"("&AE9&")","("&AG9&")") -> (5)
A10: 6 (7) | B10: Matz Karlsson | C10: Korpen Åseda | D10: 3548 | F10: 15 | G10: 130.7333333 | I10: 281 | J10: 306 | K10: 280 | L10: 209 | M10: 165 | O10: 213 | P10: 235 | Q10: 214 | S10: 324 | T10: 289 | U10: 311 | V10: 282 | X10: 237 | Z10: 301 | AA10: 275 | AB10: 19 | AC10: 209 | AD10: 165 | AE10: 7 | AF10: 6 | AG10: =IF(F10>1,ROW(6:6),"-") -> 6 | AH10: 6 | AK10: =COUNT($I$3,I10,H10) -> 2 | AL10: =COUNT($J$3,J10,I10) -> 3 | AM10: =COUNT($K$3,K10,J10) -> 3 | AN10: =COUNT($L$3,L10,K10) -> 3 | AO10: =COUNT($M$3,M10,L10) -> 3 | AP10: =COUNT($N$3,N10,M10) -> 2 | AQ10: =COUNT($O$3,O10,N10) -> 2 | AR10: =COUNT($P$3,P10,O10) -> 3 | AS10: =COUNT($Q$3,Q10,P10) -> 3 | AT10: =COUNT($R$3,R10,Q10) -> 2 | AU10: =COUNT($S$3,S10,R10) -> 2 | AV10: =COUNT($T$3,T10,S10) -> 3 | AW10: =COUNT($U$3,U10,T10) -> 3 | AX10: =COUNT($V$3,V10,U10) -> 3 | AY10: =COUNT($W$3,W10,V10) -> 2 | AZ10: =COUNT($X$3,X10,W10) -> 2 | BA10: =COUNT($Y$3,Y10,X10) -> 2 | BB10: =COUNT($Z$3,Z10,Y10) -> 2 | BC10: =COUNT($AA$3,AA10,Z10) -> 3 | BE10: 2 | BH10: =IF($F10>0,LARGE($I10:$AA10,1),"") -> 324 | BI10: =IF($F10>1,LARGE($I10:$AA10,2),"") -> 311 | BJ10: =IF($F10>2,LARGE($I10:$AA10,3),"") -> 306 | BK10: =IF($F10>3,LARGE($I10:$AA10,4),"") -> 301 | BL10: =IF($F10>4,LARGE($I10:$AA10,5),"") -> 289 | BM10: =IF($F10>5,LARGE($I10:$AA10,6),"") -> 282 | BN10: =IF($F10>6,LARGE($I10:$AA10,7),"") -> 281 | BO10: =IF($F10>7,LARGE($I10:$AA10,8),"") -> 280 | BP10: =IF($F10>8,LARGE($I10:$AA10,9),"") -> 275 | BQ10: =IF($F10>9,LARGE($I10:$AA10,10),"") -> 237 | BR10: =IF($F10>10,LARGE($I10:$AA10,11),"") -> 235 | BS10: =IF($F10>11,LARGE($I10:$AA10,12),"") -> 214 | BT10: =IF($F10>12,LARGE($I10:$AA10,13),"") -> 213 | BU10: =IF($F10>13,LARGE($I10:$AA10,14),"") -> 209 | BV10: =IF($F10>14,LARGE($I10:$AA10,15),"") -> 165 | BW10: =IF($F10>13,LARGE($I10:$AA10,14),"-") -> 209 | BX10: =IF($F10>14,LARGE($I10:$AA10,15),"-") -> 165 | BY10: =SUM(AB10-F10)-3 -> 1 | CA10: =SUM(BH10:BV10) -> 3922 | EL10: 6 | EN10: =IF(BE10>=1,AF10,"") -> 6 | EO10: =IF(BE10>1,"("&AE10&")","("&AG10&")") -> (7)
A11: 7 (5) | B11: Tomas Lindahl | C11: Korpen Åseda | D11: 3507 | F11: 13 | G11: 134.8846154 | J11: 353 | K11: 252 | L11: 350 | M11: 166 | O11: 307 | P11: 347 | S11: 334 | T11: 220 | U11: 244 | V11: 261 | X11: 233 | Z11: 238 | AA11: 202 | AB11: 19 | AC11: - | AD11: - | AE11: 5 | AF11: 7 | AG11: 7 | AH11: 7 | AK11: 1 | AL11: 2 | AM11: 3 | AN11: 3 | AO11: 3 | AP11: 2 | AQ11: 2 | AR11: 3 | AS11: 2 | AT11: 1 | AU11: 2 | AV11: 3 | AW11: 3 | AX11: 3 | AY11: 2 | AZ11: 2 | BA11: 2 | BB11: 2 | BC11: 3 | BE11: 2 | BH11: 353 | BI11: 350 | BJ11: 347 | BK11: 334 | BL11: 307 | BM11: 261 | BN11: 252 | BO11: 244 | BP11: 238 | BQ11: 233 | BR11: 220 | BS11: 202 | BT11: 166 | BW11: - | BX11: - | BY11: 3 | CA11: 3507 | EL11: 7 | EN11: 7 | EO11: (5)
A12: 8 (8) | B12: Peter Olsson | C12: Dynapac | D12: 3356 | F12: 15 | G12: 123.1 | I12: 271 | J12: 246 | K12: 276 | L12: 237 | O12: 260 | P12: 270 | Q12: 182 | R12: 155 | S12: 216 | T12: 240 | U12: 275 | V12: 286 | Y12: 293 | Z12: 299 | AA12: 187 | AB12: 19 | AC12: 182 | AD12: 155 | AE12: 8 | AF12: 8 | AG12: 8 | AH12: 8 | AK12: 2 | AL12: 3 | AM12: 3 | AN12: 3 | AO12: 2 | AP12: 1 | AQ12: 2 | AR12: 3 | AS12: 3 | AT12: 3 | AU12: 3 | AV12: 3 | AW12: 3 | AX12: 3 | AY12: 2 | AZ12: 1 | BA12: 2 | BB12: 3 | BC12: 3 | BE12: 2 | BH12: 299 | BI12: 293 | BJ12: 286 | BK12: 276 | BL12: 275 | BM12: 271 | BN12: 270 | BO12: 260 | BP12: 246 | BQ12: 240 | BR12: 237 | BS12: 216 | BT12: 187 | BU12: 182 | BV12: 155 | BW12: 182 | BX12: 155 | BY12: 1 | CA12: 3693 | EL12: 8 | EN12: 8 | EO12: (8)
A13: 9 (9) | B13: Maj-Britt Jarl | C13: Växjö | D13: 3238 | F13: 14 | G13: 121 | I13: 291 | J13: 321 | K13: 150 | L13: 245 | M13: 239 | P13: 216 | Q13: 152 | S13: 267 | T13: 237 | U13: 180 | V13: 204 | X13: 279 | Z13: 289 | AA13: 318 | AB13: 19 | AC13: 150 | AD13: - | AE13: 9 | AF13: 9 | AG13: 9 | AH13: 9 | AK13: 2 | AL13: 3 | AM13: 3 | AN13: 3 | AO13: 3 | AP13: 2 | AQ13: 1 | AR13: 2 | AS13: 3 | AT13: 2 | AU13: 2 | AV13: 3 | AW13: 3 | AX13: 3 | AY13: 2 | AZ13: 2 | BA13: 2 | BB13: 2 | BC13: 3 | BE13: 2 | BH13: 321 | BI13: 318 | BJ13: 291 | BK13: 289 | BL13: 279 | BM13: 267 | BN13: 245 | BO13: 239 | BP13: 237 | BQ13: 216 | BR13: 204 | BS13: 180 | BT13: 152 | BU13: 150 | BW13: 150 | BX13: - | BY13: 2 | CA13: 3388 | EL13: 9 | EN13: 9 | EO13: (9)
A14: =IF(BE14>1,AF14&" ("&AE14&")",AF14&" ("&AG14&")") -> 10 (9) | B14: Leo Andersson | C14: Carlskrona | D14: 3214 | F14: 11 | G14: 146.0909091 | I14: 313 | J14: 319 | K14: 319 | L14: 361 | Q14: 248 | T14: 244 | U14: 201 | V14: 270 | Y14: 339 | Z14: 350 | AA14: 250 | AB14: 19 | AC14: - | AD14: - | AE14: 9 | AF14: 10 | AG14: 10 | AH14: 10 | AK14: 2 | AL14: 3 | AM14: 3 | AN14: 3 | AO14: 2 | AP14: 1 | AQ14: 1 | AR14: 1 | AS14: 2 | AT14: 2 | AU14: 1 | AV14: 2 | AW14: 3 | AX14: 3 | AY14: 2 | AZ14: 1 | BA14: 2 | BB14: 3 | BC14: 3 | BE14: 2 | BH14: 361 | BI14: 350 | BJ14: 339 | BK14: 319 | BL14: 319 | BM14: 313 | BN14: 270 | BO14: 250 | BP14: 248 | BQ14: 244 | BR14: 201 | BW14: - | BX14: - | BY14: 5 | CA14: 3214 | EL14: 10 | EN14: 10 | EO14: (9)
A15: 11 (11) | B15: Mattias Gneupel | C15: Sibbamåla | D15: 3115 | F15: 15 | G15: 114.1666667 | I15: 251 | J15: 255 | K15: 232 | L15: 193 | O15: 205 | P15: 259 | Q15: 193 | R15: 182 | S15: 229 | T15: 214 | U15: 173 | V15: 216 | Y15: 405 | Z15: 281 | AA15: 137 | AB15: 19 | AC15: 173 | AD15: 137 | AE15: 11 | AF15: 11 | AG15: 11 | AH15: 11 | AK15: 2 | AL15: 3 | AM15: 3 | AN15: 3 | AO15: 2 | AP15: 1 | AQ15: 2 | AR15: 3 | AS15: 3 | AT15: 3 | AU15: 3 | AV15: 3 | AW15: 3 | AX15: 3 | AY15: 2 | AZ15: 1 | BA15: 2 | BB15: 3 | BC15: 3 | BE15: 2 | BH15: 405 | BI15: 281 | BJ15: 259 | BK15: 255 | BL15: 251 | BM15: 232 | BN15: 229 | BO15: 216 | BP15: 214 | BQ15: 205 | BR15: 193 | BS15: 193 | BT15: 182 | BU15: 173 | BV15: 137 | BW15: 173 | BX15: 137 | BY15: 1 | CA15: 3425 | EL15: 11 | EN15: 11 | EO15: (11)
A16: 12 (12) | B16: Lasse Brincner | C16: Värends Hsk | D16: 3106 | F16: 15 | G16: 115.8 | I16: 271 | J16: 275 | K16: 223 | L16: 201 | M16: 236 | O16: 234 | P16: 266 | Q16: 200 | S16: 203 | T16: 193 | U16: 229 | V16: 334 | X16: 187 | Z16: 241 | AA16: 181 | AB16: 19 | AC16: 187 | AD16: 181 | AE16: 12 | AF16: 12 | AG16: 12 | AH16: 12 | AK16: 2 | AL16: 3 | AM16: 3 | AN16: 3 | AO16: 3 | AP16: 2 | AQ16: 2 | AR16: 3 | AS16: 3 | AT16: 2 | AU16: 2 | AV16: 3 | AW16: 3 | AX16: 3 | AY16: 2 | AZ16: 2 | BA16: 2 | BB16: 2 | BC16: 3 | BE16: 2 | BH16: 334 | BI16: 275 | BJ16: 271 | BK16: 266 | BL16: 241 | BM16: 236 | BN16: 234 | BO16: 229 | BP16: 223 | BQ16: 203 | BR16: 201 | BS16: 200 | BT16: 193 | BU16: 187 | BV16: 181 | BW16: 187 | BX16: 181 | BY16: 1 | CA16: 3474 | EL16: 12 | EN16: 12 | EO16: (12)
A17: 13 (13) | B17: Anders Johansson | C17: Dynapac | D17: 3039 | F17: 15 | G17: 109.5 | I17: 268 | J17: 281 | K17: 179 | L17: 223 | O17: 212 | P17: 168 | Q17: 78 | R17: 184 | S17: 212 | T17: 218 | U17: 299 | V17: 217 | Y17: 303 | Z17: 209 | AA17: 234 | AB17: 19 | AC17: 168 | AD17: 78 | AE17: 13 | AF17: 13 | AG17: 13 | AH17: 13 | AK17: 2 | AL17: 3 | AM17: 3 | AN17: 3 | AO17: 2 | AP17: 1 | AQ17: 2 | AR17: 3 | AS17: 3 | AT17: 3 | AU17: 3 | AV17: 3 | AW17: 3 | AX17: 3 | AY17: 2 | AZ17: 1 | BA17: 2 | BB17: 3 | BC17: 3 | BE17: 2 | BH17: 303 | BI17: 299 | BJ17: 281 | BK17: 268 | BL17: 234 | BM17: 223 | BN17: 218 | BO17: 217 | BP17: 212 | BQ17: 212 | BR17: 209 | BS17: 184 | BT17: 179 | BU17: 168 | BV17: 78 | BW17: 168 | BX17: 78 | BY17: 1 | CA17: 3285 | EL17: 13 | EN17: 13 | EO17: (13)
A18: 14 (19) | B18: Bo Petersson | C18: Korpen Nybro | D18: 3003 | F18: 13 | G18: 115.5 | I18: 284 | J18: 303 | K18: 159 | L18: 196 | M18: 208 | Q18: 195 | S18: 291 | T18: 299 | U18: 171 | V18: 201 | X18: 196 | Z18: 246 | AA18: 254 | AB18: 19 | AC18: - | AD18: - | AE18: 19 | AF18: 14 | AG18: 14 | AH18: 14 | AK18: 2 | AL18: 3 | AM18: 3 | AN18: 3 | AO18: 3 | AP18: 2 | AQ18: 1 | AR18: 1 | AS18: 2 | AT18: 2 | AU18: 2 | AV18: 3 | AW18: 3 | AX18: 3 | AY18: 2 | AZ18: 2 | BA18: 2 | BB18: 2 | BC18: 3 | BE18: 2 | BH18: 303 | BI18: 299 | BJ18: 291 | BK18: 284 | BL18: 254 | BM18: 246 | BN18: 208 | BO18: 201 | BP18: 196 | BQ18: 196 | BR18: 195 | BS18: 171 | BT18: 159 | BW18: - | BX18: - | BY18: 3 | CA18: 3003 | EL18: 14 | EN18: 14 | EO18: (19)
A19: 15 (14) | B19: Hans Lundqvist | C19: Alvesta | D19: 2967 | F19: 14 | G19: 110.6428571 | I19: 247 | J19: 307 | L19: 209 | M19: 131 | O19: 189 | P19: 201 | Q19: 134 | S19: 305 | T19: 208 | U19: 247 | V19: 194 | X19: 286 | Z19: 252 | AA19: 188 | AB19: 19 | AC19: 131 | AD19: - | AE19: 14 | AF19: 15 | AG19: 15 | AH19: 15 | AK19: 2 | AL19: 3 | AM19: 2 | AN19: 2 | AO19: 3 | AP19: 2 | AQ19: 2 | AR19: 3 | AS19: 3 | AT19: 2 | AU19: 2 | AV19: 3 | AW19: 3 | AX19: 3 | AY19: 2 | AZ19: 2 | BA19: 2 | BB19: 2 | BC19: 3 | BE19: 2 | BH19: 307 | BI19: 305 | BJ19: 286 | BK19: 252 | BL19: 247 | BM19: 247 | BN19: 209 | BO19: 208 | BP19: 201 | BQ19: 194 | BR19: 189 | BS19: 188 | BT19: 134 | BU19: 131 | BW19: 131 | BX19: - | BY19: 2 | CA19: 3098 | EL19: 15 | EN19: 15 | EO19: (14)
A20: 16 (15) | B20: Kent Sundahl | C20: Carlskrona | D20: 2940 | F20: 10 | G20: 147 | K20: 358 | L20: 292 | P20: 282 | Q20: 153 | T20: 292 | U20: 307 | V20: 268 | Y20: 406 | Z20: 268 | AA20: 314 | AB20: 19 | AC20: - | AD20: - | AE20: 15 | AF20: 16 | AG20: 16 | AH20: 16 | AK20: 1 | AL20: 1 | AM20: 2 | AN20: 3 | AO20: 2 | AP20: 1 | AQ20: 1 | AR20: 2 | AS20: 3 | AT20: 2 | AU20: 1 | AV20: 2 | AW20: 3 | AX20: 3 | AY20: 2 | AZ20: 1 | BA20: 2 | BB20: 3 | BC20: 3 | BE20: 2 | BH20: 406 | BI20: 358 | BJ20: 314 | BK20: 307 | BL20: 292 | BM20: 292 | BN20: 282 | BO20: 268 | BP20: 268 | BQ20: 153 | BW20: - | BX20: - | BY20: 6 | CA20: 2940 | EL20: 16 | EN20: 16 | EO20: (15)
A21: 17 (18) | B21: Christian Balsiger | C21: Värends Hsk | D21: 2876 | F21: 12 | G21: 119.8333333 | I21: 273 | J21: 298 | M21: 197 | P21: 342 | Q21: 211 | S21: 265 | T21: 178 | U21: 297 | V21: 196 | X21: 225 | Z21: 201 | AA21: 193 | AB21: 19 | AC21: - | AD21: - | AE21: 18 | AF21: 17 | AG21: 17 | AH21: 17 | AK21: 2 | AL21: 3 | AM21: 2 | AN21: 1 | AO21: 2 | AP21: 2 | AQ21: 1 | AR21: 2 | AS21: 3 | AT21: 2 | AU21: 2 | AV21: 3 | AW21: 3 | AX21: 3 | AY21: 2 | AZ21: 2 | BA21: 2 | BB21: 2 | BC21: 3 | BE21: 2 | BH21: 342 | BI21: 298 | BJ21: 297 | BK21: 273 | BL21: 265 | BM21: 225 | BN21: 211 | BO21: 201 | BP21: 197 | BQ21: 196 | BR21: 193 | BS21: 178 | BW21: - | BX21: - | BY21: 4 | CA21: 2876 | EL21: 17 | EN21: 17 | EO21: (18)
A22: 18 (15) | B22: Christer Blomgren | C22: Lanternan | D22: 2831 | F22: 13 | G22: 108.8846154 | I22: 261 | J22: 317 | K22: 136 | L22: 224 | P22: 251 | Q22: 133 | R22: 226 | S22: 231 | T22: 217 | U22: 126 | V22: 121 | Y22: 287 | Z22: 301 | AB22: 19 | AC22: - | AD22: - | AE22: 15 | AF22: 18 | AG22: 18 | AH22: 18 | AK22: 2 | AL22: 3 | AM22: 3 | AN22: 3 | AO22: 2 | AP22: 1 | AQ22: 1 | AR22: 2 | AS22: 3 | AT22: 3 | AU22: 3 | AV22: 3 | AW22: 3 | AX22: 3 | AY22: 2 | AZ22: 1 | BA22: 2 | BB22: 3 | BC22: 2 | BE22: 2 | BH22: 317 | BI22: 301 | BJ22: 287 | BK22: 261 | BL22: 251 | BM22: 231 | BN22: 226 | BO22: 224 | BP22: 217 | BQ22: 136 | BR22: 133 | BS22: 126 | BT22: 121 | BW22: - | BX22: - | BY22: 3 | CA22: 2831 | EL22: 18 | EN22: 18 | EO22: (15)
A23: 19 (19) | B23: Dan Hallstan | C23: Växjö | D23: 2735 | F23: 15 | G23: 101.3333333 | I23: 248 | J23: 246 | K23: 211 | L23: 179 | M23: 159 | O23: 212 | P23: 287 | Q23: 146 | S23: 176 | T23: 176 | U23: 184 | V23: 182 | X23: 227 | Z23: 221 | AA23: 186 | AB23: 19 | AC23: 159 | AD23: 146 | AE23: 19 | AF23: 19 | AG23: 19 | AH23: 19 | AK23: 2 | AL23: 3 | AM23: 3 | AN23: 3 | AO23: 3 | AP23: 2 | AQ23: 2 | AR23: 3 | AS23: 3 | AT23: 2 | AU23: 2 | AV23: 3 | AW23: 3 | AX23: 3 | AY23: 2 | AZ23: 2 | BA23: 2 | BB23: 2 | BC23: 3 | BE23: 2 | BH23: 287 | BI23: 248 | BJ23: 246 | BK23: 227 | BL23: 221 | BM23: 212 | BN23: 211 | BO23: 186 | BP23: 184 | BQ23: 182 | BR23: 179 | BS23: 176 | BT23: 176 | BU23: 159 | BV23: 146 | BW23: 159 | BX23: 146 | BY23: 1 | CA23: 3040 | EL23: 19 | EN23: 19 | EO23: (19)
A24: 20 (21) | B24: Gebriela Kostantinos | C24: Korpen Åseda | D24: 2711 | F24: 12 | G24: 112.9583333 | I24: 220 | J24: 283 | K24: 175 | L24: 232 | P24: 258 | S24: 276 | T24: 161 | U24: 286 | V24: 162 | X24: 202 | Z24: 269 | AA24: 187 | AB24: 19 | AC24: - | AD24: - | AE24: 21 | AF24: 20 | AG24: 20 | AH24: 20 | AK24: 2 | AL24: 3 | AM24: 3 | AN24: 3 | AO24: 2 | AP24: 1 | AQ24: 1 | AR24: 2 | AS24: 2 | AT24: 1 | AU24: 2 | AV24: 3 | AW24: 3 | AX24: 3 | AY24: 2 | AZ24: 2 | BA24: 2 | BB24: 2 | BC24: 3 | BE24: 2 | BH24: 286 | BI24: 283 | BJ24: 276 | BK24: 269 | BL24: 258 | BM24: 232 | BN24: 220 | BO24: 202 | BP24: 187 | BQ24: 175 | BR24: 162 | BS24: 161 | BW24: - | BX24: - | BY24: 4 | CA24: 2711 | EL24: 20 | EN24: 20 | EO24: (21)
A25: 21 (15) | B25: Leif Ahlex | C25: Lessebo | D25: 2684 | F25: 8 | G25: 167.75 | I25: 377 | K25: 268 | L25: 366 | M25: 226 | P25: 332 | U25: 337 | X25: 356 | Z25: 422 | AB25: 19 | AC25: - | AD25: - | AE25: 15 | AF25: 21 | AG25: 21 | AH25: 21 | AK25: 2 | AL25: 2 | AM25: 2 | AN25: 3 | AO25: 3 | AP25: 2 | AQ25: 1 | AR25: 2 | AS25: 2 | AT25: 1 | AU25: 1 | AV25: 1 | AW25: 2 | AX25: 2 | AY25: 1 | AZ25: 2 | BA25: 2 | BB25: 2 | BC25: 2 | BE25: 2 | BH25: 422 | BI25: 377 | BJ25: 366 | BK25: 356 | BL25: 337 | BM25: 332 | BN25: 268 | BO25: 226 | BW25: - | BX25: - | BY25: 8 | CA25: 2684 | EL25: 21 | EN25: 21 | EO25: (15)
A26: 22 (22) | B26: Göran Persson | C26: Dynapac | D26: 2675 | F26: 14 | G26: 100.6785714 | I26: 245 | J26: 219 | K26: 182 | L26: 199 | P26: 229 | Q26: 144 | R26: 185 | S26: 227 | T26: 178 | U26: 197 | V26: 170 | Y26: 219 | Z26: 217 | AA26: 208 | AB26: 19 | AC26: 144 | AD26: - | AE26: 22 | AF26: 22 | AG26: 22 | AH26: 22 | AK26: 2 | AL26: 3 | AM26: 3 | AN26: 3 | AO26: 2 | AP26: 1 | AQ26: 1 | AR26: 2 | AS26: 3 | AT26: 3 | AU26: 3 | AV26: 3 | AW26: 3 | AX26: 3 | AY26: 2 | AZ26: 1 | BA26: 2 | BB26: 3 | BC26: 3 | BE26: 2 | BH26: 245 | BI26: 229 | BJ26: 227 | BK26: 219 | BL26: 219 | BM26: 217 | BN26: 208 | BO26: 199 | BP26: 197 | BQ26: 185 | BR26: 182 | BS26: 178 | BT26: 170 | BU26: 144 | BW26: 144 | BX26: - | BY26: 2 | CA26: 2819 | EL26: 22 | EN26: 22 | EO26: (22)
A27: 23 (22) | B27: Inga-Lill Stühr | C27: Lessebo | D27: 2656 | F27: 11 | G27: 120.7272727 | I27: 270 | K27: 202 | L27: 261 | M27: 180 | P27: 246 | S27: 363 | U27: 289 | V27: 168 | X27: 181 | Z27: 257 | AA27: 239 | AB27: 19 | AC27: - | AD27: - | AE27: 22 | AF27: 23 | AG27: 23 | AH27: 23 | AK27: 2 | AL27: 2 | AM27: 2 | AN27: 3 | AO27: 3 | AP27: 2 | AQ27: 1 | AR27: 2 | AS27: 2 | AT27: 1 | AU27: 2 | AV27: 2 | AW27: 2 | AX27: 3 | AY27: 2 | AZ27: 2 | BA27: 2 | BB27: 2 | BC27: 3 | BE27: 2 | BH27: 363 | BI27: 289 | BJ27: 270 | BK27: 261 | BL27: 257 | BM27: 246 | BN27: 239 | BO27: 202 | BP27: 181 | BQ27: 180 | BR27: 168 | BW27: - | BX27: - | BY27: 5 | CA27: 2656 | EL27: 23 | EN27: 23 | EO27: (22)
A28: 24 (25) | B28: Kasper Sjöberg | C28: Sketnabäck | D28: 2578 | F28: 13 | G28: 99.15384615 | I28: 165 | J28: 213 | K28: 141 | L28: 167 | O28: 150 | P28: 296 | Q28: 136 | R28: 215 | S28: 286 | T28: 231 | U28: 225 | V28: 166 | AA28: 187 | AB28: 19 | AC28: - | AD28: - | AE28: 25 | AF28: 24 | AG28: 24 | AH28: 24 | AK28: 2 | AL28: 3 | AM28: 3 | AN28: 3 | AO28: 2 | AP28: 1 | AQ28: 2 | AR28: 3 | AS28: 3 | AT28: 3 | AU28: 3 | AV28: 3 | AW28: 3 | AX28: 3 | AY28: 2 | AZ28: 1 | BA28: 1 | BB28: 1 | BC28: 2 | BE28: 2 | BH28: 296 | BI28: 286 | BJ28: 231 | BK28: 225 | BL28: 215 | BM28: 213 | BN28: 187 | BO28: 167 | BP28: 166 | BQ28: 165 | BR28: 150 | BS28: 141 | BT28: 136 | BW28: - | BX28: - | BY28: 3 | CA28: 2578 | EL28: 24 | EN28: 24 | EO28: (25)
A29: 25 (24) | B29: Bela Bodi | C29: Växjö | D29: 2576 | F29: 13 | G29: 99.07692308 | I29: 211 | K29: 193 | L29: 153 | M29: 247 | P29: 193 | Q29: 155 | S29: 232 | T29: 173 | U29: 228 | V29: 181 | X29: 221 | Z29: 249 | AA29: 140 | AB29: 19 | AC29: - | AD29: - | AE29: 24 | AF29: 25 | AG29: 25 | AH29: 25 | AK29: 2 | AL29: 2 | AM29: 2 | AN29: 3 | AO29: 3 | AP29: 2 | AQ29: 1 | AR29: 2 | AS29: 3 | AT29: 2 | AU29: 2 | AV29: 3 | AW29: 3 | AX29: 3 | AY29: 2 | AZ29: 2 | BA29: 2 | BB29: 2 | BC29: 3 | BE29: 2 | BH29: 249 | BI29: 247 | BJ29: 232 | BK29: 228 | BL29: 221 | BM29: 211 | BN29: 193 | BO29: 193 | BP29: 181 | BQ29: 173 | BR29: 155 | BS29: 153 | BT29: 140 | BW29: - | BX29: - | BY29: 3 | CA29: 2576 | EL29: 25 | EN29: 25 | EO29: (24)
A30: 26 (27) | B30: Thomas Dahl | C30: Växjö | D30: 2457 | F30: 13 | G30: 94.5 | I30: 296 | J30: 204 | K30: 142 | L30: 177 | M30: 112 | P30: 196 | Q30: 194 | S30: 214 | T30: 288 | U30: 173 | V30: 123 | X30: 157 | Z30: 181 | AB30: 19 | AC30: - | AD30: - | AE30: 27 | AF30: 26 | AG30: 26 | AH30: 26 | AK30: 2 | AL30: 3 | AM30: 3 | AN30: 3 | AO30: 3 | AP30: 2 | AQ30: 1 | AR30: 2 | AS30: 3 | AT30: 2 | AU30: 2 | AV30: 3 | AW30: 3 | AX30: 3 | AY30: 2 | AZ30: 2 | BA30: 2 | BB30: 2 | BC30: 2 | BE30: 2 | BH30: 296 | BI30: 288 | BJ30: 214 | BK30: 204 | BL30: 196 | BM30: 194 | BN30: 181 | BO30: 177 | BP30: 173 | BQ30: 157 | BR30: 142 | BS30: 123 | BT30: 112 | BW30: - | BX30: - | BY30: 3 | CA30: 2457 | EL30: 26 | EN30: 26 | EO30: (27)
A31: 27 (25) | B31: Berndt Pettersson | C31: Lanternan | D31: 2410 | F31: 13 | G31: 92.69230769 | I31: 210 | J31: 174 | K31: 179 | L31: 182 | P31: 177 | Q31: 179 | R31: 140 | S31: 278 | T31: 234 | U31: 195 | V31: 186 | Y31: 77 | Z31: 199 | AB31: 19 | AC31: - | AD31: - | AE31: 25 | AF31: 27 | AG31: 27 | AH31: 27 | AK31: 2 | AL31: 3 | AM31: 3 | AN31: 3 | AO31: 2 | AP31: 1 | AQ31: 1 | AR31: 2 | AS31: 3 | AT31: 3 | AU31: 3 | AV31: 3 | AW31: 3 | AX31: 3 | AY31: 2 | AZ31: 1 | BA31: 2 | BB31: 3 | BC31: 2 | BE31: 2 | BH31: 278 | BI31: 234 | BJ31: 210 | BK31: 199 | BL31: 195 | BM31: 186 | BN31: 182 | BO31: 179 | BP31: 179 | BQ31: 177 | BR31: 174 | BS31: 140 | BT31: 77 | BW31: - | BX31: - | BY31: 3 | CA31: 2410 | EL31: 27 | EN31: 27 | EO31: (25)
A32: 28 (28) | B32: Leif Sundahl | C32: Carlskrona | D32: 2390 | F32: 11 | G32: 108.6363636 | J32: 166 | K32: 195 | P32: 275 | Q32: 184 | R32: 199 | T32: 126 | U32: 227 | V32: 230 | Y32: 377 | Z32: 190 | AA32: 221 | AB32: 19 | AC32: - | AD32: - | AE32: 28 | AF32: 28 | AG32: 28 | AH32: 28 | AK32: 1 | AL32: 2 | AM32: 3 | AN32: 2 | AO32: 1 | AP32: 1 | AQ32: 1 | AR32: 2 | AS32: 3 | AT32: 3 | AU32: 2 | AV32: 2 | AW32: 3 | AX32: 3 | AY32: 2 | AZ32: 1 | BA32: 2 | BB32: 3 | BC32: 3 | BE32: 2 | BH32: 377 | BI32: 275 | BJ32: 230 | BK32: 227 | BL32: 221 | BM32: 199 | BN32: 195 | BO32: 190 | BP32: 184 | BQ32: 166 | BR32: 126 | BW32: - | BX32: - | BY32: 5 | CA32: 2390 | EL32: 28 | EN32: 28 | EO32: (28)
A33: 29 (30) | B33: Clara Larsson | C33: Värends Hsk | D33: 2327 | F33: 14 | G33: 86.25 | I33: 167 | J33: 242 | K33: 88 | L33: 164 | M33: 172 | P33: 197 | Q33: 156 | S33: 211 | T33: 153 | U33: 168 | V33: 145 | X33: 152 | Z33: 235 | AA33: 165 | AB33: 19 | AC33: 88 | AD33: - | AE33: 30 | AF33: 29 | AG33: 29 | AH33: 29 | AK33: 2 | AL33: 3 | AM33: 3 | AN33: 3 | AO33: 3 | AP33: 2 | AQ33: 1 | AR33: 2 | AS33: 3 | AT33: 2 | AU33: 2 | AV33: 3 | AW33: 3 | AX33: 3 | AY33: 2 | AZ33: 2 | BA33: 2 | BB33: 2 | BC33: 3 | BE33: 2 | BH33: 242 | BI33: 235 | BJ33: 211 | BK33: 197 | BL33: 172 | BM33: 168 | BN33: 167 | BO33: 165 | BP33: 164 | BQ33: 156 | BR33: 153 | BS33: 152 | BT33: 145 | BU33: 88 | BW33: 88 | BX33: - | BY33: 2 | CA33: 2415 | EL33: 29 | EN33: 29 | EO33: (30)
A34: 30 (28) | B34: Jan Petersson | C34: Lanternan | D34: 2300 | F34: 13 | G34: 88.46153846 | I34: 167 | J34: 227 | K34: 316 | L34: 189 | P34: 189 | Q34: 95 | R34: 132 | T34: 132 | U34: 191 | V34: 132 | Y34: 223 | Z34: 167 | AA34: 140 | AB34: 19 | AC34: - | AD34: - | AE34: 28 | AF34: 30 | AG34: 30 | AH34: 30 | AK34: 2 | AL34: 3 | AM34: 3 | AN34: 3 | AO34: 2 | AP34: 1 | AQ34: 1 | AR34: 2 | AS34: 3 | AT34: 3 | AU34: 2 | AV34: 2 | AW34: 3 | AX34: 3 | AY34: 2 | AZ34: 1 | BA34: 2 | BB34: 3 | BC34: 3 | BE34: 2 | BH34: 316 | BI34: 227 | BJ34: 223 | BK34: 191 | BL34: 189 | BM34: 189 | BN34: 167 | BO34: 167 | BP34: 140 | BQ34: 132 | BR34: 132 | BS34: 132 | BT34: 95 | BW34: - | BX34: - | BY34: 3 | CA34: 2300 | EL34: 30 | EN34: 30 | EO34: (28)
A35: 31 (31) | B35: Stefan Tollstam | C35: Dynapac | D35: 2292 | F35: 14 | G35: 84.07142857 | I35: 164 | J35: 171 | K35: 154 | L35: 161 | O35: 132 | Q35: 162 | R35: 145 | S35: 202 | T35: 62 | U35: 275 | V35: 254 | Y35: 138 | Z35: 147 | AA35: 187 | AB35: 19 | AC35: 62 | AD35: - | AE35: 31 | AF35: 31 | AG35: 31 | AH35: 31 | AK35: 2 | AL35: 3 | AM35: 3 | AN35: 3 | AO35: 2 | AP35: 1 | AQ35: 2 | AR35: 2 | AS35: 2 | AT35: 3 | AU35: 3 | AV35: 3 | AW35: 3 | AX35: 3 | AY35: 2 | AZ35: 1 | BA35: 2 | BB35: 3 | BC35: 3 | BE35: 2 | BH35: 275 | BI35: 254 | BJ35: 202 | BK35: 187 | BL35: 171 | BM35: 164 | BN35: 162 | BO35: 161 | BP35: 154 | BQ35: 147 | BR35: 145 | BS35: 138 | BT35: 132 | BU35: 62 | BW35: 62 | BX35: - | BY35: 2 | CA35: 2354 | EL35: 31 | EN35: 31 | EO35: (31)
A36: 32 (32) | B36: Alf Svensson | C36: Korpen Åseda | D36: 2283 | F36: 12 | G36: 95.125 | I36: 198 | J36: 282 | K36: 194 | L36: 217 | P36: 193 | S36: 198 | T36: 149 | U36: 193 | V36: 225 | X36: 144 | Z36: 123 | AA36: 167 | AB36: 19 | AC36: - | AD36: - | AE36: 32 | AF36: 32 | AG36: 32 | AH36: 32 | AK36: 2 | AL36: 3 | AM36: 3 | AN36: 3 | AO36: 2 | AP36: 1 | AQ36: 1 | AR36: 2 | AS36: 2 | AT36: 1 | AU36: 2 | AV36: 3 | AW36: 3 | AX36: 3 | AY36: 2 | AZ36: 2 | BA36: 2 | BB36: 2 | BC36: 3 | BE36: 2 | BH36: 282 | BI36: 225 | BJ36: 217 | BK36: 198 | BL36: 198 | BM36: 194 | BN36: 193 | BO36: 193 | BP36: 167 | BQ36: 149 | BR36: 144 | BS36: 123 | BW36: - | BX36: - | BY36: 4 | CA36: 2283 | EL36: 32 | EN36: 32 | EO36: (32)
A37: 33 (33) | B37: Ingegerd Pettersson | C37: Lanternan | D37: 2254 | F37: 13 | G37: 86.69230769 | I37: 174 | J37: 178 | K37: 103 | L37: 174 | P37: 186 | Q37: 144 | R37: 134 | T37: 188 | U37: 169 | V37: 180 | Y37: 207 | Z37: 222 | AA37: 195 | AB37: 19 | AC37: - | AD37: - | AE37: 33 | AF37: 33 | AG37: =IF(F37>1,ROW(33:33),"-") -> 33 | AH37: 33 | AK37: 2 | AL37: 3 | AM37: 3 | AN37: 3 | AO37: 2 | AP37: 1 | AQ37: 1 | AR37: 2 | AS37: 3 | AT37: 3 | AU37: 2 | AV37: 2 | AW37: 3 | AX37: 3 | AY37: 2 | AZ37: 1 | BA37: 2 | BB37: 3 | BC37: 3 | BE37: 2 | BH37: 222 | BI37: 207 | BJ37: 195 | BK37: 188 | BL37: 186 | BM37: 180 | BN37: 178 | BO37: 174 | BP37: 174 | BQ37: 169 | BR37: 144 | BS37: 134 | BT37: 103 | BW37: - | BX37: - | BY37: 3 | CA37: 2254 | EL37: 33 | EN37: 33 | EO37: (33)
A38: 34 (34) | B38: Malin Lundqvist | C38: Alvesta | D38: 2219 | F38: 11 | G38: 100.8636364 | I38: 261 | J38: 284 | L38: 192 | M38: 211 | O38: 207 | P38: 174 | Q38: 159 | U38: 222 | V38: 164 | X38: 177 | Z38: 168 | AB38: 19 | AC38: - | AD38: - | AE38: 34 | AF38: 34 | AG38: 34 | AH38: 34 | AK38: 2 | AL38: 3 | AM38: 2 | AN38: 2 | AO38: 3 | AP38: 2 | AQ38: 2 | AR38: 3 | AS38: 3 | AT38: 2 | AU38: 1 | AV38: 1 | AW38: 2 | AX38: 3 | AY38: 2 | AZ38: 2 | BA38: 2 | BB38: 2 | BC38: 2 | BE38: 2 | BH38: 284 | BI38: 261 | BJ38: 222 | BK38: 211 | BL38: 207 | BM38: 192 | BN38: 177 | BO38: 174 | BP38: 168 | BQ38: 164 | BR38: 159 | BW38: - | BX38: - | BY38: 5 | CA38: 2219 | EL38: 34 | EN38: 34 | EO38: (34)
A39: 35 (38) | B39: Kerstin Johansson | C39: Lessebo | D39: 2201 | F39: 11 | G39: 100.0454545 | I39: 212 | K39: 212 | L39: 183 | M39: 146 | P39: 225 | S39: 201 | U39: 228 | V39: 188 | X39: 250 | Z39: 147 | AA39: 209 | AB39: 19 | AC39: - | AD39: - | AE39: 38 | AF39: 35 | AG39: 35 | AH39: 35 | AK39: 2 | AL39: 2 | AM39: 2 | AN39: 3 | AO39: 3 | AP39: 2 | AQ39: 1 | AR39: 2 | AS39: 2 | AT39: 1 | AU39: 2 | AV39: 2 | AW39: 2 | AX39: 3 | AY39: 2 | AZ39: 2 | BA39: 2 | BB39: 2 | BC39: 3 | BE39: 2 | BH39: 250 | BI39: 228 | BJ39: 225 | BK39: 212 | BL39: 212 | BM39: 209 | BN39: 201 | BO39: 188 | BP39: 183 | BQ39: 147 | BR39: 146 | BW39: - | BX39: - | BY39: 5 | CA39: 2201 | EL39: 35 | EN39: 35 | EO39: (38)
A40: 36 (35) | B40: Lukas Bern | C40: Dynapac | D40: 2163 | F40: 11 | G40: 98.31818182 | I40: 300 | J40: 199 | K40: 188 | P40: 189 | Q40: 185 | R40: 185 | T40: 148 | U40: 232 | V40: 166 | Y40: 172 | Z40: 199 | AB40: 19 | AC40: - | AD40: - | AE40: 35 | AF40: 36 | AG40: 36 | AH40: 36 | AK40: 2 | AL40: 3 | AM40: 3 | AN40: 2 | AO40: 1 | AP40: 1 | AQ40: 1 | AR40: 2 | AS40: 3 | AT40: 3 | AU40: 2 | AV40: 2 | AW40: 3 | AX40: 3 | AY40: 2 | AZ40: 1 | BA40: 2 | BB40: 3 | BC40: 2 | BE40: 2 | BH40: 300 | BI40: 232 | BJ40: 199 | BK40: 199 | BL40: 189 | BM40: 188 | BN40: 185 | BO40: 185 | BP40: 172 | BQ40: 166 | BR40: 148 | BW40: - | BX40: - | BY40: 5 | CA40: 2163 | EL40: 36 | EN40: 36 | EO40: (35)
A41: 37 (42) | B41: Maire Johansson | C41: Växjö | D41: 2138 | F41: 13 | G41: 82.23076923 | I41: 177 | J41: 179 | K41: 142 | L41: 225 | M41: 170 | P41: 137 | Q41: 183 | S41: 210 | T41: 200 | V41: 150 | X41: 107 | Z41: 161 | AA41: 97 | AB41: 19 | AC41: - | AD41: - | AE41: 42 | AF41: 37 | AG41: 37 | AH41: 37 | AK41: 2 | AL41: 3 | AM41: 3 | AN41: 3 | AO41: 3 | AP41: 2 | AQ41: 1 | AR41: 2 | AS41: 3 | AT41: 2 | AU41: 2 | AV41: 3 | AW41: 2 | AX41: 2 | AY41: 2 | AZ41: 2 | BA41: 2 | BB41: 2 | BC41: 3 | BE41: 2 | BH41: 225 | BI41: 210 | BJ41: 200 | BK41: 183 | BL41: 179 | BM41: 177 | BN41: 170 | BO41: 161 | BP41: 150 | BQ41: 142 | BR41: 137 | BS41: 107 | BT41: 97 | BW41: - | BX41: - | BY41: 3 | CA41: 2138 | EL41: 37 | EN41: 37 | EO41: (42)
A42: 38 (40) | B42: Fredrik Lundin | C42: Lanternan | D42: 2077 | F42: 8 | G42: 129.8125 | J42: 236 | K42: 245 | Q42: 196 | R42: 276 | T42: 261 | U42: 344 | V42: 197 | Y42: 322 | AB42: 19 | AC42: - | AD42: - | AE42: 40 | AF42: 38 | AG42: 38 | AH42: 38 | AK42: 1 | AL42: 2 | AM42: 3 | AN42: 2 | AO42: 1 | AP42: 1 | AQ42: 1 | AR42: 1 | AS42: 2 | AT42: 3 | AU42: 2 | AV42: 2 | AW42: 3 | AX42: 3 | AY42: 2 | AZ42: 1 | BA42: 2 | BB42: 2 | BC42: 1 | BE42: 2 | BH42: 344 | BI42: 322 | BJ42: 276 | BK42: 261 | BL42: 245 | BM42: 236 | BN42: 197 | BO42: 196 | BW42: - | BX42: - | BY42: 8 | CA42: 2077 | EL42: 38 | EN42: 38 | EO42: (40)
A43: 39 (37) | B43: Solveig Axelsson | C43: Alvesta | D43: 2074 | F43: 14 | G43: 77 | I43: 143 | J43: 231 | L43: 179 | M43: 175 | O43: 120 | P43: 153 | Q43: 106 | S43: 216 | T43: 155 | U43: 132 | V43: 109 | X43: 142 | Z43: 213 | AA43: 82 | AB43: 19 | AC43: 82 | AD43: - | AE43: 37 | AF43: 39 | AG43: 39 | AH43: 39 | AK43: 2 | AL43: 3 | AM43: 2 | AN43: 2 | AO43: 3 | AP43: 2 | AQ43: 2 | AR43: 3 | AS43: 3 | AT43: 2 | AU43: 2 | AV43: 3 | AW43: 3 | AX43: 3 | AY43: 2 | AZ43: 2 | BA43: 2 | BB43: 2 | BC43: 3 | BE43: 2 | BH43: 231 | BI43: 216 | BJ43: 213 | BK43: 179 | BL43: 175 | BM43: 155 | BN43: 153 | BO43: 143 | BP43: 142 | BQ43: 132 | BR43: 120 | BS43: 109 | BT43: 106 | BU43: 82 | BW43: 82 | BX43: - | BY43: 2 | CA43: 2156 | EL43: 39 | EN43: 39 | EO43: (37)
A44: 40 (35) | B44: Ronny Lundberg | C44: Lanternan | D44: 2058 | F44: 10 | G44: 102.9 | I44: 180 | J44: 296 | K44: 204 | L44: 191 | R44: 210 | S44: 165 | T44: 163 | V44: 178 | Y44: 213 | Z44: 258 | AB44: 19 | AC44: - | AD44: - | AE44: 35 | AF44: 40 | AG44: 40 | AH44: 40 | AK44: 2 | AL44: 3 | AM44: 3 | AN44: 3 | AO44: 2 | AP44: 1 | AQ44: 1 | AR44: 1 | AS44: 1 | AT44: 2 | AU44: 3 | AV44: 3 | AW44: 2 | AX44: 2 | AY44: 2 | AZ44: 1 | BA44: 2 | BB44: 3 | BC44: 2 | BE44: 2 | BH44: 296 | BI44: 258 | BJ44: 213 | BK44: 210 | BL44: 204 | BM44: 191 | BN44: 180 | BO44: 178 | BP44: 165 | BQ44: 163 | BW44: - | BX44: - | BY44: 6 | CA44: 2058 | EL44: 40 | EN44: 40 | EO44: (35)
A45: 41 (41) | B45: Peter Edlund | C45: Dynapac | D45: 1999 | F45: 13 | G45: 76.88461538 | J45: 175 | K45: 259 | L45: 71 | O45: 209 | P45: 227 | Q45: 172 | R45: 151 | S45: 181 | U45: 70 | V45: 95 | Y45: 140 | Z45: 134 | AA45: 115 | AB45: 19 | AC45: - | AD45: - | AE45: 41 | AF45: 41 | AG45: 41 | AH45: 41 | AK45: 1 | AL45: 2 | AM45: 3 | AN45: 3 | AO45: 2 | AP45: 1 | AQ45: 2 | AR45: 3 | AS45: 3 | AT45: 3 | AU45: 3 | AV45: 2 | AW45: 2 | AX45: 3 | AY45: 2 | AZ45: 1 | BA45: 2 | BB45: 3 | BC45: 3 | BE45: 2 | BH45: 259 | BI45: 227 | BJ45: 209 | BK45: 181 | BL45: 175 | BM45: 172 | BN45: 151 | BO45: 140 | BP45: 134 | BQ45: 115 | BR45: 95 | BS45: 71 | BT45: 70 | BW45: - | BX45: - | BY45: 3 | CA45: 1999 | EL45: 41 | EN45: 41 | EO45: (41)
A46: 42 (48) | B46: Anita Fabbeke | C46: Dynapac | D46: 1998 | F46: 10 | G46: 99.9 | J46: 223 | P46: 171 | Q46: 152 | R46: 100 | S46: 258 | T46: 149 | V46: 164 | Y46: 274 | Z46: 299 | AA46: 208 | AB46: 19 | AC46: - | AD46: - | AE46: 48 | AF46: 42 | AG46: 42 | AH46: 42 | AK46: 1 | AL46: 2 | AM46: 2 | AN46: 1 | AO46: 1 | AP46: 1 | AQ46: 1 | AR46: 2 | AS46: 3 | AT46: 3 | AU46: 3 | AV46: 3 | AW46: 2 | AX46: 2 | AY46: 2 | AZ46: 1 | BA46: 2 | BB46: 3 | BC46: 3 | BE46: 2 | BH46: 299 | BI46: 274 | BJ46: 258 | BK46: 223 | BL46: 208 | BM46: 171 | BN46: 164 | BO46: 152 | BP46: 149 | BQ46: 100 | BW46: - | BX46: - | BY46: 6 | CA46: 1998 | EL46: 42 | EN46: 42 | EO46: (48)
A47: 43 (44) | B47: Carina Gneupel | C47: Sibbamåla | D47: 1996 | F47: 11 | G47: 90.72727273 | I47: 242 | J47: 225 | K47: 164 | L47: 128 | Q47: 87 | R47: 156 | T47: 202 | U47: 198 | V47: 205 | Y47: 242 | Z47: 147 | AB47: 19 | AC47: - | AD47: - | AE47: 44 | AF47: 43 | AG47: 43 | AH47: 43 | AK47: 2 | AL47: 3 | AM47: 3 | AN47: 3 | AO47: 2 | AP47: 1 | AQ47: 1 | AR47: 1 | AS47: 2 | AT47: 3 | AU47: 2 | AV47: 2 | AW47: 3 | AX47: 3 | AY47: 2 | AZ47: 1 | BA47: 2 | BB47: 3 | BC47: 2 | BE47: 2 | BH47: 242 | BI47: 242 | BJ47: 225 | BK47: 205 | BL47: 202 | BM47: 198 | BN47: 164 | BO47: 156 | BP47: 147 | BQ47: 128 | BR47: 87 | BW47: - | BX47: - | BY47: 5 | CA47: 1996 | EL47: 43 | EN47: 43 | EO47: (44)
A48: 44 (45) | B48: Johan Johansson | C48: Tingsryd | D48: 1985 | F48: 8 | G48: 124.0625 | K48: 250 | O48: 227 | P48: 313 | Q48: 176 | U48: 273 | V48: 227 | X48: 308 | AA48: 211 | AB48: 19 | AC48: - | AD48: - | AE48: 45 | AF48: 44 | AG48: 44 | AH48: 44 | AK48: 1 | AL48: 1 | AM48: 2 | AN48: 2 | AO48: 1 | AP48: 1 | AQ48: 2 | AR48: 3 | AS48: 3 | AT48: 2 | AU48: 1 | AV48: 1 | AW48: 2 | AX48: 3 | AY48: 2 | AZ48: 2 | BA48: 2 | BB48: 1 | BC48: 2 | BE48: 2 | BH48: 313 | BI48: 308 | BJ48: 273 | BK48: 250 | BL48: 227 | BM48: 227 | BN48: 211 | BO48: 176 | BW48: - | BX48: - | BY48: 8 | CA48: 1985 | EL48: 44 | EN48: 44 | EO48: (45)
A49: 45 (42) | B49: Olle Nilsson | C49: Tingsryd | D49: 1979 | F49: 12 | G49: 82.45833333 | I49: 208 | K49: 152 | L49: 210 | M49: 180 | O49: 156 | P49: 168 | Q49: 75 | S49: 186 | U49: 186 | V49: 178 | X49: 154 | AA49: 126 | AB49: 19 | AC49: - | AD49: - | AE49: 42 | AF49: 45 | AG49: 45 | AH49: 45 | AK49: 2 | AL49: 2 | AM49: 2 | AN49: 3 | AO49: 3 | AP49: 2 | AQ49: 2 | AR49: 3 | AS49: 3 | AT49: 2 | AU49: 2 | AV49: 2 | AW49: 2 | AX49: 3 | AY49: 2 | AZ49: 2 | BA49: 2 | BB49: 1 | BC49: 2 | BE49: 2 | BH49: 210 | BI49: 208 | BJ49: 186 | BK49: 186 | BL49: 180 | BM49: 178 | BN49: 168 | BO49: 156 | BP49: 154 | BQ49: 152 | BR49: 126 | BS49: 75 | BW49: - | BX49: - | BY49: 4 | CA49: 1979 | EL49: 45 | EN49: 45 | EO49: (42)
A50: 46 (50) | B50: Bengt Fabbeke | C50: Dynapac | D50: 1931 | F50: 10 | G50: 96.55 | J50: 228 | P50: 243 | Q50: 61 | R50: 170 | S50: 261 | T50: 168 | V50: 158 | Y50: 228 | Z50: 219 | AA50: 195 | AB50: 19 | AC50: - | AD50: - | AE50: 50 | AF50: 46 | AG50: 46 | AH50: 46 | AK50: 1 | AL50: 2 | AM50: 2 | AN50: 1 | AO50: 1 | AP50: 1 | AQ50: 1 | AR50: 2 | AS50: 3 | AT50: 3 | AU50: 3 | AV50: 3 | AW50: 2 | AX50: 2 | AY50: 2 | AZ50: 1 | BA50: 2 | BB50: 3 | BC50: 3 | BE50: 2 | BH50: 261 | BI50: 243 | BJ50: 228 | BK50: 228 | BL50: 219 | BM50: 195 | BN50: 170 | BO50: 168 | BP50: 158 | BQ50: 61 | BW50: - | BX50: - | BY50: 6 | CA50: 1931 | EL50: 46 | EN50: 46 | EO50: (50)
A51: 47 (50) | B51: Inger Andersson | C51: Korpen Nybro | D51: 1917 | F51: 10 | G51: 95.85 | I51: 159 | J51: 155 | K51: 135 | L51: 295 | M51: 262 | S51: 262 | T51: 159 | U51: 137 | V51: 218 | AA51: 135 | AB51: 19 | AC51: - | AD51: - | AE51: 50 | AF51: 47 | AG51: 47 | AH51: 47 | AK51: 2 | AL51: 3 | AM51: 3 | AN51: 3 | AO51: 3 | AP51: 2 | AQ51: 1 | AR51: 1 | AS51: 1 | AT51: 1 | AU51: 2 | AV51: 3 | AW51: 3 | AX51: 3 | AY51: 2 | AZ51: 1 | BA51: 1 | BB51: 1 | BC51: 2 | BE51: 2 | BH51: 295 | BI51: 262 | BJ51: 262 | BK51: 218 | BL51: 159 | BM51: 159 | BN51: 155 | BO51: 137 | BP51: 135 | BQ51: 135 | BW51: - | BX51: - | BY51: 6 | CA51: 1917 | EL51: 47 | EN51: 47 | EO51: (50)
A52: 48 (38) | B52: Kennarth Axelsson | C52: Alvesta | D52: 1874 | F52: 8 | G52: 117.125 | J52: 301 | O52: 190 | P52: 297 | Q52: 180 | U52: 224 | V52: 209 | X52: 228 | Z52: 245 | AB52: 19 | AC52: - | AD52: - | AE52: 38 | AF52: 48 | AG52: 48 | AH52: 48 | AK52: 1 | AL52: 2 | AM52: 2 | AN52: 1 | AO52: 1 | AP52: 1 | AQ52: 2 | AR52: 3 | AS52: 3 | AT52: 2 | AU52: 1 | AV52: 1 | AW52: 2 | AX52: 3 | AY52: 2 | AZ52: 2 | BA52: 2 | BB52: 2 | BC52: 2 | BE52: 2 | BH52: 301 | BI52: 297 | BJ52: 245 | BK52: 228 | BL52: 224 | BM52: 209 | BN52: 190 | BO52: 180 | BW52: - | BX52: - | BY52: 8 | CA52: 1874 | EL52: 48 | EN52: 48 | EO52: (38)
A53: 49 (46) | B53: Christina Holmberg | C53: Tingsryd | D53: 1849 | F53: 10 | G53: 92.45 | I53: 178 | J53: 223 | K53: 167 | L53: 230 | M53: 148 | P53: 280 | Q53: 126 | V53: 154 | X53: 211 | AA53: 132 | AB53: 19 | AC53: - | AD53: - | AE53: 46 | AF53: 49 | AG53: 49 | AH53: 49 | AK53: 2 | AL53: 3 | AM53: 3 | AN53: 3 | AO53: 3 | AP53: 2 | AQ53: 1 | AR53: 2 | AS53: 3 | AT53: 2 | AU53: 1 | AV53: 1 | AW53: 1 | AX53: 2 | AY53: 2 | AZ53: 2 | BA53: 2 | BB53: 1 | BC53: 2 | BE53: 2 | BH53: 280 | BI53: 230 | BJ53: 223 | BK53: 211 | BL53: 178 | BM53: 167 | BN53: 154 | BO53: 148 | BP53: 132 | BQ53: 126 | BW53: - | BX53: - | BY53: 6 | CA53: 1849 | EL53: 49 | EN53: 49 | EO53: (46)
A54: 50 (53) | B54: Bo Andersson | C54: Hsk Tingzås | D54: 1786 | F54: 9 | G54: 99.22222222 | I54: 247 | J54: 163 | Q54: 200 | S54: 185 | T54: 199 | U54: 200 | V54: 168 | Z54: 168 | AA54: 256 | AB54: 19 | AC54: - | AD54: - | AE54: 53 | AF54: 50 | AG54: 50 | AH54: 50 | AK54: 2 | AL54: 3 | AM54: 2 | AN54: 1 | AO54: 1 | AP54: 1 | AQ54: 1 | AR54: 1 | AS54: 2 | AT54: 2 | AU54: 2 | AV54: 3 | AW54: 3 | AX54: 3 | AY54: 2 | AZ54: 1 | BA54: 1 | BB54: 2 | BC54: 3 | BE54: 2 | BH54: 256 | BI54: 247 | BJ54: 200 | BK54: 200 | BL54: 199 | BM54: 185 | BN54: 168 | BO54: 168 | BP54: 163 | BW54: - | BX54: - | BY54: 7 | CA54: 1786 | EL54: 50 | EN54: 50 | EO54: (53)
A55: 51 (47) | B55: Ulrika Rydell | C55: Värends Hsk | D55: 1747 | F55: 13 | G55: 67.19230769 | I55: 186 | J55: 126 | K55: 91 | L55: 132 | M55: 142 | P55: 95 | Q55: 83 | S55: 219 | T55: 175 | U55: 52 | V55: 146 | X55: 107 | Z55: 193 | AB55: 19 | AC55: - | AD55: - | AE55: 47 | AF55: 51 | AG55: 51 | AH55: 51 | AK55: 2 | AL55: 3 | AM55: 3 | AN55: 3 | AO55: 3 | AP55: 2 | AQ55: 1 | AR55: 2 | AS55: 3 | AT55: 2 | AU55: 2 | AV55: 3 | AW55: 3 | AX55: 3 | AY55: 2 | AZ55: 2 | BA55: 2 | BB55: 2 | BC55: 2 | BE55: 2 | BH55: 219 | BI55: 193 | BJ55: 186 | BK55: 175 | BL55: 146 | BM55: 142 | BN55: 132 | BO55: 126 | BP55: 107 | BQ55: 95 | BR55: 91 | BS55: 83 | BT55: 52 | BW55: - | BX55: - | BY55: 3 | CA55: 1747 | EL55: 51 | EN55: 51 | EO55: (47)
A56: 52 (55) | B56: Göran Olofsson | C56: Korpen Nybro | D56: 1671 | F56: 8 | G56: 104.4375 | K56: 227 | L56: 154 | T56: 211 | U56: 291 | V56: 156 | X56: 249 | Z56: 199 | AA56: 184 | AB56: 19 | AC56: - | AD56: - | AE56: 55 | AF56: 52 | AG56: 52 | AH56: 52 | AK56: 1 | AL56: 1 | AM56: 2 | AN56: 3 | AO56: 2 | AP56: 1 | AQ56: 1 | AR56: 1 | AS56: 1 | AT56: 1 | AU56: 1 | AV56: 2 | AW56: 3 | AX56: 3 | AY56: 2 | AZ56: 2 | BA56: 2 | BB56: 2 | BC56: 3 | BE56: 2 | BH56: 291 | BI56: 249 | BJ56: 227 | BK56: 211 | BL56: 199 | BM56: 184 | BN56: 156 | BO56: 154 | BW56: - | BX56: - | BY56: 8 | CA56: 1671 | EL56: 52 | EN56: 52 | EO56: (55)
A57: 53 (52) | B57: Robert Sjöberg | C57: Sketnabäck | D57: 1623 | F57: 12 | G57: 67.625 | I57: 109 | J57: 163 | K57: 142 | L57: 165 | O57: 108 | P57: 165 | Q57: 112 | R57: 122 | T57: 120 | U57: 156 | V57: 130 | AA57: 131 | AB57: 19 | AC57: - | AD57: - | AE57: 52 | AF57: 53 | AG57: 53 | AH57: 53 | AK57: 2 | AL57: 3 | AM57: 3 | AN57: 3 | AO57: 2 | AP57: 1 | AQ57: 2 | AR57: 3 | AS57: 3 | AT57: 3 | AU57: 2 | AV57: 2 | AW57: 3 | AX57: 3 | AY57: 2 | AZ57: 1 | BA57: 1 | BB57: 1 | BC57: 2 | BE57: 2 | BH57: 165 | BI57: 165 | BJ57: 163 | BK57: 156 | BL57: 142 | BM57: 131 | BN57: 130 | BO57: 122 | BP57: 120 | BQ57: 112 | BR57: 109 | BS57: 108 | BW57: - | BX57: - | BY57: 4 | CA57: 1623 | EL57: 53 | EN57: 53 | EO57: (52)
A58: 54 (53) | B58: Mikael Karlsson | C58: Hsk Tingzås | D58: 1566 | F58: 10 | G58: 78.3 | I58: 147 | J58: 174 | L58: 150 | P58: 216 | Q58: 121 | S58: 216 | T58: 151 | U58: 130 | V58: 122 | Z58: 139 | AB58: 19 | AC58: - | AD58: - | AE58: 53 | AF58: 54 | AG58: 54 | AH58: 54 | AK58: 2 | AL58: 3 | AM58: 2 | AN58: 2 | AO58: 2 | AP58: 1 | AQ58: 1 | AR58: 2 | AS58: 3 | AT58: 2 | AU58: 2 | AV58: 3 | AW58: 3 | AX58: 3 | AY58: 2 | AZ58: 1 | BA58: 1 | BB58: 2 | BC58: 2 | BE58: 2 | BH58: 216 | BI58: 216 | BJ58: 174 | BK58: 151 | BL58: 150 | BM58: 147 | BN58: 139 | BO58: 130 | BP58: 122 | BQ58: 121 | BW58: - | BX58: - | BY58: 6 | CA58: 1566 | EL58: 54 | EN58: 54 | EO58: (53)
A59: 55 (57) | B59: Kerstin Svensson | C59: Växjö Hsk | D59: 1552 | F59: 13 | G59: 59.69230769 | I59: 107 | J59: 92 | K59: 59 | L59: 172 | O59: 93 | P59: 152 | Q59: 95 | T59: 79 | U59: 166 | V59: 98 | X59: 148 | Z59: 133 | AA59: 158 | AB59: 19 | AC59: - | AD59: - | AE59: 57 | AF59: 55 | AG59: 55 | AH59: 55 | AK59: 2 | AL59: 3 | AM59: 3 | AN59: 3 | AO59: 2 | AP59: 1 | AQ59: 2 | AR59: 3 | AS59: 3 | AT59: 2 | AU59: 1 | AV59: 2 | AW59: 3 | AX59: 3 | AY59: 2 | AZ59: 2 | BA59: 2 | BB59: 2 | BC59: 3 | BE59: 2 | BH59: 172 | BI59: 166 | BJ59: 158 | BK59: 152 | BL59: 148 | BM59: 133 | BN59: 107 | BO59: 98 | BP59: 95 | BQ59: 93 | BR59: 92 | BS59: 79 | BT59: 59 | BW59: - | BX59: - | BY59: 3 | CA59: 1552 | EL59: 55 | EN59: 55 | EO59: (57)
A60: 56 (59) | B60: Roland Sjöstrand | C60: Hsk Tingzås | D60: 1549 | F60: 12 | G60: 64.54166667 | I60: 78 | J60: 176 | L60: 182 | O60: 150 | P60: 122 | Q60: 158 | S60: 58 | T60: 81 | U60: 151 | V60: 91 | Z60: 132 | AA60: 170 | AB60: 19 | AC60: - | AD60: - | AE60: 59 | AF60: 56 | AG60: 56 | AH60: 56 | AK60: 2 | AL60: 3 | AM60: 2 | AN60: 2 | AO60: 2 | AP60: 1 | AQ60: 2 | AR60: 3 | AS60: 3 | AT60: 2 | AU60: 2 | AV60: 3 | AW60: 3 | AX60: 3 | AY60: 2 | AZ60: 1 | BA60: 1 | BB60: 2 | BC60: 3 | BE60: 2 | BH60: 182 | BI60: 176 | BJ60: 170 | BK60: 158 | BL60: 151 | BM60: 150 | BN60: 132 | BO60: 122 | BP60: 91 | BQ60: 81 | BR60: 78 | BS60: 58 | BW60: - | BX60: - | BY60: 4 | CA60: 1549 | EL60: 56 | EN60: 56 | EO60: (59)
A61: 57 (48) | B61: Lennart Karlsson | C61: Lanternan | D61: 1537 | F61: 9 | G61: 85.38888889 | I61: 174 | J61: 148 | K61: 139 | L61: 132 | R61: 168 | T61: 192 | U61: 203 | V61: 188 | Y61: 193 | AB61: 19 | AC61: - | AD61: - | AE61: 48 | AF61: 57 | AG61: 57 | AH61: 57 | AK61: 2 | AL61: 3 | AM61: 3 | AN61: 3 | AO61: 2 | AP61: 1 | AQ61: 1 | AR61: 1 | AS61: 1 | AT61: 2 | AU61: 2 | AV61: 2 | AW61: 3 | AX61: 3 | AY61: 2 | AZ61: 1 | BA61: 2 | BB61: 2 | BC61: 1 | BE61: 2 | BH61: 203 | BI61: 193 | BJ61: 192 | BK61: 188 | BL61: 174 | BM61: 168 | BN61: 148 | BO61: 139 | BP61: 132 | BW61: - | BX61: - | BY61: 7 | CA61: 1537 | EL61: 57 | EN61: 57 | EO61: (48)
A62: 58 (62) | B62: Bo Fransson | C62: Lessebo | D62: 1514 | F62: 6 | G62: 126.1666667 | I62: 324 | K62: 221 | M62: 241 | U62: 230 | X62: 184 | AA62: 314 | AB62: 19 | AC62: - | AD62: - | AE62: 62 | AF62: 58 | AG62: 58 | AH62: 58 | AK62: 2 | AL62: 2 | AM62: 2 | AN62: 2 | AO62: 2 | AP62: 2 | AQ62: 1 | AR62: 1 | AS62: 1 | AT62: 1 | AU62: 1 | AV62: 1 | AW62: 2 | AX62: 2 | AY62: 1 | AZ62: 2 | BA62: 2 | BB62: 1 | BC62: 2 | BE62: 2 | BH62: 324 | BI62: 314 | BJ62: 241 | BK62: 230 | BL62: 221 | BM62: 184 | BW62: - | BX62: - | BY62: 10 | CA62: 1514 | EL62: 58 | EN62: 58 | EO62: (62)
A63: 59 (56) | B63: Lasse Nilsson | C63: Värends Hsk | D63: 1513 | F63: 8 | G63: 94.5625 | I63: 214 | L63: 162 | P63: 165 | S63: 209 | V63: 201 | X63: 219 | Z63: 153 | AA63: 190 | AB63: 19 | AC63: - | AD63: - | AE63: 56 | AF63: 59 | AG63: 59 | AH63: 59 | AK63: 2 | AL63: 2 | AM63: 1 | AN63: 2 | AO63: 2 | AP63: 1 | AQ63: 1 | AR63: 2 | AS63: 2 | AT63: 1 | AU63: 2 | AV63: 2 | AW63: 1 | AX63: 2 | AY63: 2 | AZ63: 2 | BA63: 2 | BB63: 2 | BC63: 3 | BE63: 2 | BH63: 219 | BI63: 214 | BJ63: 209 | BK63: 201 | BL63: 190 | BM63: 165 | BN63: 162 | BO63: 153 | BW63: - | BX63: - | BY63: 8 | CA63: 1513 | EL63: 59 | EN63: 59 | EO63: (56)
A64: 60 (57) | B64: Gilbert Pettersson | C64: Lanternan | D64: 1470 | F64: 8 | G64: 91.875 | I64: 209 | J64: 236 | K64: 184 | P64: 271 | Q64: 122 | S64: 150 | V64: 135 | AA64: 163 | AB64: 19 | AC64: - | AD64: - | AE64: 57 | AF64: 60 | AG64: 60 | AH64: 60 | AK64: 2 | AL64: 3 | AM64: 3 | AN64: 2 | AO64: 1 | AP64: 1 | AQ64: 1 | AR64: 2 | AS64: 3 | AT64: 2 | AU64: 2 | AV64: 2 | AW64: 1 | AX64: 2 | AY64: 2 | AZ64: 1 | BA64: 1 | BB64: 1 | BC64: 2 | BE64: 2 | BH64: 271 | BI64: 236 | BJ64: 209 | BK64: 184 | BL64: 163 | BM64: 150 | BN64: 135 | BO64: 122 | BW64: - | BX64: - | BY64: 8 | CA64: 1470 | EL64: 60 | EN64: 60 | EO64: (57)
A65: 61 (60) | B65: Christer Brincner | C65: Värends Hsk | D65: 1438 | F65: 8 | G65: 89.875 | I65: 222 | L65: 208 | P65: 202 | Q65: 164 | S65: 165 | V65: 85 | Z65: 238 | AA65: 154 | AB65: 19 | AC65: - | AD65: - | AE65: 60 | AF65: 61 | AG65: 61 | AH65: 61 | AK65: 2 | AL65: 2 | AM65: 1 | AN65: 2 | AO65: 2 | AP65: 1 | AQ65: 1 | AR65: 2 | AS65: 3 | AT65: 2 | AU65: 2 | AV65: 2 | AW65: 1 | AX65: 2 | AY65: 2 | AZ65: 1 | BA65: 1 | BB65: 2 | BC65: 3 | BE65: 2 | BH65: 238 | BI65: 222 | BJ65: 208 | BK65: 202 | BL65: 165 | BM65: 164 | BN65: 154 | BO65: 85 | BW65: - | BX65: - | BY65: 8 | CA65: 1438 | EL65: 61 | EN65: 61 | EO65: (60)
A66: 62 (66) | B66: Jörgen Holmqvist | C66: Lessebo Hsk | D66: 1387 | F66: 5 | G66: 138.7 | I66: 307 | M66: 250 | U66: 309 | X66: 296 | AA66: 225 | AB66: 19 | AC66: - | AD66: - | AE66: 66 | AF66: 62 | AG66: 62 | AH66: 62 | AK66: 2 | AL66: 2 | AM66: 1 | AN66: 1 | AO66: 2 | AP66: 2 | AQ66: 1 | AR66: 1 | AS66: 1 | AT66: 1 | AU66: 1 | AV66: 1 | AW66: 2 | AX66: 2 | AY66: 1 | AZ66: 2 | BA66: 2 | BB66: 1 | BC66: 2 | BE66: 2 | BH66: 309 | BI66: 307 | BJ66: 296 | BK66: 250 | BL66: 225 | BW66: - | BX66: - | BY66: 11 | CA66: 1387 | EL66: 62 | EN66: 62 | EO66: (66)
A67: 63 (68) | B67: Magnus Israelsson | C67: Sibbamåla | D67: 1379 | F67: 5 | G67: 137.9 | U67: 281 | V67: 246 | Y67: 297 | Z67: 331 | AA67: 224 | AB67: 19 | AC67: - | AD67: - | AE67: 68 | AF67: 63 | AG67: 63 | AH67: 63 | AK67: 1 | AL67: 1 | AM67: 1 | AN67: 1 | AO67: 1 | AP67: 1 | AQ67: 1 | AR67: 1 | AS67: 1 | AT67: 1 | AU67: 1 | AV67: 1 | AW67: 2 | AX67: 3 | AY67: 2 | AZ67: 1 | BA67: 2 | BB67: 3 | BC67: 3 | BE67: 2 | BH67: 331 | BI67: 297 | BJ67: 281 | BK67: 246 | BL67: 224 | BW67: - | BX67: - | BY67: 11 | CA67: 1379 | EL67: 63 | EN67: 63 | EO67: (68)
A68: 64 (62) | B68: Alf Johansson | C68: Värends Hsk | D68: 1338 | F68: 11 | G68: 60.81818182 | I68: 149 | L68: 67 | M68: 112 | P68: 133 | Q68: 64 | S68: 136 | T68: 143 | V68: 195 | X68: 123 | Z68: 138 | AA68: 78 | AB68: 19 | AC68: - | AD68: - | AE68: 62 | AF68: 64 | AG68: 64 | AH68: 64 | AK68: 2 | AL68: 2 | AM68: 1 | AN68: 2 | AO68: 3 | AP68: 2 | AQ68: 1 | AR68: 2 | AS68: 3 | AT68: 2 | AU68: 2 | AV68: 3 | AW68: 2 | AX68: 2 | AY68: 2 | AZ68: 2 | BA68: 2 | BB68: 2 | BC68: 3 | BE68: 2 | BH68: 195 | BI68: 149 | BJ68: 143 | BK68: 138 | BL68: 136 | BM68: 133 | BN68: 123 | BO68: 112 | BP68: 78 | BQ68: 67 | BR68: 64 | BW68: - | BX68: - | BY68: 5 | CA68: 1338 | EL68: 64 | EN68: 64 | EO68: (62)
A69: 65 (65) | B69: Rolf Johannesson | C69: Värends Hsk | D69: =SUM(BH69:BT69) -> 1313 | F69: =COUNT(I69:AA69) -> 8 | G69: =SUM((CA69)/(F69*2)) -> 82.0625 | I69: 214 | P69: 148 | S69: 159 | T69: 179 | U69: 112 | V69: 212 | Z69: 168 | AA69: 121 | AB69: =SUM($I$3:$AA$3) -> 19 | AC69: =BW69 -> - | AD69: =BX69 -> - | AE69: 65 | AF69: 65 | AG69: =IF(F69>1,ROW(65:65),"-") -> 65 | AH69: 65 | AK69: 2 | AL69: 2 | AM69: 1 | AN69: 1 | AO69: 1 | AP69: 1 | AQ69: 1 | AR69: 2 | AS69: 2 | AT69: 1 | AU69: 2 | AV69: 3 | AW69: 3 | AX69: 3 | AY69: 2 | AZ69: 1 | BA69: 1 | BB69: 2 | BC69: 3 | BE69: =IF(H69="x",1,2) -> 2 | BH69: 214 | BI69: 212 | BJ69: 179 | BK69: 168 | BL69: 159 | BM69: 148 | BN69: 121 | BO69: 112 | BW69: - | BX69: - | BY69: 8 | CA69: 1313 | EL69: 65 | EN69: 65 | EO69: (65)
A70: 66 (70) | B70: Maria Andersson | C70: Värends Hsk | D70: 1295 | F70: 9 | G70: 71.94444444 | K70: 91 | L70: 121 | M70: 155 | P70: 127 | T70: 203 | V70: 163 | X70: 112 | Z70: 160 | AA70: 163 | AB70: 19 | AC70: - | AD70: - | AE70: 70 | AF70: 66 | AG70: 66 | AH70: 66 | AK70: =COUNT($I$3,I70,H70) -> 1 | AL70: =COUNT($J$3,J70,I70) -> 1 | AM70: =COUNT($K$3,K70,J70) -> 2 | AN70: =COUNT($L$3,L70,K70) -> 3 | AO70: =COUNT($M$3,M70,L70) -> 3 | AP70: =COUNT($N$3,N70,M70) -> 2 | AQ70: =COUNT($O$3,O70,N70) -> 1 | AR70: =COUNT($P$3,P70,O70) -> 2 | AS70: =COUNT($Q$3,Q70,P70) -> 2 | AT70: =COUNT($R$3,R70,Q70) -> 1 | AU70: =COUNT($S$3,S70,R70) -> 1 | AV70: =COUNT($T$3,T70,S70) -> 2 | AW70: =COUNT($U$3,U70,T70) -> 2 | AX70: =COUNT($V$3,V70,U70) -> 2 | AY70: =COUNT($W$3,W70,V70) -> 2 | AZ70: =COUNT($X$3,X70,W70) -> 2 | BA70: =COUNT($Y$3,Y70,X70) -> 2 | BB70: =COUNT($Z$3,Z70,Y70) -> 2 | BC70: =COUNT($AA$3,AA70,Z70) -> 3 | BE70: 2 | BH70: =IF($F70>0,LARGE($I70:$AA70,1),"") -> 203 | BI70: =IF($F70>1,LARGE($I70:$AA70,2),"") -> 163 | BJ70: =IF($F70>2,LARGE($I70:$AA70,3),"") -> 163 | BK70: =IF($F70>3,LARGE($I70:$AA70,4),"") -> 160 | BL70: =IF($F70>4,LARGE($I70:$AA70,5),"") -> 155 | BM70: =IF($F70>5,LARGE($I70:$AA70,6),"") -> 127 | BN70: =IF($F70>6,LARGE($I70:$AA70,7),"") -> 121 | BO70: =IF($F70>7,LARGE($I70:$AA70,8),"") -> 112 | BP70: =IF($F70>8,LARGE($I70:$AA70,9),"") -> 91 | BQ70: =IF($F70>9,LARGE($I70:$AA70,10),"") ->  | BR70: =IF($F70>10,LARGE($I70:$AA70,11),"") ->  | BS70: =IF($F70>11,LARGE($I70:$AA70,12),"") ->  | BT70: =IF($F70>12,LARGE($I70:$AA70,13),"") ->  | BU70: =IF($F70>13,LARGE($I70:$AA70,14),"") ->  | BV70: =IF($F70>14,LARGE($I70:$AA70,15),"") ->  | BW70: =IF($F70>13,LARGE($I70:$AA70,14),"-") -> - | BX70: =IF($F70>14,LARGE($I70:$AA70,15),"-") -> - | BY70: =SUM(AB70-F70)-3 -> 7 | CA70: =SUM(BH70:BV70) -> 1295 | EL70: 66 | EN70: =IF(BE70>=1,AF70,"") -> 66 | EO70: =IF(BE70>1,"("&AE70&")","("&AG70&")") -> (70)
A71: 67 (60) | B71: Roy Dahlén | C71: Dynapac | D71: 1279 | F71: 6 | G71: 106.5833333 | I71: 227 | J71: 300 | Q71: 177 | R71: 166 | Y71: 238 | AA71: 171 | AB71: 19 | AC71: - | AD71: - | AE71: 60 | AF71: =IF(D71<D70,AH71,AF70) -> 67 | AG71: 67 | AH71: 67 | AK71: 2 | AL71: 3 | AM71: 2 | AN71: 1 | AO71: 1 | AP71: 1 | AQ71: 1 | AR71: 1 | AS71: 2 | AT71: 3 | AU71: 2 | AV71: 1 | AW71: 1 | AX71: 1 | AY71: 1 | AZ71: 1 | BA71: 2 | BB71: 2 | BC71: 2 | BE71: 2 | BH71: 300 | BI71: 238 | BJ71: 227 | BK71: 177 | BL71: 171 | BM71: 166 | BW71: - | BX71: - | BY71: 10 | CA71: 1279 | EL71: 67 | EN71: 67 | EO71: (60)
A72: 68 (62) | B72: Martin Antic | C72: Värends Hsk | D72: 1261 | F72: 10 | G72: 63.05 | I72: 195 | K72: 113 | L72: 150 | P72: 119 | Q72: 115 | T72: 136 | U72: 83 | V72: 53 | X72: 134 | Z72: 163 | AB72: 19 | AC72: - | AD72: - | AE72: 62 | AF72: 68 | AG72: 68 | AH72: 68 | AK72: 2 | AL72: 2 | AM72: 2 | AN72: 3 | AO72: 2 | AP72: 1 | AQ72: 1 | AR72: 2 | AS72: 3 | AT72: 2 | AU72: 1 | AV72: 2 | AW72: 3 | AX72: 3 | AY72: 2 | AZ72: 2 | BA72: 2 | BB72: 2 | BC72: 2 | BE72: 2 | BH72: 195 | BI72: 163 | BJ72: 150 | BK72: 136 | BL72: 134 | BM72: 119 | BN72: 115 | BO72: 113 | BP72: 83 | BQ72: 53 | BW72: - | BX72: - | BY72: 6 | CA72: 1261 | EL72: 68 | EN72: 68 | EO72: (62)
A73: 69 (66) | B73: Bengt-Erik Holmberg | C73: Tingsryd | D73: 1174 | F73: 6 | G73: 97.83333333 | K73: 205 | L73: 255 | O73: 187 | V73: 190 | X73: 133 | AA73: 204 | AB73: 19 | AC73: - | AD73: - | AE73: 66 | AF73: 69 | AG73: 69 | AH73: 69 | AK73: 1 | AL73: 1 | AM73: 2 | AN73: 3 | AO73: 2 | AP73: 1 | AQ73: 2 | AR73: 2 | AS73: 1 | AT73: 1 | AU73: 1 | AV73: 1 | AW73: 1 | AX73: 2 | AY73: 2 | AZ73: 2 | BA73: 2 | BB73: 1 | BC73: 2 | BE73: 2 | BH73: 255 | BI73: 205 | BJ73: 204 | BK73: 190 | BL73: 187 | BM73: 133 | BW73: - | BX73: - | BY73: 10 | CA73: 1174 | EL73: 69 | EN73: 69 | EO73: (66)
A74: 70 (68) | B74: Sune Olsson | C74: Korpen Nybro | D74: 1155 | F74: 6 | G74: 96.25 | K74: 217 | L74: 205 | T74: 184 | U74: 173 | V74: 166 | Z74: 210 | AB74: 19 | AC74: - | AD74: - | AE74: 68 | AF74: 70 | AG74: 70 | AH74: 70 | AK74: 1 | AL74: 1 | AM74: 2 | AN74: 3 | AO74: 2 | AP74: 1 | AQ74: 1 | AR74: 1 | AS74: 1 | AT74: 1 | AU74: 1 | AV74: 2 | AW74: 3 | AX74: 3 | AY74: 2 | AZ74: 1 | BA74: 1 | BB74: 2 | BC74: 2 | BE74: 2 | BH74: 217 | BI74: 210 | BJ74: 205 | BK74: 184 | BL74: 173 | BM74: 166 | BW74: - | BX74: - | BY74: 10 | CA74: 1155 | EL74: 70 | EN74: 70 | EO74: (68)
A75: 71 (75) | B75: Rune Karlsson | C75: Korpen Nybro | D75: 1115 | F75: 5 | G75: 111.5 | K75: 226 | L75: 216 | S75: 328 | T75: 188 | AA75: 157 | AB75: 19 | AC75: - | AD75: - | AE75: 75 | AF75: 71 | AG75: 71 | AH75: 71 | AK75: 1 | AL75: 1 | AM75: 2 | AN75: 3 | AO75: 2 | AP75: 1 | AQ75: 1 | AR75: 1 | AS75: 1 | AT75: 1 | AU75: 2 | AV75: 3 | AW75: 2 | AX75: 1 | AY75: 1 | AZ75: 1 | BA75: 1 | BB75: 1 | BC75: 2 | BE75: 2 | BH75: 328 | BI75: 226 | BJ75: 216 | BK75: 188 | BL75: 157 | BW75: - | BX75: - | BY75: 11 | CA75: 1115 | EL75: 71 | EN75: 71 | EO75: (75)
A76: 72 (71) | B76: Rickard Holgersson | C76: Sketnabäck | D76: 1093 | F76: 9 | G76: 60.72222222 | J76: 145 | K76: 151 | L76: 114 | Q76: 81 | R76: 94 | T76: 100 | U76: 152 | V76: 117 | AA76: 139 | AB76: 19 | AC76: - | AD76: - | AE76: 71 | AF76: 72 | AG76: 72 | AH76: 72 | AK76: 1 | AL76: 2 | AM76: 3 | AN76: 3 | AO76: 2 | AP76: 1 | AQ76: 1 | AR76: 1 | AS76: 2 | AT76: 3 | AU76: 2 | AV76: 2 | AW76: 3 | AX76: 3 | AY76: 2 | AZ76: 1 | BA76: 1 | BB76: 1 | BC76: 2 | BE76: 2 | BH76: 152 | BI76: 151 | BJ76: 145 | BK76: 139 | BL76: 117 | BM76: 114 | BN76: 100 | BO76: 94 | BP76: 81 | BW76: - | BX76: - | BY76: 7 | CA76: 1093 | EL76: 72 | EN76: 72 | EO76: (71)
A77: 73 (71) | B77: Ulf Seyer | C77: Alvesta | D77: 1079 | F77: 12 | G77: 44.95833333 | J77: 56 | L77: 111 | M77: 82 | O77: 102 | P77: 85 | Q77: 94 | S77: 119 | T77: 104 | U77: 88 | V77: 86 | Z77: 91 | AA77: 61 | AB77: 19 | AC77: - | AD77: - | AE77: 71 | AF77: 73 | AG77: 73 | AH77: 73 | AK77: 1 | AL77: 2 | AM77: 2 | AN77: 2 | AO77: 3 | AP77: 2 | AQ77: 2 | AR77: 3 | AS77: 3 | AT77: 2 | AU77: 2 | AV77: 3 | AW77: 3 | AX77: 3 | AY77: 2 | AZ77: 1 | BA77: 1 | BB77: 2 | BC77: 3 | BE77: 2 | BH77: 119 | BI77: 111 | BJ77: 104 | BK77: 102 | BL77: 94 | BM77: 91 | BN77: 88 | BO77: 86 | BP77: 85 | BQ77: 82 | BR77: 61 | BS77: 56 | BW77: - | BX77: - | BY77: 4 | CA77: 1079 | EL77: 73 | EN77: 73 | EO77: (71)
A78: =IF(BE78>1,AF78&" ("&AE78&")",AF78&" ("&AG78&")") -> 74 (73) | B78: Elin Olsson | C78: Dynapac | D78: 1060 | F78: 8 | G78: 66.25 | J78: 206 | K78: 123 | L78: 113 | Q78: 106 | R78: 80 | T78: 177 | U78: 158 | V78: 97 | AB78: 19 | AC78: - | AD78: - | AE78: 73 | AF78: 74 | AG78: 74 | AH78: 74 | AK78: 1 | AL78: 2 | AM78: 3 | AN78: 3 | AO78: 2 | AP78: 1 | AQ78: 1 | AR78: 1 | AS78: 2 | AT78: 3 | AU78: 2 | AV78: 2 | AW78: 3 | AX78: 3 | AY78: 2 | AZ78: 1 | BA78: 1 | BB78: 1 | BC78: 1 | BE78: 2 | BH78: 206 | BI78: 177 | BJ78: 158 | BK78: 123 | BL78: 113 | BM78: 106 | BN78: 97 | BO78: 80 | BW78: - | BX78: - | BY78: 8 | CA78: 1060 | EL78: 74 | EN78: 74 | EO78: (73)
A79: 75 (74) | B79: Mattias Olsson | C79: Dynapac | D79: 1059 | F79: 5 | G79: 105.9 | I79: 308 | J79: 206 | Q79: 185 | R79: 147 | V79: 213 | AB79: 19 | AC79: - | AD79: - | AE79: 74 | AF79: 75 | AG79: 75 | AH79: 75 | AK79: 2 | AL79: 3 | AM79: 2 | AN79: 1 | AO79: 1 | AP79: 1 | AQ79: 1 | AR79: 1 | AS79: 2 | AT79: 3 | AU79: 2 | AV79: 1 | AW79: 1 | AX79: 2 | AY79: 2 | AZ79: 1 | BA79: 1 | BB79: 1 | BC79: 1 | BE79: 2 | BH79: 308 | BI79: 213 | BJ79: 206 | BK79: 185 | BL79: 147 | BW79: - | BX79: - | BY79: 11 | CA79: 1059 | EL79: 75 | EN79: 75 | EO79: (74)
A80: 76 (82) | B80: Joel Sundahl | C80: Carlskrona | D80: 1012 | F80: 6 | G80: 84.33333333 | P80: 191 | U80: 131 | V80: 163 | Y80: 239 | Z80: 163 | AA80: 125 | AB80: 19 | AC80: - | AD80: - | AE80: 82 | AF80: 76 | AG80: 76 | AH80: 76 | AK80: 1 | AL80: 1 | AM80: 1 | AN80: 1 | AO80: 1 | AP80: 1 | AQ80: 1 | AR80: 2 | AS80: 2 | AT80: 1 | AU80: 1 | AV80: 1 | AW80: 2 | AX80: 3 | AY80: 2 | AZ80: 1 | BA80: 2 | BB80: 3 | BC80: 3 | BE80: 2 | BH80: 239 | BI80: 191 | BJ80: 163 | BK80: 163 | BL80: 131 | BM80: 125 | BW80: - | BX80: - | BY80: 10 | CA80: 1012 | EL80: 76 | EN80: 76 | EO80: (82)
A81: 77 (75) | B81: Louise Tollstam | C81: Dynapac | D81: 969 | F81: 7 | G81: 69.21428571 | I81: 153 | J81: 166 | K81: 135 | L81: 166 | Q81: 100 | R81: 98 | Y81: 151 | AB81: 19 | AC81: - | AD81: - | AE81: 75 | AF81: 77 | AG81: 77 | AH81: 77 | AK81: 2 | AL81: 3 | AM81: 3 | AN81: 3 | AO81: 2 | AP81: 1 | AQ81: 1 | AR81: 1 | AS81: 2 | AT81: 3 | AU81: 2 | AV81: 1 | AW81: 1 | AX81: 1 | AY81: 1 | AZ81: 1 | BA81: 2 | BB81: 2 | BC81: 1 | BE81: 2 | BH81: 166 | BI81: 166 | BJ81: 153 | BK81: 151 | BL81: 135 | BM81: 100 | BN81: 98 | BW81: - | BX81: - | BY81: 9 | CA81: 969 | EL81: 77 | EN81: 77 | EO81: (75)
A82: 78 (79) | B82: Gunnar Lundbeck | C82: Tingsryd | D82: 968 | F82: 8 | G82: 60.5 | I82: 177 | J82: 122 | P82: 76 | Q82: 71 | S82: 114 | V82: 142 | X82: 175 | AA82: 91 | AB82: 19 | AC82: - | AD82: - | AE82: 79 | AF82: 78 | AG82: 78 | AH82: 78 | AK82: 2 | AL82: 3 | AM82: 2 | AN82: 1 | AO82: 1 | AP82: 1 | AQ82: 1 | AR82: 2 | AS82: 3 | AT82: 2 | AU82: 2 | AV82: 2 | AW82: 1 | AX82: 2 | AY82: 2 | AZ82: 2 | BA82: 2 | BB82: 1 | BC82: 2 | BE82: 2 | BH82: 177 | BI82: 175 | BJ82: 142 | BK82: 122 | BL82: 114 | BM82: 91 | BN82: 76 | BO82: 71 | BW82: - | BX82: - | BY82: 8 | CA82: 968 | EL82: 78 | EN82: 78 | EO82: (79)
A83: 79 (78) | B83: Roger Frost | C83: Sibbamåla | D83: 948 | F83: 7 | G83: 67.71428571 | I83: 203 | J83: 138 | Q83: 76 | R83: 78 | U83: 140 | V83: 152 | Y83: 161 | AB83: 19 | AC83: - | AD83: - | AE83: 78 | AF83: 79 | AG83: 79 | AH83: 79 | AK83: 2 | AL83: 3 | AM83: 2 | AN83: 1 | AO83: 1 | AP83: 1 | AQ83: 1 | AR83: 1 | AS83: 2 | AT83: 3 | AU83: 2 | AV83: 1 | AW83: 2 | AX83: 3 | AY83: 2 | AZ83: 1 | BA83: 2 | BB83: 2 | BC83: 1 | BE83: 2 | BH83: 203 | BI83: 161 | BJ83: 152 | BK83: 140 | BL83: 138 | BM83: 78 | BN83: 76 | BW83: - | BX83: - | BY83: 9 | CA83: 948 | EL83: 79 | EN83: 79 | EO83: (78)
A84: 80 (79) | B84: Ingegerd Sjöstrand | C84: Hsk Tingzås | D84: 941 | F84: 8 | G84: 58.8125 | I84: 173 | J84: 175 | L84: 106 | O84: 120 | Q84: 116 | S84: 99 | U84: 69 | Z84: 83 | AB84: 19 | AC84: - | AD84: - | AE84: 79 | AF84: 80 | AG84: 80 | AH84: 80 | AK84: 2 | AL84: 3 | AM84: 2 | AN84: 2 | AO84: 2 | AP84: 1 | AQ84: 2 | AR84: 2 | AS84: 2 | AT84: 2 | AU84: 2 | AV84: 2 | AW84: 2 | AX84: 2 | AY84: 1 | AZ84: 1 | BA84: 1 | BB84: 2 | BC84: 2 | BE84: 2 | BH84: 175 | BI84: 173 | BJ84: 120 | BK84: 116 | BL84: 106 | BM84: 99 | BN84: 83 | BO84: 69 | BW84: - | BX84: - | BY84: 8 | CA84: 941 | EL84: 80 | EN84: 80 | EO84: (79)
A85: 81 (81) | B85: Markus Johansson | C85: Dynapac | D85: 920 | F85: 7 | G85: 65.71428571 | J85: 95 | K85: 60 | L85: 138 | Q85: 84 | R85: 139 | T85: 175 | U85: 229 | AB85: 19 | AC85: - | AD85: - | AE85: 81 | AF85: 81 | AG85: 81 | AH85: 81 | AK85: 1 | AL85: 2 | AM85: 3 | AN85: 3 | AO85: 2 | AP85: 1 | AQ85: 1 | AR85: 1 | AS85: 2 | AT85: 3 | AU85: 2 | AV85: 2 | AW85: 3 | AX85: 2 | AY85: 1 | AZ85: 1 | BA85: 1 | BB85: 1 | BC85: 1 | BE85: 2 | BH85: 229 | BI85: 175 | BJ85: 139 | BK85: 138 | BL85: 95 | BM85: 84 | BN85: 60 | BW85: - | BX85: - | BY85: 9 | CA85: 920 | EL85: 81 | EN85: 81 | EO85: (81)
A86: 82 (87) | B86: Sebastian Israelsson | C86: Sibbamåla | D86: 912 | F86: 7 | G86: 65.14285714 | K86: 108 | L86: 183 | P86: 177 | Q86: 115 | V86: 59 | Z86: 164 | AA86: 106 | AB86: 19 | AC86: - | AD86: - | AE86: 87 | AF86: 82 | AG86: 82 | AH86: 82 | AK86: 1 | AL86: 1 | AM86: 2 | AN86: 3 | AO86: 2 | AP86: 1 | AQ86: 1 | AR86: 2 | AS86: 3 | AT86: 2 | AU86: 1 | AV86: 1 | AW86: 1 | AX86: 2 | AY86: 2 | AZ86: 1 | BA86: 1 | BB86: 2 | BC86: 3 | BE86: 2 | BH86: 183 | BI86: 177 | BJ86: 164 | BK86: 115 | BL86: 108 | BM86: 106 | BN86: 59 | BW86: - | BX86: - | BY86: 9 | CA86: 912 | EL86: 82 | EN86: 82 | EO86: (87)
A87: 83 (87) | B87: Mikael Bodi | C87: Växjö Hsk | D87: 903 | F87: 6 | G87: 75.25 | P87: 191 | S87: 193 | V87: 172 | X87: 111 | Z87: 139 | AA87: 97 | AB87: 19 | AC87: - | AD87: - | AE87: 87 | AF87: 83 | AG87: 83 | AH87: 83 | AK87: 1 | AL87: 1 | AM87: 1 | AN87: 1 | AO87: 1 | AP87: 1 | AQ87: 1 | AR87: 2 | AS87: 2 | AT87: 1 | AU87: 2 | AV87: 2 | AW87: 1 | AX87: 2 | AY87: 2 | AZ87: 2 | BA87: 2 | BB87: 2 | BC87: 3 | BE87: 2 | BH87: 193 | BI87: 191 | BJ87: 172 | BK87: 139 | BL87: 111 | BM87: 97 | BW87: - | BX87: - | BY87: 10 | CA87: 903 | EL87: 83 | EN87: 83 | EO87: (87)
A88: 84 (85) | B88: Jonas Klarström | C88: Värends Hsk | D88: 876 | F88: 10 | G88: 43.8 | K88: 162 | L88: 116 | M88: 67 | P88: 48 | Q88: 88 | T88: 122 | V88: 72 | X88: 98 | Z88: 48 | AA88: 55 | AB88: 19 | AC88: - | AD88: - | AE88: 85 | AF88: 84 | AG88: 84 | AH88: 84 | AK88: 1 | AL88: 1 | AM88: 2 | AN88: 3 | AO88: 3 | AP88: 2 | AQ88: 1 | AR88: 2 | AS88: 3 | AT88: 2 | AU88: 1 | AV88: 2 | AW88: 2 | AX88: 2 | AY88: 2 | AZ88: 2 | BA88: 2 | BB88: 2 | BC88: 3 | BE88: 2 | BH88: 162 | BI88: 122 | BJ88: 116 | BK88: 98 | BL88: 88 | BM88: 72 | BN88: 67 | BO88: 55 | BP88: 48 | BQ88: 48 | BW88: - | BX88: - | BY88: 6 | CA88: 876 | EL88: 84 | EN88: 84 | EO88: (85)
A89: 85 (84) | B89: Kent Vikström | C89: Växjö | D89: 852 | F89: 4 | G89: 106.5 | I89: 247 | J89: 163 | M89: 214 | T89: 228 | AB89: 19 | AC89: - | AD89: - | AE89: 84 | AF89: 85 | AG89: 85 | AH89: 85 | AK89: 2 | AL89: 3 | AM89: 2 | AN89: 1 | AO89: 2 | AP89: 2 | AQ89: 1 | AR89: 1 | AS89: 1 | AT89: 1 | AU89: 1 | AV89: 2 | AW89: 2 | AX89: 1 | AY89: 1 | AZ89: 1 | BA89: 1 | BB89: 1 | BC89: 1 | BE89: 2 | BH89: 247 | BI89: 228 | BJ89: 214 | BK89: 163 | BW89: - | BX89: - | BY89: 12 | CA89: 852 | EL89: 85 | EN89: 85 | EO89: (84)
A90: 86 (85) | B90: Niclas Gunnarsson | C90: Sibbamåla | D90: 846 | F90: 5 | G90: 84.6 | I90: 202 | J90: 209 | Q90: 170 | U90: 144 | V90: 121 | AB90: 19 | AC90: - | AD90: - | AE90: 85 | AF90: 86 | AG90: 86 | AH90: 86 | AK90: 2 | AL90: 3 | AM90: 2 | AN90: 1 | AO90: 1 | AP90: 1 | AQ90: 1 | AR90: 1 | AS90: 2 | AT90: 2 | AU90: 1 | AV90: 1 | AW90: 2 | AX90: 3 | AY90: 2 | AZ90: 1 | BA90: 1 | BB90: 1 | BC90: 1 | BE90: 2 | BH90: 209 | BI90: 202 | BJ90: 170 | BK90: 144 | BL90: 121 | BW90: - | BX90: - | BY90: 11 | CA90: 846 | EL90: 86 | EN90: 86 | EO90: (85)
A91: 87 (96) | B91: Viktor Holgersson | C91: Sketnabäck | D91: 826 | F91: 7 | G91: 59 | K91: 158 | L91: 86 | P91: 110 | Q91: 71 | R91: 131 | U91: 157 | AA91: 113 | AB91: 19 | AC91: - | AD91: - | AE91: 96 | AF91: 87 | AG91: 87 | AH91: 87 | AK91: 1 | AL91: 1 | AM91: 2 | AN91: 3 | AO91: 2 | AP91: 1 | AQ91: 1 | AR91: 2 | AS91: 3 | AT91: 3 | AU91: 2 | AV91: 1 | AW91: 2 | AX91: 2 | AY91: 1 | AZ91: 1 | BA91: 1 | BB91: 1 | BC91: 2 | BE91: 2 | BH91: 158 | BI91: 157 | BJ91: 131 | BK91: 113 | BL91: 110 | BM91: 86 | BN91: 71 | BW91: - | BX91: - | BY91: 9 | CA91: 826 | EL91: 87 | EN91: 87 | EO91: (96)
A92: 88 (100) | B92: Nils-Åke Hansson | C92: Korpen Nybro | D92: 817 | F92: 5 | G92: 81.7 | T92: 123 | U92: 213 | V92: 178 | X92: 164 | AA92: 139 | AB92: 19 | AC92: - | AD92: - | AE92: 100 | AF92: 88 | AG92: 88 | AH92: 88 | AK92: 1 | AL92: 1 | AM92: 1 | AN92: 1 | AO92: 1 | AP92: 1 | AQ92: 1 | AR92: 1 | AS92: 1 | AT92: 1 | AU92: 1 | AV92: 2 | AW92: 3 | AX92: 3 | AY92: 2 | AZ92: 2 | BA92: 2 | BB92: 1 | BC92: 2 | BE92: 2 | BH92: 213 | BI92: 178 | BJ92: 164 | BK92: 139 | BL92: 123 | BW92: - | BX92: - | BY92: 11 | CA92: 817 | EL92: 88 | EN92: 88 | EO92: (100)
A93: =IF(BE93>1,AF93&" ("&AE93&")",AF93&" ("&AG93&")") -> 89 (90) | B93: Martin Björklund | C93: Sketnabäck | D93: 805 | F93: 5 | G93: 80.5 | K93: 134 | L93: 193 | O93: 205 | T93: 157 | V93: 116 | AB93: 19 | AC93: - | AD93: - | AE93: 90 | AF93: =IF(D93<D92,AH93,AF92) -> 89 | AG93: =IF(F93>1,ROW(89:89),"-") -> 89 | AH93: 89 | AK93: =COUNT($I$3,I93,H93) -> 1 | AL93: =COUNT($J$3,J93,I93) -> 1 | AM93: =COUNT($K$3,K93,J93) -> 2 | AN93: =COUNT($L$3,L93,K93) -> 3 | AO93: =COUNT($M$3,M93,L93) -> 2 | AP93: =COUNT($N$3,N93,M93) -> 1 | AQ93: =COUNT($O$3,O93,N93) -> 2 | AR93: =COUNT($P$3,P93,O93) -> 2 | AS93: =COUNT($Q$3,Q93,P93) -> 1 | AT93: =COUNT($R$3,R93,Q93) -> 1 | AU93: =COUNT($S$3,S93,R93) -> 1 | AV93: =COUNT($T$3,T93,S93) -> 2 | AW93: =COUNT($U$3,U93,T93) -> 2 | AX93: =COUNT($V$3,V93,U93) -> 2 | AY93: =COUNT($W$3,W93,V93) -> 2 | AZ93: =COUNT($X$3,X93,W93) -> 1 | BA93: =COUNT($Y$3,Y93,X93) -> 1 | BB93: =COUNT($Z$3,Z93,Y93) -> 1 | BC93: =COUNT($AA$3,AA93,Z93) -> 1 | BE93: =IF(H93="x",1,2) -> 2 | BH93: =IF($F93>0,LARGE($I93:$AA93,1),"") -> 205 | BI93: =IF($F93>1,LARGE($I93:$AA93,2),"") -> 193 | BJ93: =IF($F93>2,LARGE($I93:$AA93,3),"") -> 157 | BK93: =IF($F93>3,LARGE($I93:$AA93,4),"") -> 134 | BL93: =IF($F93>4,LARGE($I93:$AA93,5),"") -> 116 | BM93: =IF($F93>5,LARGE($I93:$AA93,6),"") ->  | BN93: =IF($F93>6,LARGE($I93:$AA93,7),"") ->  | BO93: =IF($F93>7,LARGE($I93:$AA93,8),"") ->  | BP93: =IF($F93>8,LARGE($I93:$AA93,9),"") ->  | BQ93: =IF($F93>9,LARGE($I93:$AA93,10),"") ->  | BR93: =IF($F93>10,LARGE($I93:$AA93,11),"") ->  | BS93: =IF($F93>11,LARGE($I93:$AA93,12),"") ->  | BT93: =IF($F93>12,LARGE($I93:$AA93,13),"") ->  | BU93: =IF($F93>13,LARGE($I93:$AA93,14),"") ->  | BV93: =IF($F93>14,LARGE($I93:$AA93,15),"") ->  | BW93: =IF($F93>13,LARGE($I93:$AA93,14),"-") -> - | BX93: =IF($F93>14,LARGE($I93:$AA93,15),"-") -> - | BY93: =SUM(AB93-F93)-3 -> 11 | CA93: =SUM(BH93:BV93) -> 805 | EL93: 90 | EN93: =IF(BE93>=1,AF93,"") -> 89 | EO93: =IF(BE93>1,"("&AE93&")","("&AG93&")") -> (90)
A94: 90 (75) | B94: Patrick Axelsson | C94: Alvesta | D94: 803 | F94: 4 | G94: 100.375 | O94: 165 | P94: 269 | Q94: 167 | Z94: 202 | AB94: 19 | AC94: - | AD94: - | AE94: 75 | AF94: 90 | AG94: 90 | AH94: 90 | AK94: 1 | AL94: 1 | AM94: 1 | AN94: 1 | AO94: 1 | AP94: 1 | AQ94: 2 | AR94: 3 | AS94: 3 | AT94: 2 | AU94: 1 | AV94: 1 | AW94: 1 | AX94: 1 | AY94: 1 | AZ94: 1 | BA94: 1 | BB94: 2 | BC94: 2 | BE94: 2 | BH94: 269 | BI94: 202 | BJ94: 167 | BK94: 165 | BW94: - | BX94: - | BY94: 12 | CA94: 803 | EL94: 91 | EN94: 90 | EO94: (75)
A95: 90 (91) | B95: Gunnel Karlsson | C95: Hsk Tingzås | D95: 803 | F95: 5 | G95: 80.3 | I95: 110 | J95: 163 | L95: 175 | S95: 202 | U95: 153 | AB95: 19 | AC95: - | AD95: - | AE95: 91 | AF95: 90 | AG95: 91 | AH95: 91 | AK95: 2 | AL95: 3 | AM95: 2 | AN95: 2 | AO95: 2 | AP95: 1 | AQ95: 1 | AR95: 1 | AS95: 1 | AT95: 1 | AU95: 2 | AV95: 2 | AW95: 2 | AX95: 2 | AY95: 1 | AZ95: 1 | BA95: 1 | BB95: 1 | BC95: 1 | BE95: 2 | BH95: 202 | BI95: 175 | BJ95: 163 | BK95: 153 | BL95: 110 | BW95: - | BX95: - | BY95: 11 | CA95: 803 | EL95: 92 | EN95: 90 | EO95: (91)
A96: 92 (87) | B96: Hans Johansson | C96: Tingsryd | D96: 802 | F96: 4 | G96: 100.25 | M96: 231 | V96: 140 | X96: 252 | AA96: 179 | AB96: 19 | AC96: - | AD96: - | AE96: 87 | AF96: 92 | AG96: 92 | AH96: 92 | AK96: 1 | AL96: 1 | AM96: 1 | AN96: 1 | AO96: 2 | AP96: 2 | AQ96: 1 | AR96: 1 | AS96: 1 | AT96: 1 | AU96: 1 | AV96: 1 | AW96: 1 | AX96: 2 | AY96: 2 | AZ96: 2 | BA96: 2 | BB96: 1 | BC96: 2 | BE96: 2 | BH96: 252 | BI96: 231 | BJ96: 179 | BK96: 140 | BW96: - | BX96: - | BY96: 12 | CA96: 802 | EL96: 93 | EN96: 92 | EO96: (87)
A97: 93 (92) | B97: Conny Bark | C97: Lessebo | D97: 741 | F97: 5 | G97: 74.1 | I97: 181 | J97: 147 | K97: 158 | L97: 138 | U97: 117 | AB97: 19 | AC97: - | AD97: - | AE97: 92 | AF97: 93 | AG97: 93 | AH97: 93 | AK97: 2 | AL97: 3 | AM97: 3 | AN97: 3 | AO97: 2 | AP97: 1 | AQ97: 1 | AR97: 1 | AS97: 1 | AT97: 1 | AU97: 1 | AV97: 1 | AW97: 2 | AX97: 2 | AY97: 1 | AZ97: 1 | BA97: 1 | BB97: 1 | BC97: 1 | BE97: 2 | BH97: 181 | BI97: 158 | BJ97: 147 | BK97: 138 | BL97: 117 | BW97: - | BX97: - | BY97: 11 | CA97: 741 | EL97: 89 | EN97: 93 | EO97: (92)
A98: 93 (92) | B98: Magnus Stenberg | C98: Hsk Tingzås | D98: 741 | F98: 4 | G98: 92.625 | N98: 197 | O98: 208 | V98: 192 | W98: 144 | AB98: 19 | AC98: - | AD98: - | AE98: 92 | AF98: 93 | AG98: 94 | AH98: 94 | AK98: 1 | AL98: 1 | AM98: 1 | AN98: 1 | AO98: 1 | AP98: 2 | AQ98: 3 | AR98: 2 | AS98: 1 | AT98: 1 | AU98: 1 | AV98: 1 | AW98: 1 | AX98: 2 | AY98: 3 | AZ98: 2 | BA98: 1 | BB98: 1 | BC98: 1 | BE98: 2 | BH98: 208 | BI98: 197 | BJ98: 192 | BK98: 144 | BW98: - | BX98: - | BY98: 12 | CA98: 741 | EL98: 94 | EN98: 93 | EO98: (92)
A99: 95 (98) | B99: Lisbeth Nygaard-Karlsson | C99: Tingsryd | D99: 720 | F99: 4 | G99: 90 | O99: 191 | S99: 179 | V99: 155 | AA99: 195 | AB99: 19 | AC99: - | AD99: - | AE99: 98 | AF99: 95 | AG99: 95 | AH99: 95 | AK99: 1 | AL99: 1 | AM99: 1 | AN99: 1 | AO99: 1 | AP99: 1 | AQ99: 2 | AR99: 2 | AS99: 1 | AT99: 1 | AU99: 2 | AV99: 2 | AW99: 1 | AX99: 2 | AY99: 2 | AZ99: 1 | BA99: 1 | BB99: 1 | BC99: 2 | BE99: 2 | BH99: 195 | BI99: 191 | BJ99: 179 | BK99: 155 | BW99: - | BX99: - | BY99: 12 | CA99: 720 | EL99: 95 | EN99: 95 | EO99: (98)
A100: 96 (82) | B100: Christer Grahn | C100: Lanternan | D100: 692 | F100: 4 | G100: 86.5 | I100: 185 | J100: 136 | K100: 183 | L100: 188 | AB100: 19 | AC100: - | AD100: - | AE100: 82 | AF100: 96 | AG100: 96 | AH100: 96 | AK100: 2 | AL100: 3 | AM100: 3 | AN100: 3 | AO100: 2 | AP100: 1 | AQ100: 1 | AR100: 1 | AS100: 1 | AT100: 1 | AU100: 1 | AV100: 1 | AW100: 1 | AX100: 1 | AY100: 1 | AZ100: 1 | BA100: 1 | BB100: 1 | BC100: 1 | BE100: 2 | BH100: 188 | BI100: 185 | BJ100: 183 | BK100: 136 | BW100: - | BX100: - | BY100: 12 | CA100: 692 | EL100: 96 | EN100: 96 | EO100: (82)
A101: 97 (92) | B101: Damian Barnasiak | C101: Växjö Hsk | D101: 644 | F101: 4 | G101: 80.5 | I101: 152 | M101: 107 | V101: 182 | Z101: 203 | AB101: 19 | AC101: - | AD101: - | AE101: 92 | AF101: 97 | AG101: 97 | AH101: 97 | AK101: 2 | AL101: 2 | AM101: 1 | AN101: 1 | AO101: 2 | AP101: 2 | AQ101: 1 | AR101: 1 | AS101: 1 | AT101: 1 | AU101: 1 | AV101: 1 | AW101: 1 | AX101: 2 | AY101: 2 | AZ101: 1 | BA101: 1 | BB101: 2 | BC101: 2 | BE101: 2 | BH101: 203 | BI101: 182 | BJ101: 152 | BK101: 107 | BW101: - | BX101: - | BY101: 12 | CA101: 644 | EL101: 97 | EN101: 97 | EO101: (92)
A102: 98 (95) | B102: Henry Johansson | C102: Korpen Åseda | D102: 608 | F102: 4 | G102: 76 | I102: 168 | M102: 144 | S102: 174 | U102: 122 | AB102: 19 | AC102: - | AD102: - | AE102: 95 | AF102: 98 | AG102: 98 | AH102: 98 | AK102: 2 | AL102: 2 | AM102: 1 | AN102: 1 | AO102: 2 | AP102: 2 | AQ102: 1 | AR102: 1 | AS102: 1 | AT102: 1 | AU102: 2 | AV102: 2 | AW102: 2 | AX102: 2 | AY102: 1 | AZ102: 1 | BA102: 1 | BB102: 1 | BC102: 1 | BE102: 2 | BH102: 174 | BI102: 168 | BJ102: 144 | BK102: 122 | BW102: - | BX102: - | BY102: 12 | CA102: 608 | EL102: 98 | EN102: 98 | EO102: (95)
A103: 99 (102) | B103: Bernt Olsson | C103: Jämjö Hsk | D103: 588 | F103: 3 | G103: 98 | J103: 216 | Q103: 56 | Y103: 316 | AB103: 19 | AC103: - | AD103: - | AE103: 102 | AF103: 99 | AG103: 99 | AH103: 99 | AK103: 1 | AL103: 2 | AM103: 2 | AN103: 1 | AO103: 1 | AP103: 1 | AQ103: 1 | AR103: 1 | AS103: 2 | AT103: 2 | AU103: 1 | AV103: 1 | AW103: 1 | AX103: 1 | AY103: 1 | AZ103: 1 | BA103: 2 | BB103: 2 | BC103: 1 | BE103: 2 | BH103: 316 | BI103: 216 | BJ103: 56 | BW103: - | BX103: - | BY103: 13 | CA103: 588 | EL103: 99 | EN103: 99 | EO103: (102)
A104: 100 (103) | B104: Kerstin Petersen | C104: Växjö | D104: 578 | F104: 4 | G104: 72.25 | I104: 137 | M104: 161 | S104: 155 | U104: 125 | AB104: 19 | AC104: - | AD104: - | AE104: 103 | AF104: 100 | AG104: 100 | AH104: 100 | AK104: 2 | AL104: 2 | AM104: 1 | AN104: 1 | AO104: 2 | AP104: 2 | AQ104: 1 | AR104: 1 | AS104: 1 | AT104: 1 | AU104: 2 | AV104: 2 | AW104: 2 | AX104: 2 | AY104: 1 | AZ104: 1 | BA104: 1 | BB104: 1 | BC104: 1 | BE104: 2 | BH104: 161 | BI104: 155 | BJ104: 137 | BK104: 125 | BW104: - | BX104: - | BY104: 12 | CA104: 578 | EL104: 100 | EN104: 100 | EO104: (103)
A105: 101 (104) | B105: Madelene Bergendorf | C105: Hsk Tingzås | D105: 566 | F105: 4 | G105: 70.75 | I105: 164 | Q105: 106 | S105: 180 | V105: 116 | AB105: 19 | AC105: - | AD105: - | AE105: 104 | AF105: 101 | AG105: 101 | AH105: 101 | AK105: 2 | AL105: 2 | AM105: 1 | AN105: 1 | AO105: 1 | AP105: 1 | AQ105: 1 | AR105: 1 | AS105: 2 | AT105: 2 | AU105: 2 | AV105: 2 | AW105: 1 | AX105: 2 | AY105: 2 | AZ105: 1 | BA105: 1 | BB105: 1 | BC105: 1 | BE105: 2 | BH105: 180 | BI105: 164 | BJ105: 116 | BK105: 106 | BW105: - | BX105: - | BY105: 12 | CA105: 566 | EL105: 101 | EN105: 101 | EO105: (104)
A106: 102 (98) | B106: Ulf Vadaszi | C106: Sibbamåla | D106: 559 | F106: 3 | G106: 93.16666667 | J106: 175 | Q106: 191 | R106: 193 | AB106: 19 | AC106: - | AD106: - | AE106: 98 | AF106: 102 | AG106: 102 | AH106: 102 | AK106: 1 | AL106: 2 | AM106: 2 | AN106: 1 | AO106: 1 | AP106: 1 | AQ106: 1 | AR106: 1 | AS106: 2 | AT106: 3 | AU106: 2 | AV106: 1 | AW106: 1 | AX106: 1 | AY106: 1 | AZ106: 1 | BA106: 1 | BB106: 1 | BC106: 1 | BE106: 2 | BH106: 193 | BI106: 191 | BJ106: 175 | BW106: - | BX106: - | BY106: 13 | CA106: 559 | EL106: 103 | EN106: 102 | EO106: (98)
A107: 103 (96) | B107: Ronnie Pettersson | C107: Tingsryd | D107: 558 | F107: 4 | G107: 69.75 | O107: 179 | P107: 133 | Q107: 89 | S107: 157 | AB107: 19 | AC107: - | AD107: - | AE107: 96 | AF107: 103 | AG107: 103 | AH107: 103 | AK107: 1 | AL107: 1 | AM107: 1 | AN107: 1 | AO107: 1 | AP107: 1 | AQ107: 2 | AR107: 3 | AS107: 3 | AT107: 2 | AU107: 2 | AV107: 2 | AW107: 1 | AX107: 1 | AY107: 1 | AZ107: 1 | BA107: 1 | BB107: 1 | BC107: 1 | BE107: 2 | BH107: 179 | BI107: 157 | BJ107: 133 | BK107: 89 | BW107: - | BX107: - | BY107: 12 | CA107: 558 | EL107: 104 | EN107: 103 | EO107: (96)
A108: 104 (105) | B108: Kjell Rydh | C108: Korpen Nybro | D108: 551 | F108: 4 | G108: 68.875 | K108: 146 | L108: 149 | T108: 135 | X108: 121 | AB108: 19 | AC108: - | AD108: - | AE108: 105 | AF108: 104 | AG108: 104 | AH108: 104 | AK108: 1 | AL108: 1 | AM108: 2 | AN108: 3 | AO108: 2 | AP108: 1 | AQ108: 1 | AR108: 1 | AS108: 1 | AT108: 1 | AU108: 1 | AV108: 2 | AW108: 2 | AX108: 1 | AY108: 1 | AZ108: 2 | BA108: 2 | BB108: 1 | BC108: 1 | BE108: 2 | BH108: 149 | BI108: 146 | BJ108: 135 | BK108: 121 | BW108: - | BX108: - | BY108: 12 | CA108: 551 | EL108: 105 | EN108: 104 | EO108: (105)
A109: 105 (100) | B109: Jan Lundin | C109: Tingsryd | D109: 539 | F109: 3 | G109: 89.83333333 | Q109: 172 | U109: 213 | V109: 154 | AB109: 19 | AC109: - | AD109: - | AE109: 100 | AF109: 105 | AG109: 105 | AH109: 105 | AK109: 1 | AL109: 1 | AM109: 1 | AN109: 1 | AO109: 1 | AP109: 1 | AQ109: 1 | AR109: 1 | AS109: 2 | AT109: 2 | AU109: 1 | AV109: 1 | AW109: 2 | AX109: 3 | AY109: 2 | AZ109: 1 | BA109: 1 | BB109: 1 | BC109: 1 | BE109: 2 | BH109: 213 | BI109: 172 | BJ109: 154 | BW109: - | BX109: - | BY109: 13 | CA109: 539 | EL109: 106 | EN109: 105 | EO109: (100)
A110: 105 (106) | B110: Roland Andreasson | C110: Lanternan | D110: 539 | F110: 3 | G110: 89.83333333 | R110: 182 | S110: 202 | V110: 155 | AB110: 19 | AC110: - | AD110: - | AE110: 106 | AF110: 105 | AG110: 106 | AH110: 106 | AK110: 1 | AL110: 1 | AM110: 1 | AN110: 1 | AO110: 1 | AP110: 1 | AQ110: 1 | AR110: 1 | AS110: 1 | AT110: 2 | AU110: 3 | AV110: 2 | AW110: 1 | AX110: 2 | AY110: 2 | AZ110: 1 | BA110: 1 | BB110: 1 | BC110: 1 | BE110: 2 | BH110: 202 | BI110: 182 | BJ110: 155 | BW110: - | BX110: - | BY110: 13 | CA110: 539 | EL110: 107 | EN110: 105 | EO110: (106)
A111: 107 (107) | B111: Linnea Gneupel | C111: Sibbamåla | D111: 506 | F111: 5 | G111: 50.6 | K111: 101 | L111: 97 | O111: 107 | Q111: 114 | R111: 87 | AB111: 19 | AC111: - | AD111: - | AE111: 107 | AF111: 107 | AG111: 107 | AH111: 107 | AK111: 1 | AL111: 1 | AM111: 2 | AN111: 3 | AO111: 2 | AP111: 1 | AQ111: 2 | AR111: 2 | AS111: 2 | AT111: 3 | AU111: 2 | AV111: 1 | AW111: 1 | AX111: 1 | AY111: 1 | AZ111: 1 | BA111: 1 | BB111: 1 | BC111: 1 | BE111: 2 | BH111: 114 | BI111: 107 | BJ111: 101 | BK111: 97 | BL111: 87 | BW111: - | BX111: - | BY111: 11 | CA111: 506 | EL111: 108 | EN111: 107 | EO111: (107)
A112: 107 (107) | B112: Therese Frost | C112: Sibbamåla | D112: 506 | F112: 5 | G112: 50.6 | I112: 108 | J112: 167 | U112: 59 | V112: 80 | Y112: 92 | AB112: 19 | AC112: - | AD112: - | AE112: 107 | AF112: 107 | AG112: 108 | AH112: 108 | AK112: 2 | AL112: 3 | AM112: 2 | AN112: 1 | AO112: 1 | AP112: 1 | AQ112: 1 | AR112: 1 | AS112: 1 | AT112: 1 | AU112: 1 | AV112: 1 | AW112: 2 | AX112: 3 | AY112: 2 | AZ112: 1 | BA112: 2 | BB112: 2 | BC112: 1 | BE112: 2 | BH112: 167 | BI112: 108 | BJ112: 92 | BK112: 80 | BL112: 59 | BW112: - | BX112: - | BY112: 11 | CA112: 506 | EL112: 102 | EN112: 107 | EO112: (107)
A113: 109 (111) | B113: Gunilla Andersson | C113: Hsk Tingzås | D113: 502 | F113: 4 | G113: 62.75 | Q113: 117 | S113: 139 | T113: 160 | U113: 86 | AB113: 19 | AC113: - | AD113: - | AE113: 111 | AF113: 109 | AG113: 109 | AH113: 109 | AK113: 1 | AL113: 1 | AM113: 1 | AN113: 1 | AO113: 1 | AP113: 1 | AQ113: 1 | AR113: 1 | AS113: 2 | AT113: 2 | AU113: 2 | AV113: 3 | AW113: 3 | AX113: 2 | AY113: 1 | AZ113: 1 | BA113: 1 | BB113: 1 | BC113: 1 | BE113: 2 | BH113: 160 | BI113: 139 | BJ113: 117 | BK113: 86 | BW113: - | BX113: - | BY113: 12 | CA113: 502 | EL113: 109 | EN113: 109 | EO113: (111)
A114: 110 (112) | B114: Janne Larsson | C114: Mulde VK | D114: 484 | F114: 3 | G114: 80.66666667 | N114: 127 | O114: 204 | W114: 153 | AB114: 19 | AC114: - | AD114: - | AE114: 112 | AF114: 110 | AG114: 110 | AH114: 110 | AK114: 1 | AL114: 1 | AM114: 1 | AN114: 1 | AO114: 1 | AP114: 2 | AQ114: 3 | AR114: 2 | AS114: 1 | AT114: 1 | AU114: 1 | AV114: 1 | AW114: 1 | AX114: 1 | AY114: 2 | AZ114: 2 | BA114: 1 | BB114: 1 | BC114: 1 | BE114: 2 | BH114: 204 | BI114: 153 | BJ114: 127 | BW114: - | BX114: - | BY114: 13 | CA114: 484 | EL114: 110 | EN114: 110 | EO114: (112)
A115: 111 (113) | B115: Ewa Malmqvist | C115: Jämjö Hsk | D115: 476 | F115: 3 | G115: 79.33333333 | J115: 185 | Q115: 105 | Y115: 186 | AB115: 19 | AC115: - | AD115: - | AE115: 113 | AF115: 111 | AG115: 111 | AH115: 111 | AK115: 1 | AL115: 2 | AM115: 2 | AN115: 1 | AO115: 1 | AP115: 1 | AQ115: 1 | AR115: 1 | AS115: 2 | AT115: 2 | AU115: 1 | AV115: 1 | AW115: 1 | AX115: 1 | AY115: 1 | AZ115: 1 | BA115: 2 | BB115: 2 | BC115: 1 | BE115: 2 | BH115: 186 | BI115: 185 | BJ115: 105 | BW115: - | BX115: - | BY115: 13 | CA115: 476 | EL115: 116 | EN115: 111 | EO115: (113)
A116: 112 (115) | B116: Lars-Åke Karlsson | C116: Jämjö Hsk | D116: 470 | F116: 3 | G116: 78.33333333 | J116: 140 | Q116: 129 | Y116: 201 | AB116: 19 | AC116: - | AD116: - | AE116: 115 | AF116: 112 | AG116: 112 | AH116: 112 | AK116: 1 | AL116: 2 | AM116: 2 | AN116: 1 | AO116: 1 | AP116: 1 | AQ116: 1 | AR116: 1 | AS116: 2 | AT116: 2 | AU116: 1 | AV116: 1 | AW116: 1 | AX116: 1 | AY116: 1 | AZ116: 1 | BA116: 2 | BB116: 2 | BC116: 1 | BE116: 2 | BH116: 201 | BI116: 140 | BJ116: 129 | BW116: - | BX116: - | BY116: 13 | CA116: 470 | EL116: 111 | EN116: 112 | EO116: (115)
A117: 113 (123) | B117: Risto Selming | C117: Korpen Nybro | D117: 459 | F117: 3 | G117: 76.5 | V117: 92 | Z117: 171 | AA117: 196 | AB117: 19 | AC117: - | AD117: - | AE117: 123 | AF117: 113 | AG117: 113 | AH117: 113 | AK117: 1 | AL117: 1 | AM117: 1 | AN117: 1 | AO117: 1 | AP117: 1 | AQ117: 1 | AR117: 1 | AS117: 1 | AT117: 1 | AU117: 1 | AV117: 1 | AW117: 1 | AX117: 2 | AY117: 2 | AZ117: 1 | BA117: 1 | BB117: 2 | BC117: 3 | BE117: 2 | BH117: 196 | BI117: 171 | BJ117: 92 | BW117: - | BX117: - | BY117: 13 | CA117: 459 | EL117: 112 | EN117: 113 | EO117: (123)
A118: 114 (116) | B118: Solveig Brincner | C118: Värends Hsk | D118: 450 | F118: 7 | G118: 32.14285714 | I118: 71 | L118: 58 | O118: 73 | P118: 68 | Q118: 63 | U118: 48 | Z118: 69 | AB118: 19 | AC118: - | AD118: - | AE118: 116 | AF118: 114 | AG118: 114 | AH118: 114 | AK118: 2 | AL118: 2 | AM118: 1 | AN118: 2 | AO118: 2 | AP118: 1 | AQ118: 2 | AR118: 3 | AS118: 3 | AT118: 2 | AU118: 1 | AV118: 1 | AW118: 2 | AX118: 2 | AY118: 1 | AZ118: 1 | BA118: 1 | BB118: 2 | BC118: 2 | BE118: 2 | BH118: 73 | BI118: 71 | BJ118: 69 | BK118: 68 | BL118: 63 | BM118: 58 | BN118: 48 | BW118: - | BX118: - | BY118: 9 | CA118: 450 | EL118: 114 | EN118: 114 | EO118: (116)
A119: 115 (117) | B119: Anna Stenberg | C119: Hsk Tingzås | D119: 447 | F119: 3 | G119: 74.5 | N119: 169 | O119: 152 | V119: 126 | AB119: 19 | AC119: - | AD119: - | AE119: 117 | AF119: 115 | AG119: 115 | AH119: 115 | AK119: 1 | AL119: 1 | AM119: 1 | AN119: 1 | AO119: 1 | AP119: 2 | AQ119: 3 | AR119: 2 | AS119: 1 | AT119: 1 | AU119: 1 | AV119: 1 | AW119: 1 | AX119: 2 | AY119: 2 | AZ119: 1 | BA119: 1 | BB119: 1 | BC119: 1 | BE119: 2 | BH119: 169 | BI119: 152 | BJ119: 126 | BW119: - | BX119: - | BY119: 13 | CA119: 447 | EL119: 115 | EN119: 115 | EO119: (117)
A120: 116 (118) | B120: Rikard Åberg | C120: Alvesta | D120: 446 | F120: 4 | G120: 55.75 | M120: 85 | O120: 87 | Q120: 83 | S120: 191 | AB120: 19 | AC120: - | AD120: - | AE120: 118 | AF120: 116 | AG120: 116 | AH120: 116 | AK120: 1 | AL120: 1 | AM120: 1 | AN120: 1 | AO120: 2 | AP120: 2 | AQ120: 2 | AR120: 2 | AS120: 2 | AT120: 2 | AU120: 2 | AV120: 2 | AW120: 1 | AX120: 1 | AY120: 1 | AZ120: 1 | BA120: 1 | BB120: 1 | BC120: 1 | BE120: 2 | BH120: 191 | BI120: 87 | BJ120: 85 | BK120: 83 | BW120: - | BX120: - | BY120: 12 | CA120: 446 | EL120: 117 | EN120: 116 | EO120: (118)
A121: 117 (119) | B121: Nathalie Jonasson | C121: Värends Hsk | D121: 444 | F121: 5 | G121: 44.4 | I121: 49 | M121: 66 | V121: 106 | X121: 79 | Z121: 144 | AB121: 19 | AC121: - | AD121: - | AE121: 119 | AF121: 117 | AG121: 117 | AH121: 117 | AK121: 2 | AL121: 2 | AM121: 1 | AN121: 1 | AO121: 2 | AP121: 2 | AQ121: 1 | AR121: 1 | AS121: 1 | AT121: 1 | AU121: 1 | AV121: 1 | AW121: 1 | AX121: 2 | AY121: 2 | AZ121: 2 | BA121: 2 | BB121: 2 | BC121: 2 | BE121: 2 | BH121: 144 | BI121: 106 | BJ121: 79 | BK121: 66 | BL121: 49 | BW121: - | BX121: - | BY121: 11 | CA121: 444 | EL121: 118 | EN121: 117 | EO121: (119)
A122: 118 (120) | B122: Marianne Karlsson | C122: Jämjö Hsk | D122: 442 | F122: 3 | G122: 73.66666667 | J122: 141 | Q122: 120 | Y122: 181 | AB122: 19 | AC122: - | AD122: - | AE122: 120 | AF122: 118 | AG122: 118 | AH122: 118 | AK122: 1 | AL122: 2 | AM122: 2 | AN122: 1 | AO122: 1 | AP122: 1 | AQ122: 1 | AR122: 1 | AS122: 2 | AT122: 2 | AU122: 1 | AV122: 1 | AW122: 1 | AX122: 1 | AY122: 1 | AZ122: 1 | BA122: 2 | BB122: 2 | BC122: 1 | BE122: 2 | BH122: 181 | BI122: 141 | BJ122: 120 | BW122: - | BX122: - | BY122: 13 | CA122: 442 | EL122: 119 | EN122: 118 | EO122: (120)
A123: 119 (107) | B123: Lennart Karlsson | C123: Tingsryd | D123: 441 | F123: 3 | G123: 73.5 | O123: 192 | V123: 122 | AA123: 127 | AB123: 19 | AC123: - | AD123: - | AE123: 107 | AF123: 119 | AG123: 119 | AH123: 119 | AK123: 1 | AL123: 1 | AM123: 1 | AN123: 1 | AO123: 1 | AP123: 1 | AQ123: 2 | AR123: 2 | AS123: 1 | AT123: 1 | AU123: 1 | AV123: 1 | AW123: 1 | AX123: 2 | AY123: 2 | AZ123: 1 | BA123: 1 | BB123: 1 | BC123: 2 | BE123: 2 | BH123: 192 | BI123: 127 | BJ123: 122 | BW123: - | BX123: - | BY123: 13 | CA123: 441 | EL123: 120 | EN123: 119 | EO123: (107)
A124: 120 (133) | B124: Anne-Marie Larsson | C124: Tingsryd | D124: 425 | F124: 3 | G124: 70.83333333 | V124: 165 | X124: 145 | AA124: 115 | AB124: 19 | AC124: - | AD124: - | AE124: 133 | AF124: 120 | AG124: 120 | AH124: 120 | AK124: 1 | AL124: 1 | AM124: 1 | AN124: 1 | AO124: 1 | AP124: 1 | AQ124: 1 | AR124: 1 | AS124: 1 | AT124: 1 | AU124: 1 | AV124: 1 | AW124: 1 | AX124: 2 | AY124: 2 | AZ124: 2 | BA124: 2 | BB124: 1 | BC124: 2 | BE124: 2 | BH124: 165 | BI124: 145 | BJ124: 115 | BW124: - | BX124: - | BY124: 13 | CA124: 425 | EL124: 121 | EN124: 120 | EO124: (133)
A125: =IF(BE125>1,AF125&" ("&AE125&")",AF125&" ("&AG125&")") -> 121 (121) | B125: Bengt-Arne Andersson | C125: Mulde VK | D125: 417 | F125: 3 | G125: 69.5 | N125: 151 | O125: 158 | W125: 108 | AB125: 19 | AC125: - | AD125: - | AE125: 121 | AF125: =IF(D125<D124,AH125,AF124) -> 121 | AG125: =IF(F125>1,ROW(121:121),"-") -> 121 | AH125: 121 | AK125: =COUNT($I$3,I125,H125) -> 1 | AL125: =COUNT($J$3,J125,I125) -> 1 | AM125: =COUNT($K$3,K125,J125) -> 1 | AN125: =COUNT($L$3,L125,K125) -> 1 | AO125: =COUNT($M$3,M125,L125) -> 1 | AP125: =COUNT($N$3,N125,M125) -> 2 | AQ125: =COUNT($O$3,O125,N125) -> 3 | AR125: =COUNT($P$3,P125,O125) -> 2 | AS125: =COUNT($Q$3,Q125,P125) -> 1 | AT125: =COUNT($R$3,R125,Q125) -> 1 | AU125: =COUNT($S$3,S125,R125) -> 1 | AV125: =COUNT($T$3,T125,S125) -> 1 | AW125: =COUNT($U$3,U125,T125) -> 1 | AX125: =COUNT($V$3,V125,U125) -> 1 | AY125: =COUNT($W$3,W125,V125) -> 2 | AZ125: =COUNT($X$3,X125,W125) -> 2 | BA125: =COUNT($Y$3,Y125,X125) -> 1 | BB125: =COUNT($Z$3,Z125,Y125) -> 1 | BC125: =COUNT($AA$3,AA125,Z125) -> 1 | BE125: =IF(H125="x",1,2) -> 2 | BH125: =IF($F125>0,LARGE($I125:$AA125,1),"") -> 158 | BI125: =IF($F125>1,LARGE($I125:$AA125,2),"") -> 151 | BJ125: =IF($F125>2,LARGE($I125:$AA125,3),"") -> 108 | BK125: =IF($F125>3,LARGE($I125:$AA125,4),"") ->  | BL125: =IF($F125>4,LARGE($I125:$AA125,5),"") ->  | BM125: =IF($F125>5,LARGE($I125:$AA125,6),"") ->  | BN125: =IF($F125>6,LARGE($I125:$AA125,7),"") ->  | BO125: =IF($F125>7,LARGE($I125:$AA125,8),"") ->  | BP125: =IF($F125>8,LARGE($I125:$AA125,9),"") ->  | BQ125: =IF($F125>9,LARGE($I125:$AA125,10),"") ->  | BR125: =IF($F125>10,LARGE($I125:$AA125,11),"") ->  | BS125: =IF($F125>11,LARGE($I125:$AA125,12),"") ->  | BT125: =IF($F125>12,LARGE($I125:$AA125,13),"") ->  | BU125: =IF($F125>13,LARGE($I125:$AA125,14),"") ->  | BV125: =IF($F125>14,LARGE($I125:$AA125,15),"") ->  | BW125: =IF($F125>13,LARGE($I125:$AA125,14),"-") -> - | BX125: =IF($F125>14,LARGE($I125:$AA125,15),"-") -> - | BY125: =SUM(AB125-F125)-3 -> 13 | CA125: =SUM(BH125:BV125) -> 417 | EL125: 127 | EN125: =IF(BE125>=1,AF125,"") -> 121 | EO125: =IF(BE125>1,"("&AE125&")","("&AG125&")") -> (121)
A126: 121 (121) | B126: Tekla Andersson | C126: Värends Hsk | D126: 417 | F126: 6 | G126: 34.75 | I126: 37 | M126: 44 | P126: 93 | V126: 102 | X126: 50 | Z126: 91 | AB126: 19 | AC126: - | AD126: - | AE126: 121 | AF126: 121 | AG126: 122 | AH126: 122 | AK126: 2 | AL126: 2 | AM126: 1 | AN126: 1 | AO126: 2 | AP126: 2 | AQ126: 1 | AR126: 2 | AS126: 2 | AT126: 1 | AU126: 1 | AV126: 1 | AW126: 1 | AX126: 2 | AY126: 2 | AZ126: 2 | BA126: 2 | BB126: 2 | BC126: 2 | BE126: 2 | BH126: 102 | BI126: 93 | BJ126: 91 | BK126: 50 | BL126: 44 | BM126: 37 | BW126: - | BX126: - | BY126: 10 | CA126: 417 | EL126: 122 | EN126: 121 | EO126: (121)
A127: 123 (123) | B127: Krister Nygren | C127: Korpen Åseda | D127: 396 | F127: 2 | G127: 99 | I127: 252 | S127: 144 | AB127: 19 | AC127: - | AD127: - | AE127: 123 | AF127: 123 | AG127: 123 | AH127: 123 | AK127: 2 | AL127: 2 | AM127: 1 | AN127: 1 | AO127: 1 | AP127: 1 | AQ127: 1 | AR127: 1 | AS127: 1 | AT127: 1 | AU127: 2 | AV127: 2 | AW127: 1 | AX127: 1 | AY127: 1 | AZ127: 1 | BA127: 1 | BB127: 1 | BC127: 1 | BE127: 2 | BH127: 252 | BI127: 144 | BW127: - | BX127: - | BY127: 14 | CA127: 396 | EL127: 123 | EN127: 123 | EO127: (123)
A128: 124 (126) | B128: Jan-Inge Ahlgren | C128: Mulde VK | D128: 381 | F128: 2 | G128: 95.25 | N128: 170 | W128: 211 | AB128: 19 | AC128: - | AD128: - | AE128: 126 | AF128: 124 | AG128: 124 | AH128: 124 | AK128: 1 | AL128: 1 | AM128: 1 | AN128: 1 | AO128: 1 | AP128: 2 | AQ128: 2 | AR128: 1 | AS128: 1 | AT128: 1 | AU128: 1 | AV128: 1 | AW128: 1 | AX128: 1 | AY128: 2 | AZ128: 2 | BA128: 1 | BB128: 1 | BC128: 1 | BE128: 2 | BH128: 211 | BI128: 170 | BW128: - | BX128: - | BY128: 14 | CA128: 381 | EL128: 124 | EN128: 124 | EO128: (126)
A129: 125 (127) | B129: Elisabeth Brisendahl | C129: Tingsryd | D129: 378 | F129: 2 | G129: 94.5 | I129: 199 | S129: 179 | AB129: 19 | AC129: - | AD129: - | AE129: 127 | AF129: 125 | AG129: 125 | AH129: 125 | AK129: 2 | AL129: 2 | AM129: 1 | AN129: 1 | AO129: 1 | AP129: 1 | AQ129: 1 | AR129: 1 | AS129: 1 | AT129: 1 | AU129: 2 | AV129: 2 | AW129: 1 | AX129: 1 | AY129: 1 | AZ129: 1 | BA129: 1 | BB129: 1 | BC129: 1 | BE129: 2 | BH129: 199 | BI129: 179 | BW129: - | BX129: - | BY129: 14 | CA129: 378 | EL129: 125 | EN129: 125 | EO129: (127)
A130: 126 (128) | B130: Göte Rosberg | C130: Korpen Åseda | D130: 345 | F130: 2 | G130: 86.25 | I130: 197 | S130: 148 | AB130: 19 | AC130: - | AD130: - | AE130: 128 | AF130: 126 | AG130: 126 | AH130: 126 | AK130: 2 | AL130: 2 | AM130: 1 | AN130: 1 | AO130: 1 | AP130: 1 | AQ130: 1 | AR130: 1 | AS130: 1 | AT130: 1 | AU130: 2 | AV130: 2 | AW130: 1 | AX130: 1 | AY130: 1 | AZ130: 1 | BA130: 1 | BB130: 1 | BC130: 1 | BE130: 2 | BH130: 197 | BI130: 148 | BW130: - | BX130: - | BY130: 14 | CA130: 345 | EL130: 126 | EN130: 126 | EO130: (128)
A131: 127 (130) | B131: Susanne Andersson | C131: Värends Hsk | D131: 336 | F131: 3 | G131: 56 | I131: 160 | M131: 78 | X131: 98 | AB131: 19 | AC131: - | AD131: - | AE131: 130 | AF131: 127 | AG131: 127 | AH131: 127 | AK131: 2 | AL131: 2 | AM131: 1 | AN131: 1 | AO131: 2 | AP131: 2 | AQ131: 1 | AR131: 1 | AS131: 1 | AT131: 1 | AU131: 1 | AV131: 1 | AW131: 1 | AX131: 1 | AY131: 1 | AZ131: 2 | BA131: 2 | BB131: 1 | BC131: 1 | BE131: 2 | BH131: 160 | BI131: 98 | BJ131: 78 | BW131: - | BX131: - | BY131: 13 | CA131: 336 | EL131: 113 | EN131: 127 | EO131: (130)
A132: 128 (131) | B132: Bertil Olsson | C132: Jämjö Hsk | D132: 335 | F132: 2 | G132: 83.75 | J132: 254 | Q132: 81 | AB132: 19 | AC132: - | AD132: - | AE132: 131 | AF132: 128 | AG132: 128 | AH132: 128 | AK132: 1 | AL132: 2 | AM132: 2 | AN132: 1 | AO132: 1 | AP132: 1 | AQ132: 1 | AR132: 1 | AS132: 2 | AT132: 2 | AU132: 1 | AV132: 1 | AW132: 1 | AX132: 1 | AY132: 1 | AZ132: 1 | BA132: 1 | BB132: 1 | BC132: 1 | BE132: 2 | BH132: 254 | BI132: 81 | BW132: - | BX132: - | BY132: 14 | CA132: 335 | EL132: 128 | EN132: 128 | EO132: (131)
A133: 129 (132) | B133: Kent-Åke Alriksson | C133: Sibbamåla | D133: =SUM(BH133:BT133) -> 325 | F133: =COUNT(I133:AA133) -> 4 | G133: =SUM((CA133)/(F133*2)) -> 40.625 | P133: 107 | Q133: 47 | R133: 105 | S133: 66 | AB133: =SUM($I$3:$AA$3) -> 19 | AC133: =BW133 -> - | AD133: =BX133 -> - | AE133: 132 | AF133: 129 | AG133: 129 | AH133: 129 | AK133: 1 | AL133: 1 | AM133: 1 | AN133: 1 | AO133: 1 | AP133: 1 | AQ133: 1 | AR133: 2 | AS133: 3 | AT133: 3 | AU133: 3 | AV133: 2 | AW133: 1 | AX133: 1 | AY133: 1 | AZ133: 1 | BA133: 1 | BB133: 1 | BC133: 1 | BE133: 2 | BH133: 107 | BI133: 105 | BJ133: 66 | BK133: 47 | BW133: - | BX133: - | BY133: 12 | CA133: 325 | EL133: 129 | EN133: 129 | EO133: (132)
A134: 130 (133) | B134: Anders Alriksson | C134: Dynapac | D134: 319 | F134: 2 | G134: 79.75 | J134: 188 | Q134: 131 | AB134: 19 | AC134: - | AD134: - | AE134: 133 | AF134: 130 | AG134: 130 | AH134: 130 | AK134: 1 | AL134: 2 | AM134: 2 | AN134: 1 | AO134: 1 | AP134: 1 | AQ134: 1 | AR134: 1 | AS134: 2 | AT134: 2 | AU134: 1 | AV134: 1 | AW134: 1 | AX134: 1 | AY134: 1 | AZ134: 1 | BA134: 1 | BB134: 1 | BC134: 1 | BE134: 2 | BH134: 188 | BI134: 131 | BW134: - | BX134: - | BY134: 14 | CA134: 319 | EL134: 130 | EN134: 130 | EO134: (133)
A135: 131 (107) | B135: Robert Johansson | C135: Lessebo Hsk | D135: 315 | F135: 1 | G135: 157.5 | X135: 315 | AB135: 19 | AC135: - | AD135: - | AE135: 107 | AF135: 131 | AG135: - | AH135: 131 | AK135: 1 | AL135: 1 | AM135: 1 | AN135: 1 | AO135: 1 | AP135: 1 | AQ135: 1 | AR135: 1 | AS135: 1 | AT135: 1 | AU135: 1 | AV135: 1 | AW135: 1 | AX135: 1 | AY135: 1 | AZ135: 2 | BA135: 2 | BB135: 1 | BC135: 1 | BE135: 2 | BH135: 315 | BW135: - | BX135: - | BY135: 15 | CA135: 315 | EL135: 131 | EN135: 131 | EO135: (107)
A136: 132 (135) | B136: Berit Gustavsson | C136: Korpen Nybro | D136: 306 | F136: 2 | G136: 76.5 | S136: 187 | T136: 119 | AB136: 19 | AC136: - | AD136: - | AE136: 135 | AF136: 132 | AG136: 132 | AH136: 132 | AK136: 1 | AL136: 1 | AM136: 1 | AN136: 1 | AO136: 1 | AP136: 1 | AQ136: 1 | AR136: 1 | AS136: 1 | AT136: 1 | AU136: 2 | AV136: 3 | AW136: 2 | AX136: 1 | AY136: 1 | AZ136: 1 | BA136: 1 | BB136: 1 | BC136: 1 | BE136: 2 | BH136: 187 | BI136: 119 | BW136: - | BX136: - | BY136: 14 | CA136: 306 | EL136: 132 | EN136: 132 | EO136: (135)
A137: 133 (136) | B137: Bo Trulsson | C137: Korpen Åseda | D137: 297 | F137: 2 | G137: 74.25 | S137: 142 | U137: 155 | AB137: 19 | AC137: - | AD137: - | AE137: 136 | AF137: 133 | AG137: 133 | AH137: 133 | AK137: 1 | AL137: 1 | AM137: 1 | AN137: 1 | AO137: 1 | AP137: 1 | AQ137: 1 | AR137: 1 | AS137: 1 | AT137: 1 | AU137: 2 | AV137: 2 | AW137: 2 | AX137: 2 | AY137: 1 | AZ137: 1 | BA137: 1 | BB137: 1 | BC137: 1 | BE137: 2 | BH137: 155 | BI137: 142 | BW137: - | BX137: - | BY137: 14 | CA137: 297 | EL137: 133 | EN137: 133 | EO137: (136)
A138: 134 (137) | B138: Åke Bergqvist | C138: Tingsryd | D138: 287 | F138: 3 | G138: 47.83333333 | U138: 80 | V138: 103 | X138: 104 | AB138: 19 | AC138: - | AD138: - | AE138: 137 | AF138: 134 | AG138: 134 | AH138: 134 | AK138: 1 | AL138: 1 | AM138: 1 | AN138: 1 | AO138: 1 | AP138: 1 | AQ138: 1 | AR138: 1 | AS138: 1 | AT138: 1 | AU138: 1 | AV138: 1 | AW138: 2 | AX138: 3 | AY138: 2 | AZ138: 2 | BA138: 2 | BB138: 1 | BC138: 1 | BE138: 2 | BH138: 104 | BI138: 103 | BJ138: 80 | BW138: - | BX138: - | BY138: 13 | CA138: 287 | EL138: 135 | EN138: 134 | EO138: (137)
A139: 135 (139) | B139: Patrik Glimfalk | C139: Mulde VK | D139: 284 | F139: 2 | G139: 71 | N139: 141 | W139: 143 | AB139: 19 | AC139: - | AD139: - | AE139: 139 | AF139: 135 | AG139: 135 | AH139: 135 | AK139: 1 | AL139: 1 | AM139: 1 | AN139: 1 | AO139: 1 | AP139: 2 | AQ139: 2 | AR139: 1 | AS139: 1 | AT139: 1 | AU139: 1 | AV139: 1 | AW139: 1 | AX139: 1 | AY139: 2 | AZ139: 2 | BA139: 1 | BB139: 1 | BC139: 1 | BE139: 2 | BH139: 143 | BI139: 141 | BW139: - | BX139: - | BY139: 14 | CA139: 284 | EL139: 136 | EN139: 135 | EO139: (139)
A140: 136 (140) | B140: Nina Vadaszi | C140: Sibbamåla | D140: 282 | F140: 2 | G140: 70.5 | Q140: 186 | R140: 96 | AB140: 19 | AC140: - | AD140: - | AE140: 140 | AF140: 136 | AG140: 136 | AH140: 136 | AK140: 1 | AL140: 1 | AM140: 1 | AN140: 1 | AO140: 1 | AP140: 1 | AQ140: 1 | AR140: 1 | AS140: 2 | AT140: 3 | AU140: 2 | AV140: 1 | AW140: 1 | AX140: 1 | AY140: 1 | AZ140: 1 | BA140: 1 | BB140: 1 | BC140: 1 | BE140: 2 | BH140: 186 | BI140: 96 | BW140: - | BX140: - | BY140: 14 | CA140: 282 | EL140: 137 | EN140: 136 | EO140: (140)
A141: 137 (141) | B141: Arne Nygren | C141: Korpen Åseda | D141: 277 | F141: 2 | G141: 69.25 | I141: 132 | S141: 145 | AB141: 19 | AC141: - | AD141: - | AE141: 141 | AF141: 137 | AG141: 137 | AH141: 137 | AK141: 2 | AL141: 2 | AM141: 1 | AN141: 1 | AO141: 1 | AP141: 1 | AQ141: 1 | AR141: 1 | AS141: 1 | AT141: 1 | AU141: 2 | AV141: 2 | AW141: 1 | AX141: 1 | AY141: 1 | AZ141: 1 | BA141: 1 | BB141: 1 | BC141: 1 | BE141: 2 | BH141: 145 | BI141: 132 | BW141: - | BX141: - | BY141: 14 | CA141: 277 | EL141: 138 | EN141: 137 | EO141: (141)
A142: 138 (142) | B142: Ulf Stenberg | C142: Mulde VK | D142: 275 | F142: 3 | G142: 45.83333333 | N142: 131 | O142: 62 | W142: 82 | AB142: 19 | AC142: - | AD142: - | AE142: 142 | AF142: 138 | AG142: 138 | AH142: 138 | AK142: 1 | AL142: 1 | AM142: 1 | AN142: 1 | AO142: 1 | AP142: 2 | AQ142: 3 | AR142: 2 | AS142: 1 | AT142: 1 | AU142: 1 | AV142: 1 | AW142: 1 | AX142: 1 | AY142: 2 | AZ142: 2 | BA142: 1 | BB142: 1 | BC142: 1 | BE142: 2 | BH142: 131 | BI142: 82 | BJ142: 62 | BW142: - | BX142: - | BY142: 13 | CA142: 275 | EL142: 167 | EN142: 167 | EO142: (142)
A143: 139 (143) | B143: Jerry Viksten | C143: Korpen Åseda | D143: 271 | F143: 1 | G143: 135.5 | S143: 271 | AB143: 19 | AC143: - | AD143: - | AE143: 143 | AF143: 139 | AG143: - | AH143: 139 | AK143: 1 | AL143: 1 | AM143: 1 | AN143: 1 | AO143: 1 | AP143: 1 | AQ143: 1 | AR143: 1 | AS143: 1 | AT143: 1 | AU143: 2 | AV143: 2 | AW143: 1 | AX143: 1 | AY143: 1 | AZ143: 1 | BA143: 1 | BB143: 1 | BC143: 1 | BE143: 2 | BH143: 271 | BW143: - | BX143: - | BY143: 15 | CA143: 271 | EL143: 139 | EN143: =IF(BE143>=1,AF143,"") -> 139 | EO143: (143)
A144: 140 (144) | B144: Anders Karlsson | C144: Värends Hsk | D144: 259 | F144: 4 | G144: 32.375 | U144: 68 | V144: 37 | X144: 66 | Z144: 88 | AB144: 19 | AC144: - | AD144: - | AE144: 144 | AF144: 140 | AG144: 140 | AH144: 140 | AK144: 1 | AL144: 1 | AM144: 1 | AN144: 1 | AO144: 1 | AP144: 1 | AQ144: 1 | AR144: 1 | AS144: 1 | AT144: 1 | AU144: 1 | AV144: 1 | AW144: 2 | AX144: 3 | AY144: 2 | AZ144: 2 | BA144: 2 | BB144: 2 | BC144: 2 | BE144: 2 | BH144: 88 | BI144: 68 | BJ144: 66 | BK144: 37 | BW144: - | BX144: - | BY144: 12 | CA144: 259 | EL144: 140 | EN144: =IF(BE144>1,AF144,"") -> 140 | EO144: (144)
A145: 141 (113) | B145: Armin Sisic | C145: Värends Hsk | D145: 253 | F145: 1 | G145: 126.5 | P145: 253 | AB145: 19 | AC145: - | AD145: - | AE145: 113 | AF145: 141 | AG145: - | AH145: 141 | AK145: 1 | AL145: 1 | AM145: 1 | AN145: 1 | AO145: 1 | AP145: 1 | AQ145: 1 | AR145: 2 | AS145: 2 | AT145: 1 | AU145: 1 | AV145: 1 | AW145: 1 | AX145: 1 | AY145: 1 | AZ145: 1 | BA145: 1 | BB145: 1 | BC145: 1 | BE145: 2 | BH145: 253 | BW145: - | BX145: - | BY145: 15 | CA145: 253 | EL145: 141 | EN145: =IF(BE145>=1,AF145,"") -> 141 | EO145: (113)
A146: 142 (158) | B146: Lars-Erik Green | C146: Värends Hsk | D146: 246 | F146: 3 | G146: 41 | X146: 59 | Z146: 126 | AA146: 61 | AB146: 19 | AC146: - | AD146: - | AE146: 158 | AF146: 142 | AG146: 142 | AH146: 142 | AK146: 1 | AL146: 1 | AM146: 1 | AN146: 1 | AO146: 1 | AP146: 1 | AQ146: 1 | AR146: 1 | AS146: 1 | AT146: 1 | AU146: 1 | AV146: 1 | AW146: 1 | AX146: 1 | AY146: 1 | AZ146: 2 | BA146: 2 | BB146: 2 | BC146: 3 | BE146: 2 | BH146: 126 | BI146: 61 | BJ146: 59 | BW146: - | BX146: - | BY146: 13 | CA146: 246 | EL146: 142 | EN146: =IF(BE146>=1,AF146,"") -> 142 | EO146: (158)
A147: 143 (146) | B147: Birgitta Stenberg | C147: Mulde VK | D147: 242 | F147: 2 | G147: 60.5 | N147: 128 | W147: 114 | AB147: 19 | AC147: - | AD147: - | AE147: 146 | AF147: 143 | AG147: 143 | AH147: 143 | AK147: 1 | AL147: 1 | AM147: 1 | AN147: 1 | AO147: 1 | AP147: 2 | AQ147: 2 | AR147: 1 | AS147: 1 | AT147: 1 | AU147: 1 | AV147: 1 | AW147: 1 | AX147: 1 | AY147: 2 | AZ147: 2 | BA147: 1 | BB147: 1 | BC147: 1 | BE147: 2 | BH147: 128 | BI147: 114 | BW147: - | BX147: - | BY147: 14 | CA147: 242 | EL147: 143 | EN147: =IF(BE147>=1,AF147,"") -> 143 | EO147: (146)
A148: 144 (152) | B148: Allan Persson | C148: Tingsryd | D148: 238 | F148: 2 | G148: 59.5 | X148: 142 | AA148: 96 | AB148: 19 | AC148: - | AD148: - | AE148: 152 | AF148: 144 | AG148: 144 | AH148: 144 | AK148: 1 | AL148: 1 | AM148: 1 | AN148: 1 | AO148: 1 | AP148: 1 | AQ148: 1 | AR148: 1 | AS148: 1 | AT148: 1 | AU148: 1 | AV148: 1 | AW148: 1 | AX148: 1 | AY148: 1 | AZ148: 2 | BA148: 2 | BB148: 1 | BC148: 2 | BE148: 2 | BH148: 142 | BI148: 96 | BW148: - | BX148: - | BY148: 14 | CA148: 238 | EL148: 144 | EN148: =IF(BE148>=1,AF148,"") -> 144 | EO148: (152)
A149: 145 (147) | B149: Elin Edlund | C149: Dynapac | D149: 236 | F149: 2 | G149: 59 | Q149: 131 | S149: 105 | AB149: 19 | AC149: - | AD149: - | AE149: 147 | AF149: 145 | AG149: 145 | AH149: 145 | AK149: 1 | AL149: 1 | AM149: 1 | AN149: 1 | AO149: 1 | AP149: 1 | AQ149: 1 | AR149: 1 | AS149: 2 | AT149: 2 | AU149: 2 | AV149: 2 | AW149: 1 | AX149: 1 | AY149: 1 | AZ149: 1 | BA149: 1 | BB149: 1 | BC149: 1 | BE149: 2 | BH149: 131 | BI149: 105 | BW149: - | BX149: - | BY149: 14 | CA149: 236 | EL149: 145 | EN149: =IF(BE149>=1,AF149,"") -> 145 | EO149: (147)
A150: 146 (123) | B150: Peter Karlsson | C150: Sibbamåla | D150: 235 | F150: 1 | G150: 117.5 | J150: 235 | AB150: 19 | AC150: - | AD150: - | AE150: 123 | AF150: 146 | AG150: - | AH150: 146 | AK150: 1 | AL150: 2 | AM150: 2 | AN150: 1 | AO150: 1 | AP150: 1 | AQ150: 1 | AR150: 1 | AS150: 1 | AT150: 1 | AU150: 1 | AV150: 1 | AW150: 1 | AX150: 1 | AY150: 1 | AZ150: 1 | BA150: 1 | BB150: 1 | BC150: 1 | BE150: 2 | BH150: 235 | BW150: - | BX150: - | BY150: 15 | CA150: 235 | EL150: 175 | EN150: =IF(BE150>1,AF150,"") -> 146 | EO150: (123)
A151: 147 (148) | B151: Towe Danielsson | C151: Korpen Nybro | D151: 230 | F151: 1 | G151: 115 | T151: 230 | AB151: 19 | AC151: - | AD151: - | AE151: 148 | AF151: 147 | AG151: - | AH151: 147 | AK151: 1 | AL151: 1 | AM151: 1 | AN151: 1 | AO151: 1 | AP151: 1 | AQ151: 1 | AR151: 1 | AS151: 1 | AT151: 1 | AU151: 1 | AV151: 2 | AW151: 2 | AX151: 1 | AY151: 1 | AZ151: 1 | BA151: 1 | BB151: 1 | BC151: 1 | BE151: 2 | BH151: 230 | BW151: - | BX151: - | BY151: 15 | CA151: 230 | EL151: 146 | EN151: =IF(BE151>=1,AF151,"") -> 147 | EO151: (148)
A152: 147 (148) | B152: Göran Karlsson | C152: Sibbamåla | D152: 230 | F152: 2 | G152: 57.5 | Q152: 110 | R152: 120 | AB152: 19 | AC152: - | AD152: - | AE152: 148 | AF152: 147 | AG152: 148 | AH152: 148 | AK152: 1 | AL152: 1 | AM152: 1 | AN152: 1 | AO152: 1 | AP152: 1 | AQ152: 1 | AR152: 1 | AS152: 2 | AT152: 3 | AU152: 2 | AV152: 1 | AW152: 1 | AX152: 1 | AY152: 1 | AZ152: 1 | BA152: 1 | BB152: 1 | BC152: 1 | BE152: 2 | BH152: 120 | BI152: 110 | BW152: - | BX152: - | BY152: 14 | CA152: 230 | EL152: 147 | EN152: 147 | EO152: (148)
A153: 149 (150) | B153: Paul Karlsson | C153: Lessebo | D153: 228 | F153: 1 | G153: 114 | U153: 228 | AB153: 19 | AC153: - | AD153: - | AE153: 150 | AF153: 149 | AG153: - | AH153: 149 | AK153: 1 | AL153: 1 | AM153: 1 | AN153: 1 | AO153: 1 | AP153: 1 | AQ153: 1 | AR153: 1 | AS153: 1 | AT153: 1 | AU153: 1 | AV153: 1 | AW153: 2 | AX153: 2 | AY153: 1 | AZ153: 1 | BA153: 1 | BB153: 1 | BC153: 1 | BE153: 2 | BH153: 228 | BW153: - | BX153: - | BY153: 15 | CA153: 228 | EL153: 148 | EN153: 149 | EO153: (150)
A154: 150 (151) | B154: Morgan Atle | C154: Dynapac | D154: 225 | F154: 2 | G154: 56.25 | J154: 138 | Q154: 87 | AB154: 19 | AC154: - | AD154: - | AE154: 151 | AF154: 150 | AG154: 150 | AH154: 150 | AK154: 1 | AL154: 2 | AM154: 2 | AN154: 1 | AO154: 1 | AP154: 1 | AQ154: 1 | AR154: 1 | AS154: 2 | AT154: 2 | AU154: 1 | AV154: 1 | AW154: 1 | AX154: 1 | AY154: 1 | AZ154: 1 | BA154: 1 | BB154: 1 | BC154: 1 | BE154: 2 | BH154: 138 | BI154: 87 | BW154: - | BX154: - | BY154: 14 | CA154: 225 | EL154: 149 | EN154: 150 | EO154: (151)
A155: 151 (152) | B155: Kenneth Andersson | C155: Dynapac | D155: 216 | F155: 1 | G155: 108 | J155: 216 | AB155: 19 | AC155: - | AD155: - | AE155: 152 | AF155: 151 | AG155: - | AH155: 151 | AK155: 1 | AL155: 2 | AM155: 2 | AN155: 1 | AO155: 1 | AP155: 1 | AQ155: 1 | AR155: 1 | AS155: 1 | AT155: 1 | AU155: 1 | AV155: 1 | AW155: 1 | AX155: 1 | AY155: 1 | AZ155: 1 | BA155: 1 | BB155: 1 | BC155: 1 | BE155: 2 | BH155: 216 | BW155: - | BX155: - | BY155: 15 | CA155: 216 | EL155: 150 | EN155: 151 | EO155: (152)
A156: 151 (152) | B156: Johan Karlsson | C156: Korpen Åseda | D156: 216 | F156: 1 | G156: 108 | S156: 216 | AB156: 19 | AC156: - | AD156: - | AE156: 152 | AF156: 151 | AG156: - | AH156: 152 | AK156: 1 | AL156: 1 | AM156: 1 | AN156: 1 | AO156: 1 | AP156: 1 | AQ156: 1 | AR156: 1 | AS156: 1 | AT156: 1 | AU156: 2 | AV156: 2 | AW156: 1 | AX156: 1 | AY156: 1 | AZ156: 1 | BA156: 1 | BB156: 1 | BC156: 1 | BE156: 2 | BH156: 216 | BW156: - | BX156: - | BY156: 15 | CA156: 216 | EL156: 151 | EN156: 151 | EO156: (152)
A157: =IF(BE157>1,AF157&" ("&AE157&")",AF157&" ("&AG157&")") -> 153 (155) | B157: Robin Alriksson | C157: Sibbamåla | D157: 206 | F157: 2 | G157: 51.5 | Q157: 104 | S157: 102 | AB157: 19 | AC157: - | AD157: - | AE157: 155 | AF157: =IF(D157<D156,AH157,AF156) -> 153 | AG157: =IF(F157>1,ROW(153:153),"-") -> 153 | AH157: 153 | AK157: =COUNT($I$3,I157,H157) -> 1 | AL157: =COUNT($J$3,J157,I157) -> 1 | AM157: =COUNT($K$3,K157,J157) -> 1 | AN157: =COUNT($L$3,L157,K157) -> 1 | AO157: =COUNT($M$3,M157,L157) -> 1 | AP157: =COUNT($N$3,N157,M157) -> 1 | AQ157: =COUNT($O$3,O157,N157) -> 1 | AR157: =COUNT($P$3,P157,O157) -> 1 | AS157: =COUNT($Q$3,Q157,P157) -> 2 | AT157: =COUNT($R$3,R157,Q157) -> 2 | AU157: =COUNT($S$3,S157,R157) -> 2 | AV157: =COUNT($T$3,T157,S157) -> 2 | AW157: =COUNT($U$3,U157,T157) -> 1 | AX157: =COUNT($V$3,V157,U157) -> 1 | AY157: =COUNT($W$3,W157,V157) -> 1 | AZ157: =COUNT($X$3,X157,W157) -> 1 | BA157: =COUNT($Y$3,Y157,X157) -> 1 | BB157: =COUNT($Z$3,Z157,Y157) -> 1 | BC157: =COUNT($AA$3,AA157,Z157) -> 1 | BE157: =IF(H157="x",1,2) -> 2 | BH157: =IF($F157>0,LARGE($I157:$AA157,1),"") -> 104 | BI157: =IF($F157>1,LARGE($I157:$AA157,2),"") -> 102 | BJ157: =IF($F157>2,LARGE($I157:$AA157,3),"") ->  | BK157: =IF($F157>3,LARGE($I157:$AA157,4),"") ->  | BL157: =IF($F157>4,LARGE($I157:$AA157,5),"") ->  | BM157: =IF($F157>5,LARGE($I157:$AA157,6),"") ->  | BN157: =IF($F157>6,LARGE($I157:$AA157,7),"") ->  | BO157: =IF($F157>7,LARGE($I157:$AA157,8),"") ->  | BP157: =IF($F157>8,LARGE($I157:$AA157,9),"") ->  | BQ157: =IF($F157>9,LARGE($I157:$AA157,10),"") ->  | BR157: =IF($F157>10,LARGE($I157:$AA157,11),"") ->  | BS157: =IF($F157>11,LARGE($I157:$AA157,12),"") ->  | BT157: =IF($F157>12,LARGE($I157:$AA157,13),"") ->  | BU157: =IF($F157>13,LARGE($I157:$AA157,14),"") ->  | BV157: =IF($F157>14,LARGE($I157:$AA157,15),"") ->  | BW157: =IF($F157>13,LARGE($I157:$AA157,14),"-") -> - | BX157: =IF($F157>14,LARGE($I157:$AA157,15),"-") -> - | BY157: =SUM(AB157-F157)-3 -> 14 | CA157: =SUM(BH157:BV157) -> 206 | EL157: 152 | EN157: 153 | EO157: =IF(BE157>1,"("&AE157&")","("&AG157&")") -> (155)
A158: 154 (156) | B158: Marcus Karlsson | C158: Jämjö Hsk | D158: 195 | F158: 1 | G158: 97.5 | J158: 195 | AB158: 19 | AC158: - | AD158: - | AE158: 156 | AF158: 154 | AG158: - | AH158: 154 | AK158: 1 | AL158: 2 | AM158: 2 | AN158: 1 | AO158: 1 | AP158: 1 | AQ158: 1 | AR158: 1 | AS158: 1 | AT158: 1 | AU158: 1 | AV158: 1 | AW158: 1 | AX158: 1 | AY158: 1 | AZ158: 1 | BA158: 1 | BB158: 1 | BC158: 1 | BE158: 2 | BH158: 195 | BW158: - | BX158: - | BY158: 15 | CA158: 195 | EL158: 153 | EN158: 154 | EO158: (156)
A159: 155 (157) | B159: Niklas Berglund | C159: Dynapac | D159: 193 | F159: 1 | G159: 96.5 | U159: 193 | AB159: 19 | AC159: - | AD159: - | AE159: 157 | AF159: 155 | AG159: - | AH159: 155 | AK159: 1 | AL159: 1 | AM159: 1 | AN159: 1 | AO159: 1 | AP159: 1 | AQ159: 1 | AR159: 1 | AS159: 1 | AT159: 1 | AU159: 1 | AV159: 1 | AW159: 2 | AX159: 2 | AY159: 1 | AZ159: 1 | BA159: 1 | BB159: 1 | BC159: 1 | BE159: 2 | BH159: 193 | BW159: - | BX159: - | BY159: 15 | CA159: 193 | EL159: 154 | EN159: 155 | EO159: (157)
A160: 156 (158) | B160: Erik Niklasson | C160: Korpen Nybro | D160: 188 | F160: 2 | G160: 47 | T160: 88 | U160: 100 | AB160: 19 | AC160: - | AD160: - | AE160: 158 | AF160: 156 | AG160: 156 | AH160: 156 | AK160: 1 | AL160: 1 | AM160: 1 | AN160: 1 | AO160: 1 | AP160: 1 | AQ160: 1 | AR160: 1 | AS160: 1 | AT160: 1 | AU160: 1 | AV160: 2 | AW160: 3 | AX160: 2 | AY160: 1 | AZ160: 1 | BA160: 1 | BB160: 1 | BC160: 1 | BE160: 2 | BH160: 100 | BI160: 88 | BW160: - | BX160: - | BY160: 14 | CA160: 188 | EL160: 156 | EN160: 156 | EO160: (158)
A161: 157 (160) | B161: Tommy Karlsson | C161: Korpen Nybro | D161: 179 | F161: 1 | G161: 89.5 | T161: 179 | AB161: 19 | AC161: - | AD161: - | AE161: 160 | AF161: 157 | AG161: - | AH161: 157 | AK161: 1 | AL161: 1 | AM161: 1 | AN161: 1 | AO161: 1 | AP161: 1 | AQ161: 1 | AR161: 1 | AS161: 1 | AT161: 1 | AU161: 1 | AV161: 2 | AW161: 2 | AX161: 1 | AY161: 1 | AZ161: 1 | BA161: 1 | BB161: 1 | BC161: 1 | BE161: 2 | BH161: 179 | BW161: - | BX161: - | BY161: 15 | CA161: 179 | EL161: 157 | EN161: 157 | EO161: (160)
A162: 157 (160) | B162: Ted Svensson | C162: Mulde VK | D162: 179 | F162: 1 | G162: 89.5 | W162: 179 | AB162: 19 | AC162: - | AD162: - | AE162: 160 | AF162: 157 | AG162: - | AH162: 158 | AK162: 1 | AL162: 1 | AM162: 1 | AN162: 1 | AO162: 1 | AP162: 1 | AQ162: 1 | AR162: 1 | AS162: 1 | AT162: 1 | AU162: 1 | AV162: 1 | AW162: 1 | AX162: 1 | AY162: 2 | AZ162: 2 | BA162: 1 | BB162: 1 | BC162: 1 | BE162: 2 | BH162: 179 | BW162: - | BX162: - | BY162: 15 | CA162: 179 | EL162: 158 | EN162: 157 | EO162: (160)
A163: 159 (162) | B163: Lukas Eriksson | C163: Korpen Åseda | D163: 178 | F163: 1 | G163: 89 | U163: 178 | AB163: 19 | AC163: - | AD163: - | AE163: 162 | AF163: 159 | AG163: 159 | AH163: 159 | AK163: 1 | AL163: 1 | AM163: 1 | AN163: 1 | AO163: 1 | AP163: 1 | AQ163: 1 | AR163: 1 | AS163: 1 | AT163: 1 | AU163: 1 | AV163: 1 | AW163: 2 | AX163: 2 | AY163: 1 | AZ163: 1 | BA163: 1 | BB163: 1 | BC163: 1 | BE163: 2 | BH163: 178 | BW163: - | BX163: - | BY163: 15 | CA163: 178 | EL163: 159 | EN163: 159 | EO163: (162)
A164: 160 (163) | B164: Stephan Gervide | C164: Korpen Nybro | D164: 174 | F164: 1 | G164: 87 | T164: 174 | AB164: 19 | AC164: - | AD164: - | AE164: 163 | AF164: 160 | AG164: =IF(F164>1,ROW(160:160),"-") -> - | AH164: 160 | AK164: 1 | AL164: 1 | AM164: 1 | AN164: 1 | AO164: 1 | AP164: 1 | AQ164: 1 | AR164: 1 | AS164: 1 | AT164: 1 | AU164: 1 | AV164: 2 | AW164: 2 | AX164: 1 | AY164: 1 | AZ164: 1 | BA164: 1 | BB164: 1 | BC164: 1 | BE164: 2 | BH164: 174 | BW164: - | BX164: - | BY164: 15 | CA164: 174 | EL164: 206 | EN164: =IF(BE164>1,AF164,"") -> 160 | EO164: (163)
A165: 161 (164) | B165: Britta Eriksson | C165: Carlskrona | D165: 173 | F165: 1 | G165: 86.5 | J165: 173 | AB165: 19 | AC165: - | AD165: - | AE165: 164 | AF165: 161 | AG165: - | AH165: 161 | AK165: 1 | AL165: 2 | AM165: 2 | AN165: 1 | AO165: 1 | AP165: 1 | AQ165: 1 | AR165: 1 | AS165: 1 | AT165: 1 | AU165: 1 | AV165: 1 | AW165: 1 | AX165: 1 | AY165: 1 | AZ165: 1 | BA165: 1 | BB165: 1 | BC165: 1 | BE165: 2 | BH165: 173 | BW165: - | BX165: - | BY165: 15 | CA165: 173 | EL165: 160 | EN165: =IF(BE165>=1,AF165,"") -> 161 | EO165: (164)
A166: 162 (165) | B166: Susanne Simonsson | C166: Lanternan | D166: 163 | F166: 2 | G166: 40.75 | R166: 74 | V166: 89 | AB166: 19 | AC166: - | AD166: - | AE166: 165 | AF166: 162 | AG166: 162 | AH166: 162 | AK166: 1 | AL166: 1 | AM166: 1 | AN166: 1 | AO166: 1 | AP166: 1 | AQ166: 1 | AR166: 1 | AS166: 1 | AT166: 2 | AU166: 2 | AV166: 1 | AW166: 1 | AX166: 2 | AY166: 2 | AZ166: 1 | BA166: 1 | BB166: 1 | BC166: 1 | BE166: 2 | BH166: 89 | BI166: 74 | BW166: - | BX166: - | BY166: 14 | CA166: 163 | EL166: 161 | EN166: 161 | EO166: (165)
A167: 163 (166) | B167: Roy Johansson | C167: Lanternan | D167: 152 | F167: 1 | G167: 76 | I167: 152 | AB167: 19 | AC167: - | AD167: - | AE167: 166 | AF167: 163 | AG167: - | AH167: 163 | AK167: 2 | AL167: 2 | AM167: 1 | AN167: 1 | AO167: 1 | AP167: 1 | AQ167: 1 | AR167: 1 | AS167: 1 | AT167: 1 | AU167: 1 | AV167: 1 | AW167: 1 | AX167: 1 | AY167: 1 | AZ167: 1 | BA167: 1 | BB167: 1 | BC167: 1 | BE167: 2 | BH167: 152 | BW167: - | BX167: - | BY167: 15 | CA167: 152 | EL167: 162 | EN167: =IF(BE167>1,AF167,"") -> 163 | EO167: (166)
A168: 164 (167) | B168: André Andersson | C168: Mulde VK | D168: 149 | F168: 1 | G168: 74.5 | N168: 149 | AB168: 19 | AC168: - | AD168: - | AE168: 167 | AF168: 164 | AG168: - | AH168: 164 | AK168: 1 | AL168: 1 | AM168: 1 | AN168: 1 | AO168: 1 | AP168: 2 | AQ168: 2 | AR168: 1 | AS168: 1 | AT168: 1 | AU168: 1 | AV168: 1 | AW168: 1 | AX168: 1 | AY168: 1 | AZ168: 1 | BA168: 1 | BB168: 1 | BC168: 1 | BE168: 2 | BH168: 149 | BW168: - | BX168: - | BY168: 15 | CA168: 149 | EL168: 163 | EN168: =IF(BE168>1,AF168,"") -> 164 | EO168: (167)
A169: 165 (168) | B169: Jonny Petersson | C169: FlygtSeniorerna | D169: 147 | F169: 1 | G169: 73.5 | T169: 147 | AB169: 19 | AC169: - | AD169: - | AE169: 168 | AF169: 165 | AG169: - | AH169: 165 | AK169: 1 | AL169: 1 | AM169: 1 | AN169: 1 | AO169: 1 | AP169: 1 | AQ169: 1 | AR169: 1 | AS169: 1 | AT169: 1 | AU169: 1 | AV169: 2 | AW169: 2 | AX169: 1 | AY169: 1 | AZ169: 1 | BA169: 1 | BB169: 1 | BC169: 1 | BE169: 2 | BH169: 147 | BW169: - | BX169: - | BY169: 15 | CA169: 147 | EL169: 164 | EN169: =IF(BE169>1,AF169,"") -> 165 | EO169: (168)
A170: 166 (169) | B170: Bertil Westergren | C170: Växjö | D170: 144 | F170: 1 | G170: 72 | I170: 144 | AB170: 19 | AC170: - | AD170: - | AE170: 169 | AF170: 166 | AG170: - | AH170: 166 | AK170: 2 | AL170: 2 | AM170: 1 | AN170: 1 | AO170: 1 | AP170: 1 | AQ170: 1 | AR170: 1 | AS170: 1 | AT170: 1 | AU170: 1 | AV170: 1 | AW170: 1 | AX170: 1 | AY170: 1 | AZ170: 1 | BA170: 1 | BB170: 1 | BC170: 1 | BE170: 2 | BH170: 144 | BW170: - | BX170: - | BY170: 15 | CA170: 144 | EL170: 165 | EN170: =IF(BE170>1,AF170,"") -> 166 | EO170: (169)
A171: 166 (169) | B171: Hanna Bergendorf | C171: Hsk Tingzås | D171: 144 | F171: 2 | G171: 36 | I171: 107 | Q171: 37 | AB171: 19 | AC171: - | AD171: - | AE171: 169 | AF171: 166 | AG171: 167 | AH171: 167 | AK171: 2 | AL171: 2 | AM171: 1 | AN171: 1 | AO171: 1 | AP171: 1 | AQ171: 1 | AR171: 1 | AS171: 2 | AT171: 2 | AU171: 1 | AV171: 1 | AW171: 1 | AX171: 1 | AY171: 1 | AZ171: 1 | BA171: 1 | BB171: 1 | BC171: 1 | BE171: 2 | BH171: 107 | BI171: 37 | BW171: - | BX171: - | BY171: 14 | CA171: 144 | EL171: 195 | EN171: =IF(BE171>1,AF171,"") -> 166 | EO171: (169)
A172: 168 (137) | B172: Elsie Fransson | C172: Tingsryd | D172: 143 | F172: 1 | G172: 71.5 | J172: 143 | AB172: 19 | AC172: - | AD172: - | AE172: 137 | AF172: 168 | AG172: - | AH172: 168 | AK172: 1 | AL172: 2 | AM172: 2 | AN172: 1 | AO172: 1 | AP172: 1 | AQ172: 1 | AR172: 1 | AS172: 1 | AT172: 1 | AU172: 1 | AV172: 1 | AW172: 1 | AX172: 1 | AY172: 1 | AZ172: 1 | BA172: 1 | BB172: 1 | BC172: 1 | BE172: 2 | BH172: 143 | BW172: - | BX172: - | BY172: 15 | CA172: 143 | EL172: 134 | EN172: =IF(BE172>=1,AF172,"") -> 168 | EO172: (137)
A173: 169 (171) | B173: Hans Nilsson | C173: Dynapac | D173: 137 | F173: 1 | G173: 68.5 | Q173: 137 | AB173: 19 | AC173: - | AD173: - | AE173: 171 | AF173: 169 | AG173: - | AH173: 169 | AK173: 1 | AL173: 1 | AM173: 1 | AN173: 1 | AO173: 1 | AP173: 1 | AQ173: 1 | AR173: 1 | AS173: 2 | AT173: 2 | AU173: 1 | AV173: 1 | AW173: 1 | AX173: 1 | AY173: 1 | AZ173: 1 | BA173: 1 | BB173: 1 | BC173: 1 | BE173: 2 | BH173: 137 | BW173: - | BX173: - | BY173: 15 | CA173: 137 | EL173: 166 | EN173: =IF(BE173>1,AF173,"") -> 169 | EO173: (171)
A174: 169 (171) | B174: Mikael Belsing | C174: Sibbamåla | D174: 137 | F174: 1 | G174: 68.5 | I174: 137 | AB174: 19 | AC174: - | AD174: - | AE174: 171 | AF174: 169 | AG174: - | AH174: 170 | AK174: 2 | AL174: 2 | AM174: 1 | AN174: 1 | AO174: 1 | AP174: 1 | AQ174: 1 | AR174: 1 | AS174: 1 | AT174: 1 | AU174: 1 | AV174: 1 | AW174: 1 | AX174: 1 | AY174: 1 | AZ174: 1 | BA174: 1 | BB174: 1 | BC174: 1 | BE174: 2 | BH174: 137 | BW174: - | BX174: - | BY174: 15 | CA174: 137 | EL174: 168 | EN174: 168 | EO174: (171)
A175: 171 (173) | B175: Göran Olofsson | C175: Mulde VK | D175: 82 | F175: 2 | G175: 20.5 | N175: 82 | W175: 54 | AB175: 19 | AC175: - | AD175: - | AE175: 173 | AF175: 171 | AG175: 171 | AH175: 171 | AK175: 1 | AL175: 1 | AM175: 1 | AN175: 1 | AO175: 1 | AP175: 2 | AQ175: 2 | AR175: 1 | AS175: 1 | AT175: 1 | AU175: 1 | AV175: 1 | AW175: 1 | AX175: 1 | AY175: 2 | AZ175: 2 | BA175: 1 | BB175: 1 | BC175: 1 | BE175: 2 | BH175: 82 | BW175: - | BX175: - | BY175: 14 | CA175: 82 | EL175: 215 | EN175: =IF(BE175>1,AF175,"") -> 171 | EO175: (173)
A176: 171 (174) | B176: Emma Svensson | C176: Dynapac | D176: 134 | F176: 1 | G176: 67 | J176: 134 | AB176: 19 | AC176: - | AD176: - | AE176: 174 | AF176: 171 | AG176: - | AH176: 172 | AK176: 1 | AL176: 2 | AM176: 2 | AN176: 1 | AO176: 1 | AP176: 1 | AQ176: 1 | AR176: 1 | AS176: 1 | AT176: 1 | AU176: 1 | AV176: 1 | AW176: 1 | AX176: 1 | AY176: 1 | AZ176: 1 | BA176: 1 | BB176: 1 | BC176: 1 | BE176: 2 | BH176: 134 | BI176: =IF($F176>1,LARGE($I176:$AA176,2),"") ->  | BJ176: =IF($F176>2,LARGE($I176:$AA176,3),"") ->  | BK176: =IF($F176>3,LARGE($I176:$AA176,4),"") ->  | BL176: =IF($F176>4,LARGE($I176:$AA176,5),"") ->  | BM176: =IF($F176>5,LARGE($I176:$AA176,6),"") ->  | BN176: =IF($F176>6,LARGE($I176:$AA176,7),"") ->  | BO176: =IF($F176>7,LARGE($I176:$AA176,8),"") ->  | BP176: =IF($F176>8,LARGE($I176:$AA176,9),"") ->  | BQ176: =IF($F176>9,LARGE($I176:$AA176,10),"") ->  | BR176: =IF($F176>10,LARGE($I176:$AA176,11),"") ->  | BS176: =IF($F176>11,LARGE($I176:$AA176,12),"") ->  | BT176: =IF($F176>12,LARGE($I176:$AA176,13),"") ->  | BU176: =IF($F176>13,LARGE($I176:$AA176,14),"") ->  | BV176: =IF($F176>14,LARGE($I176:$AA176,15),"") ->  | BW176: - | BX176: - | BY176: 15 | CA176: 134 | EL176: 169 | EN176: =IF(BE176>1,AF176,"") -> 171 | EO176: (174)
A177: 173 (175) | B177: Emilia Lindkvist | C177: Alvesta | D177: 133 | F177: 1 | G177: 66.5 | I177: 133 | AB177: 19 | AC177: - | AD177: - | AE177: 175 | AF177: 173 | AG177: - | AH177: 173 | AK177: 2 | AL177: 2 | AM177: 1 | AN177: 1 | AO177: 1 | AP177: 1 | AQ177: 1 | AR177: 1 | AS177: 1 | AT177: 1 | AU177: 1 | AV177: 1 | AW177: 1 | AX177: 1 | AY177: 1 | AZ177: 1 | BA177: 1 | BB177: 1 | BC177: 1 | BE177: 2 | BH177: 133 | BW177: - | BX177: - | BY177: 15 | CA177: 133 | EL177: 188 | EN177: 188 | EO177: (175)
A178: 174 (176) | B178: Ingegärd Holmqvist | C178: Lanternan | D178: 132 | F178: 1 | G178: 66 | J178: 132 | AB178: 19 | AC178: - | AD178: - | AE178: 176 | AF178: 174 | AG178: - | AH178: 174 | AK178: 1 | AL178: 2 | AM178: 2 | AN178: 1 | AO178: 1 | AP178: 1 | AQ178: 1 | AR178: 1 | AS178: 1 | AT178: 1 | AU178: 1 | AV178: 1 | AW178: 1 | AX178: 1 | AY178: 1 | AZ178: 1 | BA178: 1 | BB178: 1 | BC178: 1 | BE178: 2 | BH178: 132 | BW178: - | BX178: - | BY178: 15 | CA178: 132 | EL178: 170 | EN178: =IF(BE178>1,AF178,"") -> 174 | EO178: (176)
A179: 175 (177) | B179: Barbro Fohlin | C179: Fole IF | D179: 127 | F179: 2 | G179: 31.75 | N179: 48 | W179: 79 | AB179: 19 | AC179: - | AD179: - | AE179: 177 | AF179: 175 | AG179: 175 | AH179: 175 | AK179: 1 | AL179: 1 | AM179: 1 | AN179: 1 | AO179: 1 | AP179: 2 | AQ179: 2 | AR179: 1 | AS179: 1 | AT179: 1 | AU179: 1 | AV179: 1 | AW179: 1 | AX179: 1 | AY179: 2 | AZ179: 2 | BA179: 1 | BB179: 1 | BC179: 1 | BE179: 2 | BH179: 79 | BI179: 48 | BW179: - | BX179: - | BY179: 14 | CA179: 127 | EL179: 171 | EN179: 175 | EO179: (177)
A180: 175 (177) | B180: Bengt Andersson | C180: Växjö Hsk | D180: 127 | F180: 1 | G180: 63.5 | V180: 127 | AB180: 19 | AC180: - | AD180: - | AE180: 177 | AF180: 175 | AG180: - | AH180: 176 | AK180: 1 | AL180: 1 | AM180: 1 | AN180: 1 | AO180: 1 | AP180: 1 | AQ180: 1 | AR180: 1 | AS180: 1 | AT180: 1 | AU180: 1 | AV180: 1 | AW180: 1 | AX180: 2 | AY180: 2 | AZ180: 1 | BA180: 1 | BB180: 1 | BC180: 1 | BE180: 2 | BH180: 127 | BW180: - | BX180: - | BY180: 15 | CA180: 127 | EL180: 172 | EN180: 175 | EO180: (177)
A181: 177 (179) | B181: Barbro Wettersten | C181: Wisby BK | D181: 122 | F181: 2 | G181: 30.5 | N181: 40 | W181: 82 | AB181: 19 | AC181: - | AD181: - | AE181: 179 | AF181: 177 | AG181: 177 | AH181: 177 | AK181: 1 | AL181: 1 | AM181: 1 | AN181: 1 | AO181: 1 | AP181: 2 | AQ181: 2 | AR181: 1 | AS181: 1 | AT181: 1 | AU181: 1 | AV181: 1 | AW181: 1 | AX181: 1 | AY181: 2 | AZ181: 2 | BA181: 1 | BB181: 1 | BC181: 1 | BE181: 2 | BH181: 82 | BI181: 40 | BW181: - | BX181: - | BY181: 14 | CA181: 122 | EL181: 173 | EN181: 177 | EO181: (179)
A182: 178 (180) | B182: Mimmi Hansson | C182: Korpen Nybro | D182: 118 | F182: 1 | G182: 59 | X182: 118 | AB182: 19 | AC182: - | AD182: - | AE182: 180 | AF182: 178 | AG182: - | AH182: 178 | AK182: 1 | AL182: 1 | AM182: 1 | AN182: 1 | AO182: 1 | AP182: 1 | AQ182: 1 | AR182: 1 | AS182: 1 | AT182: 1 | AU182: 1 | AV182: 1 | AW182: 1 | AX182: 1 | AY182: 1 | AZ182: 2 | BA182: 2 | BB182: 1 | BC182: 1 | BE182: 2 | BH182: 118 | BW182: - | BX182: - | BY182: 15 | CA182: 118 | EL182: 174 | EN182: 178 | EO182: (180)
A183: 179 (181) | B183: Jonathan Karlsson | C183: Tingsryd | D183: 113 | F183: 1 | G183: 56.5 | O183: 113 | AB183: 19 | AC183: - | AD183: - | AE183: 181 | AF183: 179 | AG183: - | AH183: 179 | AK183: 1 | AL183: 1 | AM183: 1 | AN183: 1 | AO183: 1 | AP183: 1 | AQ183: 2 | AR183: 2 | AS183: 1 | AT183: 1 | AU183: 1 | AV183: 1 | AW183: 1 | AX183: 1 | AY183: 1 | AZ183: 1 | BA183: 1 | BB183: 1 | BC183: 1 | BE183: 2 | BH183: 113 | BW183: - | BX183: - | BY183: 15 | CA183: 113 | EL183: 182 | EN183: 179 | EO183: (181)
A184: 180 (182) | B184: Morgan Jonasson | C184: Sibbamåla | D184: 104 | F184: 1 | G184: 52 | Q184: 104 | AB184: 19 | AC184: - | AD184: - | AE184: 182 | AF184: 180 | AG184: - | AH184: 180 | AK184: 1 | AL184: 1 | AM184: 1 | AN184: 1 | AO184: 1 | AP184: 1 | AQ184: 1 | AR184: 1 | AS184: 2 | AT184: 2 | AU184: 1 | AV184: 1 | AW184: 1 | AX184: 1 | AY184: 1 | AZ184: 1 | BA184: 1 | BB184: 1 | BC184: 1 | BE184: 2 | BH184: 104 | BW184: - | BX184: - | BY184: 15 | CA184: 104 | EL184: 176 | EN184: 180 | EO184: (182)
A185: 181 (183) | B185: Ronny Lindskär | C185: Bridgegänget | D185: 96 | F185: 1 | G185: 48 | Q185: 96 | AB185: 19 | AC185: - | AD185: - | AE185: 183 | AF185: 181 | AG185: - | AH185: 181 | AK185: 1 | AL185: 1 | AM185: 1 | AN185: 1 | AO185: 1 | AP185: 1 | AQ185: 1 | AR185: 1 | AS185: 2 | AT185: 2 | AU185: 1 | AV185: 1 | AW185: 1 | AX185: 1 | AY185: 1 | AZ185: 1 | BA185: 1 | BB185: 1 | BC185: 1 | BE185: 2 | BH185: 96 | BW185: - | BX185: - | BY185: 15 | CA185: 96 | EL185: 202 | EN185: 181 | EO185: (183)
A186: 182 (184) | B186: Adam Svensson | C186: Cementa IF | D186: 91 | F186: 1 | G186: 45.5 | W186: 91 | AB186: 19 | AC186: - | AD186: - | AE186: 184 | AF186: 182 | AG186: - | AH186: 182 | AK186: 1 | AL186: 1 | AM186: 1 | AN186: 1 | AO186: 1 | AP186: 1 | AQ186: 1 | AR186: 1 | AS186: 1 | AT186: 1 | AU186: 1 | AV186: 1 | AW186: 1 | AX186: 1 | AY186: 2 | AZ186: 2 | BA186: 1 | BB186: 1 | BC186: 1 | BE186: 2 | BH186: 91 | BW186: - | BX186: - | BY186: 15 | CA186: 91 | EL186: 177 | EN186: 177 | EO186: (184)
A187: 183 (185) | B187: Ulf Gardell | C187: Mulde VK | D187: 89 | F187: 1 | G187: 44.5 | N187: 89 | AB187: 19 | AC187: - | AD187: - | AE187: 185 | AF187: 183 | AG187: - | AH187: 183 | AK187: 1 | AL187: 1 | AM187: 1 | AN187: 1 | AO187: 1 | AP187: 2 | AQ187: 2 | AR187: 1 | AS187: 1 | AT187: 1 | AU187: 1 | AV187: 1 | AW187: 1 | AX187: 1 | AY187: 1 | AZ187: 1 | BA187: 1 | BB187: 1 | BC187: 1 | BE187: 2 | BH187: 89 | BW187: - | BX187: - | BY187: 15 | CA187: 89 | EL187: 178 | EN187: =IF(BE187>1,AF187,"") -> 183 | EO187: (185)
A188: 184 (187) | B188: Patrik Olausson | C188: Sibbamåla | D188: 85 | F188: 1 | G188: 42.5 | R188: 85 | AB188: 19 | AC188: - | AD188: - | AE188: 187 | AF188: 184 | AG188: - | AH188: 184 | AK188: 1 | AL188: 1 | AM188: 1 | AN188: 1 | AO188: 1 | AP188: 1 | AQ188: 1 | AR188: 1 | AS188: 1 | AT188: 2 | AU188: 2 | AV188: 1 | AW188: 1 | AX188: 1 | AY188: 1 | AZ188: 1 | BA188: 1 | BB188: 1 | BC188: 1 | BE188: 2 | BH188: 85 | BW188: - | BX188: - | BY188: 15 | CA188: 85 | EL188: 179 | EN188: 179 | EO188: (187)
A189: =IF(BE189>1,AF189&" ("&AE189&")",AF189&" ("&AG189&")") -> 185 (188) | B189: Rasmus Johansson | C189: Cementa IF | D189: 83 | F189: 1 | G189: 41.5 | W189: 83 | AB189: 19 | AC189: - | AD189: - | AE189: 188 | AF189: =IF(D189<D188,AH189,AF188) -> 185 | AG189: - | AH189: 185 | AK189: =COUNT($I$3,I189,H189) -> 1 | AL189: =COUNT($J$3,J189,I189) -> 1 | AM189: =COUNT($K$3,K189,J189) -> 1 | AN189: =COUNT($L$3,L189,K189) -> 1 | AO189: =COUNT($M$3,M189,L189) -> 1 | AP189: =COUNT($N$3,N189,M189) -> 1 | AQ189: =COUNT($O$3,O189,N189) -> 1 | AR189: =COUNT($P$3,P189,O189) -> 1 | AS189: =COUNT($Q$3,Q189,P189) -> 1 | AT189: =COUNT($R$3,R189,Q189) -> 1 | AU189: =COUNT($S$3,S189,R189) -> 1 | AV189: =COUNT($T$3,T189,S189) -> 1 | AW189: =COUNT($U$3,U189,T189) -> 1 | AX189: =COUNT($V$3,V189,U189) -> 1 | AY189: =COUNT($W$3,W189,V189) -> 2 | AZ189: =COUNT($X$3,X189,W189) -> 2 | BA189: =COUNT($Y$3,Y189,X189) -> 1 | BB189: =COUNT($Z$3,Z189,Y189) -> 1 | BC189: =COUNT($AA$3,AA189,Z189) -> 1 | BE189: =IF(H189="x",1,2) -> 2 | BH189: =IF($F189>0,LARGE($I189:$AA189,1),"") -> 83 | BW189: =IF($F189>13,LARGE($I189:$AA189,14),"-") -> - | BX189: =IF($F189>14,LARGE($I189:$AA189,15),"-") -> - | BY189: =SUM(AB189-F189)-3 -> 15 | CA189: =SUM(BH189:BV189) -> 83 | EL189: 180 | EN189: =IF(BE189>1,AF189,"") -> 185 | EO189: =IF(BE189>1,"("&AE189&")","("&AG189&")") -> (188)
A190: 186 (189) | B190: Susanne Östrand | C190: Värends Hsk | D190: 82 | F190: 1 | G190: 41 | P190: 82 | AB190: 19 | AC190: - | AD190: - | AE190: 189 | AF190: 186 | AG190: - | AH190: 186 | AK190: 1 | AL190: 1 | AM190: 1 | AN190: 1 | AO190: 1 | AP190: 1 | AQ190: 1 | AR190: 2 | AS190: 2 | AT190: 1 | AU190: 1 | AV190: 1 | AW190: 1 | AX190: 1 | AY190: 1 | AZ190: 1 | BA190: 1 | BB190: 1 | BC190: 1 | BE190: 2 | BH190: 82 | BW190: - | BX190: - | BY190: 15 | CA190: 82 | EL190: 181 | EN190: =IF(BE190>1,AF190,"") -> 186 | EO190: (189)
A191: 187 (190) | B191: Göran Brincner | C191: Värends Hsk | D191: 80 | F191: 1 | G191: 40 | P191: 80 | AB191: 19 | AC191: - | AD191: - | AE191: 190 | AF191: 187 | AG191: - | AH191: 187 | AK191: 1 | AL191: 1 | AM191: 1 | AN191: 1 | AO191: 1 | AP191: 1 | AQ191: 1 | AR191: 2 | AS191: 2 | AT191: 1 | AU191: 1 | AV191: 1 | AW191: 1 | AX191: 1 | AY191: 1 | AZ191: 1 | BA191: 1 | BB191: 1 | BC191: 1 | BE191: 2 | BH191: 80 | BW191: - | BX191: - | BY191: 15 | CA191: 80 | EL191: 155 | EN191: =IF(BE191>=1,AF191,"") -> 187 | EO191: (190)
A192: 188 (191) | B192: Tytti Bark | C192: Lessebo Hsk | D192: 77 | F192: 1 | G192: 38.5 | K192: 77 | AB192: 19 | AC192: - | AD192: - | AE192: 191 | AF192: 188 | AG192: - | AH192: 188 | AK192: 1 | AL192: 1 | AM192: 2 | AN192: 2 | AO192: 1 | AP192: 1 | AQ192: 1 | AR192: 1 | AS192: 1 | AT192: 1 | AU192: 1 | AV192: 1 | AW192: 1 | AX192: 1 | AY192: 1 | AZ192: 1 | BA192: 1 | BB192: 1 | BC192: 1 | BE192: 2 | BH192: 77 | BW192: - | BX192: - | BY192: 15 | CA192: 77 | EL192: 183 | EN192: =IF(BE192>1,AF192,"") -> 188 | EO192: (191)
A193: 188 (191) | B193: Charlotte Åkesson | C193: Dynapac | D193: 77 | F193: 1 | G193: 38.5 | Q193: 77 | AB193: 19 | AC193: - | AD193: - | AE193: 191 | AF193: 188 | AG193: - | AH193: 189 | AK193: 1 | AL193: 1 | AM193: 1 | AN193: 1 | AO193: 1 | AP193: 1 | AQ193: 1 | AR193: 1 | AS193: 2 | AT193: 2 | AU193: 1 | AV193: 1 | AW193: 1 | AX193: 1 | AY193: 1 | AZ193: 1 | BA193: 1 | BB193: 1 | BC193: 1 | BE193: 2 | BH193: 77 | BW193: - | BX193: - | BY193: 15 | CA193: 77 | EL193: 184 | EN193: 188 | EO193: (191)
A194: 190 (193) | B194: Thorgny Björkqvist | C194: Tingsryd | D194: 67 | F194: 1 | G194: 33.5 | O194: 67 | AB194: 19 | AC194: - | AD194: - | AE194: 193 | AF194: 190 | AG194: - | AH194: 190 | AK194: 1 | AL194: 1 | AM194: 1 | AN194: 1 | AO194: 1 | AP194: 1 | AQ194: 2 | AR194: 2 | AS194: 1 | AT194: 1 | AU194: 1 | AV194: 1 | AW194: 1 | AX194: 1 | AY194: 1 | AZ194: 1 | BA194: 1 | BB194: 1 | BC194: 1 | BE194: 2 | BH194: 67 | BW194: - | BX194: - | BY194: 15 | CA194: 67 | EL194: 185 | EN194: 190 | EO194: (193)
A195: 190 (193) | B195: Torgny Nyberg | C195: Mulde VK | D195: 67 | F195: 1 | G195: 33.5 | W195: 67 | AB195: 19 | AC195: - | AD195: - | AE195: 193 | AF195: 190 | AG195: - | AH195: 191 | AK195: 1 | AL195: 1 | AM195: 1 | AN195: 1 | AO195: 1 | AP195: 1 | AQ195: 1 | AR195: 1 | AS195: 1 | AT195: 1 | AU195: 1 | AV195: 1 | AW195: 1 | AX195: 1 | AY195: 2 | AZ195: 2 | BA195: 1 | BB195: 1 | BC195: 1 | BE195: 2 | BH195: 67 | BW195: - | BX195: - | BY195: 15 | CA195: 67 | EL195: 186 | EN195: 190 | EO195: (193)
A196: 192 (195) | B196: Emelie Sjöberg | C196: Värends Hsk | D196: 62 | F196: 1 | G196: 31 | I196: 62 | AB196: 19 | AC196: - | AD196: - | AE196: 195 | AF196: 192 | AG196: =IF(F196>1,ROW(192:192),"-") -> - | AH196: 192 | AK196: 2 | AL196: 2 | AM196: 1 | AN196: 1 | AO196: 1 | AP196: 1 | AQ196: 1 | AR196: 1 | AS196: 1 | AT196: 1 | AU196: 1 | AV196: 1 | AW196: 1 | AX196: 1 | AY196: 1 | AZ196: 1 | BA196: 1 | BB196: 1 | BC196: 1 | BE196: 2 | BH196: 62 | BW196: - | BX196: - | BY196: 15 | CA196: 62 | EL196: 187 | EN196: 192 | EO196: (195)
A197: 193 (196) | B197: Lena Schalin | C197: Bridgegänget | D197: =SUM(BH197:BT197) -> 55 | F197: =COUNT(I197:AA197) -> 1 | G197: =SUM((CA197)/(F197*2)) -> 27.5 | Q197: 55 | AB197: =SUM($I$3:$AA$3) -> 19 | AC197: =BW197 -> - | AD197: =BX197 -> - | AE197: 196 | AF197: 193 | AG197: - | AH197: 193 | AK197: 1 | AL197: 1 | AM197: 1 | AN197: 1 | AO197: 1 | AP197: 1 | AQ197: 1 | AR197: 1 | AS197: 2 | AT197: 2 | AU197: 1 | AV197: 1 | AW197: 1 | AX197: 1 | AY197: 1 | AZ197: 1 | BA197: 1 | BB197: 1 | BC197: 1 | BE197: 2 | BH197: 55 | BW197: - | BX197: - | BY197: 15 | CA197: 55 | EL197: 205 | EN197: 193 | EO197: (196)
A198: 194 (197) | B198: Curt von Schlanbusch | C198: Bridgegänget | D198: 48 | F198: 1 | G198: 24 | Q198: 48 | AB198: 19 | AC198: - | AD198: - | AE198: 197 | AF198: 194 | AG198: - | AH198: 194 | AK198: 1 | AL198: 1 | AM198: 1 | AN198: 1 | AO198: 1 | AP198: 1 | AQ198: 1 | AR198: 1 | AS198: 2 | AT198: 2 | AU198: 1 | AV198: 1 | AW198: 1 | AX198: 1 | AY198: 1 | AZ198: 1 | BA198: 1 | BB198: 1 | BC198: 1 | BE198: 2 | BH198: 48 | BW198: - | BX198: - | BY198: 15 | CA198: 48 | EL198: 216 | EN198: 194 | EO198: (197)
A199: 194 (197) | B199: Alexander Wiktorsson | C199: Värends Hsk | D199: 48 | F199: 1 | G199: 24 | V199: 48 | AB199: 19 | AC199: - | AD199: - | AE199: 197 | AF199: 194 | AG199: - | AH199: 195 | AK199: 1 | AL199: 1 | AM199: 1 | AN199: 1 | AO199: 1 | AP199: 1 | AQ199: 1 | AR199: 1 | AS199: 1 | AT199: 1 | AU199: 1 | AV199: 1 | AW199: 1 | AX199: 2 | AY199: 2 | AZ199: 1 | BA199: 1 | BB199: 1 | BC199: 1 | BE199: 2 | BH199: 48 | BI199: =IF($F199>1,LARGE($I199:$AA199,2),"") ->  | BJ199: =IF($F199>2,LARGE($I199:$AA199,3),"") ->  | BK199: =IF($F199>3,LARGE($I199:$AA199,4),"") ->  | BL199: =IF($F199>4,LARGE($I199:$AA199,5),"") ->  | BM199: =IF($F199>5,LARGE($I199:$AA199,6),"") ->  | BN199: =IF($F199>6,LARGE($I199:$AA199,7),"") ->  | BO199: =IF($F199>7,LARGE($I199:$AA199,8),"") ->  | BP199: =IF($F199>8,LARGE($I199:$AA199,9),"") ->  | BQ199: =IF($F199>9,LARGE($I199:$AA199,10),"") ->  | BR199: =IF($F199>10,LARGE($I199:$AA199,11),"") ->  | BS199: =IF($F199>11,LARGE($I199:$AA199,12),"") ->  | BT199: =IF($F199>12,LARGE($I199:$AA199,13),"") ->  | BU199: =IF($F199>13,LARGE($I199:$AA199,14),"") ->  | BV199: =IF($F199>14,LARGE($I199:$AA199,15),"") ->  | BW199: - | BX199: - | BY199: 15 | CA199: 48 | EL199: 189 | EN199: 194 | EO199: (197)
A200: 196 (199) | B200: Ann-Margret Svensson | C200: Sibbamåla | D200: 27 | F200: 1 | G200: 13.5 | Q200: 27 | AB200: 19 | AC200: - | AD200: - | AE200: 199 | AF200: 196 | AG200: - | AH200: 196 | AK200: 1 | AL200: 1 | AM200: 1 | AN200: 1 | AO200: 1 | AP200: 1 | AQ200: 1 | AR200: 1 | AS200: 2 | AT200: 2 | AU200: 1 | AV200: 1 | AW200: 1 | AX200: 1 | AY200: 1 | AZ200: 1 | BA200: 1 | BB200: 1 | BC200: 1 | BE200: 2 | BH200: 27 | BW200: - | BX200: - | BY200: 15 | CA200: 27 | EL200: 190 | EN200: 196 | EO200: (199)
A201: 197 (200) | B201: Marianne Wadaszi | C201: Bridgegänget | D201: 23 | F201: 1 | G201: 11.5 | Q201: 23 | AB201: 19 | AC201: - | AD201: - | AE201: 200 | AF201: 197 | AG201: - | AH201: 197 | AK201: 1 | AL201: 1 | AM201: 1 | AN201: 1 | AO201: 1 | AP201: 1 | AQ201: 1 | AR201: 1 | AS201: 2 | AT201: 2 | AU201: 1 | AV201: 1 | AW201: 1 | AX201: 1 | AY201: 1 | AZ201: 1 | BA201: 1 | BB201: 1 | BC201: 1 | BE201: 2 | BH201: 23 | BW201: - | BX201: - | BY201: 15 | CA201: 23 | EL201: 191 | EN201: 197 | EO201: (200)
... 19 more rows

Sheet Regler
A1: Regler för Sverige-,Junior- o Miniorranking
A3: Rankingpoäng utgör den totala poängen från rankingtävlingar under säsongen
A4: som varje enskild kastare har fått ihop.
A5: Max från 13 tävlingar kan medräknas, och då räknas de 13 med högst resultat.
A7: Den som har högst poäng när säsongen är över vinner.
A9: Skulle det vara kastare som hamnar på samma poäng när säsongen är över, och är bland de
A10: tre bästa så gäller detta för att skilja dem åt.
A12: 1. Högst snitt per serie
A13: 2. Högst poäng på en tävling, sedan näst högst osv.
A14: 3. Högsta poängen på senaste tävlingen, sedan den dessför innan osv.(DM-tävlingar ej inräknade)
A15: 4. Skulle det fortfarande inte gå att skilja dem åt, så blir de på samma plats.
A18: Seriespelsranking
A20: Alla individuella seriespelsresultaten under säsongen räknas in.
A21: Den som har högst snitt när säsongen är över vinner.
A23: För att kunna vara bland de tre pristagarna, måste man spelat minst 7 serier.
A25: Skulle det vara kastare som hamnar på samma snitt när säsongen är över, och är bland de
A26: tre bästa så gäller detta för att skilja dem åt.
A28: 1. Det högsta serieresultatet, sedan näst högsta osv.
A29: 2. Skulle det fortfarande inte gå att skilja dem åt, så blir de på samma plats.

Sheet Miniorranking
B1: Svenska Hästskokastarförbundets Sverigeranking
C2: MINIOR
C3: SLUTSTÄLLNING 2015/2016 | I3: =IF(SUM(I5:I407)>100,1,"") -> 1 | J3: 1 | L3: 1 | M3: 1 | O3: 1 | P3: 1 | Q3: 1 | R3: 1 | S3: 1 | T3: 1 | U3: 1 | V3: 1 | X3: 1 | Y3: 1 | Z3: 1 | AA3: 1
A4: Plac. | B4: Kastare | C4: Klubb | D4: Ranking-poäng | F4: Antal täv-lingar | G4: Snitt per serie | I4: Växjö Open | J4: Björkenäs Open | K4: Utomhus-SM Dag 1 | L4: Utomhus-SM Dag 2 | M4: Utomhus Smålandsmästaren | N4: Gotlands-DM ute | O4: Gotland Open | P4: Septemberskon | Q4: Dynapac Open | R4: Blekinge-DM Ute | S4: Åseda Open | T4: Höstskon Nybro | U4: Novemberkampen | V4: Inomhus-SM | W4: Gotlands-DM inne | X4: Inomhus Smålandsmästaren | Y4: Blekinge DM Inne | Z4: Värendspokalen | AA4: Tingsryds Open
A5: =EJ5&EK5 -> 1(1) | B5: Alexander Lundqvist | C5: Alvesta Hsk | D5: =SUM(I5:AA5) -> 4754 | F5: =COUNT(I5:AA5) -> 14 | G5: =SUM((D5)/(F5*2)) -> 169.7857143 | I5: 282 | J5: 400 | L5: 257 | M5: 257 | O5: 203 | P5: 404 | Q5: 285 | S5: 405 | T5: 309 | U5: 394 | V5: 221 | X5: 558 | Z5: 487 | AA5: 292 | AD5: 1 | AE5: =IF(D5>1,ROW(1:1),"-") -> 1 | AF5: =IF(F5>1,ROW(1:1),"-") -> 1 | AJ5: =COUNT($I$3,I5,H5) -> 2 | AK5: =COUNT($J$3,J5,I5) -> 3 | AL5: =COUNT($K$3,K5,J5) -> 1 | AM5: =COUNT($L$3,L5,K5) -> 2 | AN5: =COUNT($M$3,M5,L5) -> 3 | AO5: =COUNT($N$3,N5,M5) -> 1 | AP5: =COUNT($O$3,O5,N5) -> 2 | AQ5: =COUNT($P$3,P5,O5) -> 3 | AR5: =COUNT($Q$3,Q5,P5) -> 3 | AS5: =COUNT($R$3,R5,Q5) -> 2 | AT5: =COUNT($S$3,S5,R5) -> 2 | AU5: =COUNT($T$3,T5,S5) -> 3 | AV5: =COUNT($U$3,U5,T5) -> 3 | AW5: =COUNT($V$3,V5,U5) -> 3 | AX5: =COUNT($W$3,W5,V5) -> 1 | AY5: =COUNT($X$3,X5,W5) -> 2 | AZ5: =COUNT($Y$3,Y5,X5) -> 2 | BA5: =COUNT($Z$3,Z5,Y5) -> 2 | BB5: =COUNT($AA$3,AA5,Z5) -> 3 | BD5: =COUNTIF(AI5:BC5,">1") -> 16 | BE5: =IF(H5="x",1,2) -> 2 | EH5: 1 | EJ5: =IF(BD5>=1,AE5,"") -> 1 | EK5: =IF(BE5>1,"("&AD5&")","("&AF5&")") -> (1)
A6: =EJ6&EK6 -> 2(2) | B6: Kevin Rydell | C6: Värends Hsk | D6: 1198 | F6: 7 | G6: 85.57142857 | J6: 112 | M6: 132 | P6: 184 | U6: 196 | V6: 216 | X6: 138 | Z6: 220 | AD6: 2 | AE6: =IF(D6=D5,ROW(1:1),IF(D6>1,ROW(2:2),"-")) -> 2 | AF6: 2 | AJ6: =COUNT($I$3,I6,H6) -> 1 | AK6: =COUNT($J$3,J6,I6) -> 2 | AL6: =COUNT($K$3,K6,J6) -> 1 | AM6: =COUNT($L$3,L6,K6) -> 1 | AN6: =COUNT($M$3,M6,L6) -> 2 | AO6: =COUNT($N$3,N6,M6) -> 1 | AP6: =COUNT($O$3,O6,N6) -> 1 | AQ6: =COUNT($P$3,P6,O6) -> 2 | AR6: =COUNT($Q$3,Q6,P6) -> 2 | AS6: =COUNT($R$3,R6,Q6) -> 1 | AT6: =COUNT($S$3,S6,R6) -> 1 | AU6: =COUNT($T$3,T6,S6) -> 1 | AV6: =COUNT($U$3,U6,T6) -> 2 | AW6: =COUNT($V$3,V6,U6) -> 3 | AX6: =COUNT($W$3,W6,V6) -> 1 | AY6: =COUNT($X$3,X6,W6) -> 2 | AZ6: =COUNT($Y$3,Y6,X6) -> 2 | BA6: =COUNT($Z$3,Z6,Y6) -> 2 | BB6: =COUNT($AA$3,AA6,Z6) -> 2 | BD6: =COUNTIF(AI6:BC6,">1") -> 10 | BE6: =IF(H6="x",1,2) -> 2 | EH6: 2 | EJ6: =IF(BD6>=1,AE6,"") -> 2 | EK6: =IF(BE6>1,"("&AD6&")","("&AF6&")") -> (2)
A7: 3(3) | B7: Ola Frost | C7: Sibbamåla | D7: 885 | F7: 7 | G7: 63.21428571 | I7: 124 | J7: 166 | Q7: 221 | R7: 129 | U7: 124 | V7: 41 | Y7: 80 | AD7: 3 | AE7: =IF(AND(D7=D6,D7=D5),ROW(1:1),IF(D7=D6,ROW(2:2),IF(D7>1,ROW(3:3),"-"))) -> 3 | AF7: 3 | AJ7: 2 | AK7: 3 | AL7: 1 | AM7: 1 | AN7: 1 | AO7: 0 | AP7: 1 | AQ7: 1 | AR7: 2 | AS7: 3 | AT7: 2 | AU7: 1 | AV7: 2 | AW7: 3 | AX7: 1 | AY7: 1 | AZ7: 2 | BA7: 2 | BB7: 1 | BD7: 9 | BE7: 2 | EH7: 3 | EJ7: 3 | EK7: (3)
A8: 4(4) | B8: Johannes Engkvist | C8: Alvesta Hsk | D8: 764 | F8: 13 | G8: 29.38461538 | I8: 72 | J8: 51 | L8: 30 | O8: 30 | P8: 71 | Q8: 39 | S8: 73 | T8: 70 | U8: 98 | V8: 43 | X8: 84 | Z8: 58 | AA8: 45 | AD8: 4 | AE8: =IF(AND(D8=D7,D8=D6,D8=D5),ROW(1:1),IF(AND(D8=D7,D8=D6),ROW(2:2),IF(D8=D7,ROW(3:3),IF(D8>1,ROW(4:4),"-")))) -> 4 | AF8: 4 | AJ8: 2 | AK8: 3 | AL8: 1 | AM8: 2 | AN8: 2 | AO8: 0 | AP8: 2 | AQ8: 3 | AR8: 3 | AS8: 2 | AT8: 2 | AU8: 3 | AV8: 3 | AW8: 3 | AX8: 1 | AY8: 2 | AZ8: 2 | BA8: 2 | BB8: 3 | BD8: 16 | BE8: 2 | EH8: 4 | EJ8: 4 | EK8: (4)
A9: 5(5) | B9: Natalie Sundahl | C9: Carlskrona Hsc | D9: 659 | F9: 5 | G9: 65.9 | U9: 101 | V9: 98 | Y9: 191 | Z9: 133 | AA9: 136 | AD9: 5 | AE9: =IF(AND(D9=D8,D9=D7,D9=D6,D9=D5),ROW(1:1),IF(AND(D9=D8,D9=D7,D9=D6),ROW(2:2),IF(AND(D9=D8,D9=D7),ROW(3:3),IF(D9=D8,ROW(4:4),IF(D9>1,ROW(5:5),"-"))))) -> 5 | AF9: 5 | AJ9: 1 | AK9: 1 | AL9: 0 | AM9: 1 | AN9: 1 | AO9: 0 | AP9: 1 | AQ9: 1 | AR9: 1 | AS9: 1 | AT9: 1 | AU9: 1 | AV9: 2 | AW9: 3 | AX9: 1 | AY9: 1 | AZ9: 2 | BA9: 3 | BB9: 3 | BD9: 5 | BE9: 2 | EH9: 5 | EJ9: 5 | EK9: (5)
A10: 6(6) | B10: Oskar Stener | C10: Alvesta Hsk | D10: 643 | F10: 7 | G10: 45.92857143 | J10: 105 | L10: 100 | T10: 82 | U10: 83 | V10: 75 | X10: 83 | Z10: 115 | AD10: 6 | AE10: 6 | AF10: 6 | AJ10: 1 | AK10: 2 | AL10: 1 | AM10: 2 | AN10: 2 | AO10: 0 | AP10: 1 | AQ10: 1 | AR10: 1 | AS10: 1 | AT10: 1 | AU10: 2 | AV10: 3 | AW10: 3 | AX10: 1 | AY10: 2 | AZ10: 2 | BA10: 2 | BB10: 2 | BD10: 10 | BE10: 2 | EH10: 6 | EJ10: 6 | EK10: (6)
A11: 7(7) | B11: William Axelsson | C11: Alvesta Hsk | D11: 574 | F11: 4 | G11: 71.75 | O11: 127 | P11: 194 | Q11: 172 | Z11: 81 | AD11: 7 | AE11: 7 | AF11: 7 | AJ11: 1 | AK11: 1 | AL11: 0 | AM11: 1 | AN11: 1 | AO11: 0 | AP11: 2 | AQ11: 3 | AR11: 3 | AS11: 2 | AT11: 1 | AU11: 1 | AV11: 1 | AW11: 1 | AX11: 0 | AY11: 1 | AZ11: 1 | BA11: 2 | BB11: 2 | BD11: 6 | BE11: 2 | EH11: 7 | EJ11: 7 | EK11: (7)
A12: 8(8) | B12: Evelina Olsson | C12: Dynapac | D12: 418 | F12: 5 | G12: 41.8 | J12: 67 | L12: 57 | Q12: 108 | R12: 103 | Y12: 83 | AD12: 8 | AE12: 8 | AF12: 8 | AJ12: 1 | AK12: 2 | AL12: 1 | AM12: 2 | AN12: 2 | AO12: 0 | AP12: 1 | AQ12: 1 | AR12: 2 | AS12: 3 | AT12: 2 | AU12: 1 | AV12: 1 | AW12: 1 | AX12: 0 | AY12: 1 | AZ12: 2 | BA12: 2 | BB12: 1 | BD12: 8 | BE12: 2 | EH12: 8 | EJ12: 8 | EK12: (8)
A13: 9(9) | B13: Julius Gneupel | C13: Sibbamåla | D13: 353 | F13: 3 | G13: 58.83333333 | I13: 134 | J13: 114 | O13: 105 | AD13: 9 | AE13: 9 | AF13: 9 | AJ13: 2 | AK13: 3 | AL13: 1 | AM13: 1 | AN13: 1 | AO13: 0 | AP13: 2 | AQ13: 2 | AR13: 1 | AS13: 1 | AT13: 1 | AU13: 1 | AV13: 1 | AW13: 1 | AX13: 0 | AY13: 1 | AZ13: 1 | BA13: 1 | BB13: 1 | BD13: 4 | BE13: 2 | EH13: 9 | EJ13: 9 | EK13: (9)
A14: 10(10) | B14: Isak Östrand | C14: Värends Hsk | D14: 283 | F14: 2 | G14: 70.75 | I14: 152 | M14: 131 | AD14: 10 | AE14: 10 | AF14: 10 | AJ14: 2 | AK14: 2 | AL14: 0 | AM14: 1 | AN14: 2 | AO14: 1 | AP14: 1 | AQ14: 1 | AR14: 1 | AS14: 1 | AT14: 1 | AU14: 1 | AV14: 1 | AW14: 1 | AX14: 0 | AY14: 1 | AZ14: 1 | BA14: 1 | BB14: 1 | BD14: 3 | BE14: 2 | EH14: 10 | EJ14: 10 | EK14: (10)
A15: 11(11) | B15: Elvin Rydell | C15: Värends Hsk | D15: 194 | F15: 4 | G15: 24.25 | I15: 51 | P15: 69 | V15: 43 | X15: 31 | AD15: 11 | AE15: 11 | AF15: 11 | AJ15: 2 | AK15: 2 | AL15: 0 | AM15: 1 | AN15: 1 | AO15: 0 | AP15: 1 | AQ15: 2 | AR15: 2 | AS15: 1 | AT15: 1 | AU15: 1 | AV15: 1 | AW15: 2 | AX15: 1 | AY15: 2 | AZ15: 2 | BA15: 1 | BB15: 1 | BD15: 7 | BE15: 2 | EH15: 11 | EJ15: 11 | EK15: (11)
A16: 12(12) | B16: Hugo Bark | C16: Lessebo Hsk | D16: 163 | F16: 1 | G16: 81.5 | J16: 163 | AD16: 12 | AE16: 12 | AF16: - | AJ16: 1 | AK16: 2 | AL16: 1 | AM16: 1 | AN16: 1 | AO16: 0 | AP16: 1 | AQ16: 1 | AR16: 1 | AS16: 1 | AT16: 1 | AU16: 1 | AV16: 1 | AW16: 1 | AX16: 0 | AY16: 1 | AZ16: 1 | BA16: 1 | BB16: 1 | BD16: 1 | BE16: 2 | EH16: 12 | EJ16: 12 | EK16: (12)
A17: 13(13) | B17: Lukas Gunnarsson | C17: Tingsryd Hsc | D17: 144 | F17: 1 | G17: 72 | X17: 144 | AD17: 13 | AE17: 13 | AF17: - | AJ17: 1 | AK17: 1 | AL17: 0 | AM17: 1 | AN17: 1 | AO17: 0 | AP17: 1 | AQ17: 1 | AR17: 1 | AS17: 1 | AT17: 1 | AU17: 1 | AV17: 1 | AW17: 1 | AX17: 0 | AY17: 2 | AZ17: 2 | BA17: 1 | BB17: 1 | BD17: 2 | BE17: 2 | EH17: 13 | EJ17: 13 | EK17: (13)
A18: 14(14) | B18: Iza Frost | C18: Sibbamåla | D18: 84 | F18: 2 | G18: 21 | J18: 54 | Y18: 30 | AD18: 14 | AE18: 14 | AF18: 14 | AJ18: 1 | AK18: 2 | AL18: 1 | AM18: 1 | AN18: 1 | AO18: 0 | AP18: 1 | AQ18: 1 | AR18: 1 | AS18: 1 | AT18: 1 | AU18: 1 | AV18: 1 | AW18: 1 | AX18: 0 | AY18: 1 | AZ18: 2 | BA18: 2 | BB18: 1 | BD18: 3 | BE18: 2 | EH18: 14 | EJ18: =IF(BD18>=1,AE18,"") -> 14 | EK18: (14)
A19: 15(-) | B19: Minoo Christensson | C19: Värends Hsk | D19: 37 | F19: 1 | G19: 18.5 | M19: 37 | AD19: - | AE19: 15 | AF19: - | AJ19: 1 | AK19: 1 | AL19: 0 | AM19: 1 | AN19: 2 | AO19: 1 | AP19: 1 | AQ19: 1 | AR19: 1 | AS19: 1 | AT19: 1 | AU19: 1 | AV19: 1 | AW19: 1 | AX19: 0 | AY19: 1 | AZ19: 1 | BA19: 1 | BB19: 1 | BD19: 1 | BE19: 2 | EH19: 15 | EJ19: 15 | EK19: (-)
A20: 16(16) | B20: Mak Sisic | C20: Värends Hsk | D20: 21 | F20: 1 | G20: 10.5 | P20: 21 | AD20: 16 | AE20: 16 | AF20: - | AJ20: 1 | AK20: 1 | AL20: 0 | AM20: 1 | AN20: 1 | AO20: 0 | AP20: 1 | AQ20: 2 | AR20: 2 | AS20: 1 | AT20: 1 | AU20: 1 | AV20: 1 | AW20: 1 | AX20: 0 | AY20: 1 | AZ20: 1 | BA20: 1 | BB20: 1 | BD20: 2 | BE20: 2 | EH20: 16 | EJ20: =IF(BD20>=1,AE20,"") -> 16 | EK20: (16)
A21: (17) | D21: 0 | F21: 0 | AD21: 17 | AE21: - | AF21: - | AJ21: 1 | AK21: 1 | AL21: 0 | AM21: 1 | AN21: 1 | AO21: 0 | AP21: 1 | AQ21: 1 | AR21: 1 | AS21: 1 | AT21: 1 | AU21: 1 | AV21: 1 | AW21: 1 | AX21: 0 | AY21: 1 | AZ21: 1 | BA21: 1 | BB21: 1 | BD21: 0 | BE21: 2 | EH21: 17 | EK21: (17)
A22: =EJ22&EK22 -> (-) | D22: 0 | F22: 0 | AD22: - | AE22: 17 | AF22: - | AJ22: 1 | AK22: 1 | AL22: 0 | AM22: 1 | AN22: 1 | AO22: 0 | AP22: 1 | AQ22: 1 | AR22: 1 | AS22: 1 | AT22: 1 | AU22: 1 | AV22: 1 | AW22: 1 | AX22: 0 | AY22: 1 | AZ22: 1 | BA22: 1 | BB22: 1 | BD22: 0 | BE22: 2 | EH22: 18 | EK22: (-)
A23: =EJ23&EK23 -> (18) | D23: 0 | F23: 0 | AD23: 18 | AE23: =IF(AND(D23=D22,D23=D21,D23=D20,D23=D19),ROW(15:15),IF(AND(D23=D22,D23=D21,D23=D20),ROW(16:16),IF(AND(D23=D22,D23=D21),ROW(17:17),IF(D23=D22,ROW(18:18),IF(D23>1,ROW(19:19),"-"))))) -> 17 | AF23: =IF(F23>1,ROW(19:19),"-") -> - | AJ23: =COUNT($I$3,I23,H23) -> 1 | AK23: =COUNT($J$3,J23,I23) -> 1 | AL23: =COUNT($K$3,K23,J23) -> 0 | AM23: =COUNT($L$3,L23,K23) -> 1 | AN23: =COUNT($M$3,M23,L23) -> 1 | AO23: =COUNT($N$3,N23,M23) -> 0 | AP23: =COUNT($O$3,O23,N23) -> 1 | AQ23: =COUNT($P$3,P23,O23) -> 1 | AR23: =COUNT($Q$3,Q23,P23) -> 1 | AS23: =COUNT($R$3,R23,Q23) -> 1 | AT23: =COUNT($S$3,S23,R23) -> 1 | AU23: =COUNT($T$3,T23,S23) -> 1 | AV23: =COUNT($U$3,U23,T23) -> 1 | AW23: =COUNT($V$3,V23,U23) -> 1 | AX23: =COUNT($W$3,W23,V23) -> 0 | AY23: =COUNT($X$3,X23,W23) -> 1 | AZ23: =COUNT($Y$3,Y23,X23) -> 1 | BA23: =COUNT($Z$3,Z23,Y23) -> 1 | BB23: =COUNT($AA$3,AA23,Z23) -> 1 | BD23: =COUNTIF(AI23:BC23,">1") -> 0 | BE23: =IF(H23="x",1,2) -> 2 | EH23: 19 | EK23: =IF(BE23>1,"("&AD23&")","("&AF23&")") -> (18)
A24: (18) | D24: 0 | F24: 0 | AD24: 18 | AE24: 17 | AF24: - | AJ24: 1 | AK24: 1 | AL24: 0 | AM24: 1 | AN24: 1 | AO24: 0 | AP24: 1 | AQ24: 1 | AR24: 1 | AS24: 1 | AT24: 1 | AU24: 1 | AV24: 1 | AW24: 1 | AX24: 0 | AY24: 1 | AZ24: 1 | BA24: 1 | BB24: 1 | BD24: 0 | BE24: 2 | EH24: 20 | EK24: (18)
A25: =EJ25&EK25 -> (18) | D25: 0 | F25: 0 | AD25: 18 | AE25: =IF(AND(D25=D24,D25=D23,D25=D22,D25=D21),ROW(17:17),IF(AND(D25=D24,D25=D23,D25=D22),ROW(18:18),IF(AND(D25=D24,D25=D23),ROW(19:19),IF(D25=D24,ROW(20:20),IF(D25>1,ROW(21:21),"-"))))) -> 17 | AF25: =IF(F25>1,ROW(21:21),"-") -> - | AJ25: =COUNT($I$3,I25,H25) -> 1 | AK25: =COUNT($J$3,J25,I25) -> 1 | AL25: =COUNT($K$3,K25,J25) -> 0 | AM25: =COUNT($L$3,L25,K25) -> 1 | AN25: =COUNT($M$3,M25,L25) -> 1 | AO25: =COUNT($N$3,N25,M25) -> 0 | AP25: =COUNT($O$3,O25,N25) -> 1 | AQ25: =COUNT($P$3,P25,O25) -> 1 | AR25: =COUNT($Q$3,Q25,P25) -> 1 | AS25: =COUNT($R$3,R25,Q25) -> 1 | AT25: =COUNT($S$3,S25,R25) -> 1 | AU25: =COUNT($T$3,T25,S25) -> 1 | AV25: =COUNT($U$3,U25,T25) -> 1 | AW25: =COUNT($V$3,V25,U25) -> 1 | AX25: =COUNT($W$3,W25,V25) -> 0 | AY25: =COUNT($X$3,X25,W25) -> 1 | AZ25: =COUNT($Y$3,Y25,X25) -> 1 | BA25: =COUNT($Z$3,Z25,Y25) -> 1 | BB25: =COUNT($AA$3,AA25,Z25) -> 1 | BD25: =COUNTIF(AI25:BC25,">1") -> 0 | BE25: =IF(H25="x",1,2) -> 2 | EH25: 21 | EK25: =IF(BE25>1,"("&AD25&")","("&AF25&")") -> (18)
EH28: 1 | EJ28: =IF(BD28>=1,AE28,"") ->  | EK28: =IF(BD28>1,"("&AD28&")","("&AF28&")") -> ()
EH29: 3 | EK29: ()
EH30: 4 | EK30: ()
EH31: 5 | EK31: ()
EH32: 6 | EK32: ()
EH33: 7 | EK33: ()
EH34: 8 | EK34: ()
EH35: 9 | EK35: ()
EH36: 10 | EK36: ()
EH37: 11 | EK37: ()
EH38: 12 | EK38: ()
EH39: 13 | EK39: ()
EH40: 14 | EJ40: =IF(BD40>=1,AE40,14) -> 14 | EK40: ()
EH41: 15 | EJ41: =IF(BD41>=1,AE41,"") ->  | EK41: ()
EH42: 16 | EJ42: =IF(BD42>=1,AE42,"") ->  | EK42: ()
EH43: 2 | EJ43: =IF(BD43>=1,AE43,"") ->  | EK43: ()
EH44: 17 | EJ44: =IF(BD44>=1,AE44,"") ->  | EK44: =IF(BD44>2,"("&AD44&")","("&AF44&")") -> ()
EH45: 18 | EJ45: 18 | EK45: =IF(BD45>1,"("&AD45&")","("&AF45&")") -> ()
EH46: 19 | EJ46: 19 | EK46: =IF(BD46>1,"("&AD46&")","("&AF46&")") -> ()
EH47: 20 | EJ47: 20 | EK47: =IF(BD47>1,"("&AD47&")","("&AF47&")") -> ()

Sheet Seriespelsranking
B1: Svenska Hästskokastarförbundets Seriespelsranking
B2: 2015_2016
B3: SLUTSTÄLLNING
A4: Plac. | B4: Kastare | C4: Klubb | D4: Ranking-snitt | F4: Antal serie-resultat | G4: Total-poäng serie-resultat | I4: Antal vunna dubblar | J4: Antal förlorade dubblar | K4: Antal vunna singlar | L4: Antal förlorade singlar | M4: Antal vunna matcher i % | N4: Inskrivning resultat | BQ4: Uträkning för | BR4: statistik vunna resp. | BS4: förlorade | BT4: dubblar och singlar.
A5: =DU5&EE5 -> 1(1) | B5: Tobias Gneupel | C5: Sibbamåla | D5: =IF(F5>0.5,(G5/F5),0) -> 207.075 | F5: =COUNT(N5:BO5) -> 40 | G5: =SUM(N5:BO5) -> 8283 | I5: =COUNTIF(BQ5:DR5,2) -> 0 | J5: =COUNTIF(BQ5:DR5,-2) -> 0 | K5: =COUNTIF(BQ5:DR5,1) -> 0 | L5: =COUNTIF(BQ5:DR5,-1) -> 0 | M5: =IF(F5>0,(I5+K5)/(F5),0) -> 0 | N5: 195 | O5: 273 | P5: 222 | Q5: 186 | R5: 174 | S5: 165 | T5: 221 | U5: 268 | V5: 228 | W5: 251 | X5: 219 | Y5: 212 | Z5: 218 | AA5: 220 | AB5: 205 | AC5: 162 | AD5: 242 | AE5: 237 | AF5: 254 | AG5: 218 | AH5: 180 | AI5: 203 | AJ5: 206 | AK5: 171 | AL5: 148 | AM5: 236 | AN5: 135 | AO5: 163 | AP5: 171 | AQ5: 212 | AR5: 201 | AS5: 188 | AT5: 245 | AU5: 158 | AV5: 221 | AW5: 273 | AX5: 240 | AY5: 228 | AZ5: 166 | BA5: 168 | DT5: 1 | DU5: =IF(AND(D5=D4,D5=D3,D5=D2,D5=D1),ROW(1:1),IF(AND(D5=D4,D5=D3,D5=D2),ROW(1:1),IF(AND(D5=D4,D5=D3),ROW(1:1),IF(D5=D4,ROW(1:1),IF(D5>1,ROW(1:1),"-"))))) -> 1 | DV5: =IF(DX5=1,ROW(1:1),"-") -> 1 | DX5: 1 | EB5: 11 | ED5: =IF(DX5=1,DU5,IF(DX5="",DU5,"")) -> 1 | EE5: =IF(DX5=1,"("&DT5&")","("&DV5&")") -> (1)
A6: 2(2) | B6: Sandor Bodi | C6: Växjö | D6: 203.5277778 | F6: 36 | G6: 7327 | I6: 0 | J6: 0 | K6: 0 | L6: 0 | M6: 0 | N6: 231 | O6: 176 | P6: 216 | Q6: 175 | R6: 225 | S6: 198 | T6: 166 | U6: 133 | V6: 182 | W6: 211 | X6: 292 | Y6: 222 | Z6: 183 | AA6: 139 | AB6: 143 | AC6: 122 | AD6: 130 | AE6: 183 | AF6: 134 | AG6: 151 | AH6: 192 | AI6: 221 | AJ6: 242 | AK6: 160 | AL6: 322 | AM6: 309 | AN6: 273 | AO6: 238 | AP6: 245 | AQ6: 271 | AR6: 202 | AS6: 282 | AT6: 179 | AU6: 181 | AV6: 221 | AW6: 177 | DT6: 2 | DU6: =IF(AND(D6=D5,D6=D4,D6=D3,D6=D2),ROW(1:1),IF(AND(D6=D5,D6=D4,D6=D3),ROW(1:1),IF(AND(D6=D5,D6=D4),ROW(1:1),IF(D6=D5,ROW(1:1),IF(D6>1,ROW(2:2),"-"))))) -> 2 | DV6: 2 | DX6: 1 | EB6: 16 | ED6: 2 | EE6: (2)
A7: 3(3) | B7: Kent Sundahl | C7: Carlskrona | D7: 190.0540541 | F7: 37 | G7: 7032 | I7: 0 | J7: 0 | K7: 0 | L7: 0 | M7: 0 | N7: 147 | O7: 234 | P7: 161 | Q7: 176 | R7: 194 | S7: 137 | T7: 155 | U7: 148 | V7: 165 | W7: 210 | X7: 96 | Y7: 205 | Z7: 178 | AA7: 247 | AB7: 241 | AC7: 225 | AD7: 213 | AE7: 132 | AF7: 121 | AG7: 167 | AH7: 158 | AI7: 143 | AJ7: 182 | AK7: 182 | AL7: 184 | AM7: 245 | AN7: 165 | AO7: 205 | AP7: 248 | AQ7: 211 | AR7: 155 | AS7: 285 | AT7: 154 | AU7: 243 | AV7: 193 | AW7: 259 | AX7: 268 | DT7: 3 | DU7: =IF(AND(D7=D6,D7=D5,D7=D4,D7=D3),ROW(1:1),IF(AND(D7=D6,D7=D5,D7=D4),ROW(1:1),IF(AND(D7=D6,D7=D5),ROW(1:1),IF(D7=D6,ROW(2:2),IF(D7>1,ROW(3:3),"-"))))) -> 3 | DV7: 3 | DX7: 1 | EB7: 20 | ED7: 3 | EE7: (3)
A8: 4(5) | B8: Leo Andersson | C8: Carlskrona | D8: 182.4054054 | F8: 37 | G8: 6749 | I8: 0 | J8: 0 | K8: 0 | L8: 0 | M8: 0 | N8: 193 | O8: 169 | P8: 255 | Q8: 147 | R8: 130 | S8: 161 | T8: 175 | U8: 182 | V8: 182 | W8: 174 | X8: 136 | Y8: 218 | Z8: 253 | AA8: 160 | AB8: 218 | AC8: 231 | AD8: 136 | AE8: 190 | AF8: 184 | AG8: 133 | AH8: 143 | AI8: 163 | AJ8: 177 | AK8: 142 | AL8: 181 | AM8: 182 | AN8: 192 | AO8: 221 | AP8: 198 | AQ8: 144 | AR8: 176 | AS8: 187 | AT8: 231 | AU8: 176 | AV8: 144 | AW8: 237 | AX8: 228 | DT8: 5 | DU8: =IF(AND(D8=D7,D8=D6,D8=D5),ROW(1:1),IF(AND(D8=D7,D8=D6),ROW(2:2),IF(D8=D7,ROW(3:3),IF(D8>1,ROW(4:4),"-")))) -> 4 | DV8: 4 | DX8: 1 | EB8: 4 | ED8: 4 | EE8: (5)
A9: 5(4) | B9: Armin Sisic | C9: Värends Hsk | D9: 180.6666667 | F9: 6 | G9: 1084 | I9: 0 | J9: 0 | K9: 0 | L9: 0 | M9: 0 | N9: 209 | O9: 162 | P9: 212 | Q9: 220 | R9: 132 | S9: 149 | DT9: 4 | DU9: =IF(D9>1,ROW(5:5),"-") -> 5 | DV9: 5 | DX9: 1 | EB9: 1 | ED9: 5 | EE9: (4)
A10: 6(6) | B10: Olle Ottosson | C10: Dynapac Södra | D10: 177.0731707 | F10: 41 | G10: 7260 | I10: 0 | J10: 0 | K10: 0 | L10: 0 | M10: 0 | N10: 147 | O10: 152 | P10: 172 | Q10: 244 | R10: 248 | S10: 172 | T10: 266 | U10: 135 | V10: 182 | W10: 144 | X10: 181 | Y10: 138 | Z10: 224 | AA10: 221 | AB10: 172 | AC10: 230 | AD10: 203 | AE10: 198 | AF10: 116 | AG10: 94 | AH10: 107 | AI10: 181 | AJ10: 122 | AK10: 207 | AL10: 237 | AM10: 183 | AN10: 131 | AO10: 128 | AP10: 185 | AQ10: 193 | AR10: 203 | AS10: 137 | AT10: 151 | AU10: 193 | AV10: 195 | AW10: 166 | AX10: 272 | AY10: 240 | AZ10: 169 | BA10: 99 | BB10: 122 | DT10: 6 | DU10: =IF(D10=D9,ROW(5:5),IF(D10>1,ROW(6:6),"-")) -> 6 | DV10: 6 | DX10: 1 | EB10: 2 | ED10: 6 | EE10: (6)
A11: 7(8) | B11: Matz Karlsson | C11: Korpen Åseda | D11: 167.6842105 | F11: 38 | G11: 6372 | I11: 0 | J11: 0 | K11: 0 | L11: 0 | M11: 0 | N11: 176 | O11: 123 | P11: 123 | Q11: 176 | R11: 188 | S11: 218 | T11: 193 | U11: 173 | V11: 162 | W11: 197 | X11: 155 | Y11: 142 | Z11: 159 | AA11: 145 | AB11: 140 | AC11: 97 | AD11: 81 | AE11: 82 | AF11: 109 | AG11: 179 | AH11: 142 | AI11: 176 | AJ11: 185 | AK11: 78 | AL11: 164 | AM11: 128 | AN11: 197 | AO11: 217 | AP11: 204 | AQ11: 268 | AR11: 179 | AS11: 208 | AT11: 257 | AU11: 181 | AV11: 174 | AW11: 178 | AX11: 191 | AY11: 227 | DT11: 8 | DU11: =IF(AND(D11=D10,D11=D9,D11=D8,D11=D7),ROW(3:3),IF(AND(D11=D10,D11=D9,D11=D8),ROW(4:4),IF(AND(D11=D10,D11=D9),ROW(5:5),IF(D11=D10,ROW(6:6),IF(D11>1,ROW(7:7),"-"))))) -> 7 | DV11: 7 | DX11: 1 | EB11: 5 | ED11: 7 | EE11: (8)
A12: 8(7) | B12: Ingvar Eriksson | C12: Carlskrona | D12: 165.5 | F12: 36 | G12: 5958 | I12: 0 | J12: 0 | K12: 0 | L12: 0 | M12: 0 | N12: 148 | O12: 179 | P12: 193 | Q12: 133 | R12: 176 | S12: 151 | T12: 211 | U12: 176 | V12: 102 | W12: 275 | X12: 197 | Y12: 226 | Z12: 234 | AA12: 208 | AB12: 96 | AC12: 133 | AD12: 109 | AE12: 98 | AF12: 64 | AG12: 127 | AH12: 176 | AI12: 125 | AJ12: 167 | AK12: 189 | AL12: 192 | AM12: 190 | AN12: 149 | AO12: 174 | AP12: 155 | AQ12: 200 | AR12: 148 | AS12: 174 | AT12: 136 | AU12: 184 | AV12: 199 | AW12: 164 | DT12: 7 | DU12: 8 | DV12: 8 | DX12: 1 | EB12: 6 | ED12: 8 | EE12: (7)
A13: 9(9) | B13: Johan Johansson | C13: Tingsryd | D13: 163.4848485 | F13: 33 | G13: 5395 | I13: 0 | J13: 0 | K13: 0 | L13: 0 | M13: 0 | N13: 136 | O13: 228 | P13: 192 | Q13: 103 | R13: 164 | S13: 168 | T13: 153 | U13: 154 | V13: 174 | W13: 70 | X13: 128 | Y13: 138 | Z13: 143 | AA13: 159 | AB13: 108 | AC13: 90 | AD13: 170 | AE13: 131 | AF13: 181 | AG13: 130 | AH13: 142 | AI13: 141 | AJ13: 216 | AK13: 139 | AL13: 160 | AM13: 154 | AN13: 205 | AO13: 226 | AP13: 227 | AQ13: 156 | AR13: 227 | AS13: 223 | AT13: 259 | DT13: 9 | DU13: 9 | DV13: 9 | DX13: 1 | EB13: 8 | ED13: 9 | EE13: (9)
A14: 10(13) | B14: Fredrik Lundin | C14: Lanternan | D14: 151 | F14: 30 | G14: 4530 | I14: 0 | J14: 0 | K14: 0 | L14: 0 | M14: 0 | N14: 135 | O14: 183 | P14: 177 | Q14: 72 | R14: 174 | S14: 182 | T14: 126 | U14: 158 | V14: 124 | W14: 182 | X14: 100 | Y14: 119 | Z14: 140 | AA14: 149 | AB14: 135 | AC14: 111 | AD14: 116 | AE14: 133 | AF14: 209 | AG14: 146 | AH14: 188 | AI14: 160 | AJ14: 134 | AK14: 134 | AL14: 214 | AM14: 171 | AN14: 226 | AO14: 115 | AP14: 135 | AQ14: 182 | DT14: 13 | DU14: 10 | DV14: 10 | DX14: 1 | EB14: 12 | ED14: 10 | EE14: (13)
A15: 11(10) | B15: Roy Dahlén | C15: Dynapac Södra | D15: 150.625 | F15: 32 | G15: 4820 | I15: 0 | J15: 0 | K15: 0 | L15: 0 | M15: 0 | N15: 140 | O15: 182 | P15: 211 | Q15: 145 | R15: 98 | S15: 176 | T15: 126 | U15: 118 | V15: 214 | W15: 179 | X15: 193 | Y15: 110 | Z15: 93 | AA15: 164 | AB15: 81 | AC15: 86 | AD15: 76 | AE15: 114 | AF15: 214 | AG15: 180 | AH15: 228 | AI15: 151 | AJ15: 182 | AK15: 95 | AL15: 175 | AM15: 117 | AN15: 174 | AO15: 156 | AP15: 144 | AQ15: 165 | AR15: 172 | AS15: 161 | DT15: 10 | DU15: 11 | DV15: 11 | DX15: 1 | EB15: 15 | ED15: 11 | EE15: (10)
A16: 12(15) | B16: Tomas Lindahl | C16: Korpen Åseda | D16: 147.825 | F16: 40 | G16: 5913 | I16: 0 | J16: 0 | K16: 0 | L16: 0 | M16: 0 | N16: 114 | O16: 104 | P16: 183 | Q16: 104 | R16: 158 | S16: 188 | T16: 189 | U16: 168 | V16: 162 | W16: 161 | X16: 192 | Y16: 74 | Z16: 42 | AA16: 123 | AB16: 110 | AC16: 133 | AD16: 168 | AE16: 140 | AF16: 103 | AG16: 106 | AH16: 115 | AI16: 97 | AJ16: 138 | AK16: 132 | AL16: 180 | AM16: 198 | AN16: 76 | AO16: 169 | AP16: 224 | AQ16: 145 | AR16: 117 | AS16: 226 | AT16: 201 | AU16: 152 | AV16: 132 | AW16: 191 | AX16: 127 | AY16: 157 | AZ16: 166 | BA16: 248 | DT16: 15 | DU16: 12 | DV16: 12 | DX16: 1 | EB16: 21 | ED16: 12 | EE16: (15)
A17: 13(11) | B17: Maj-Britt Jarl | C17: Växjö | D17: 147.2820513 | F17: 39 | G17: 5744 | I17: 0 | J17: 0 | K17: 0 | L17: 0 | M17: 0 | N17: 197 | O17: 134 | P17: 171 | Q17: 181 | R17: 151 | S17: 143 | T17: 127 | U17: 133 | V17: 201 | W17: 164 | X17: 163 | Y17: 152 | Z17: 144 | AA17: 112 | AB17: 87 | AC17: 97 | AD17: 115 | AE17: 139 | AF17: 88 | AG17: 138 | AH17: 107 | AI17: 147 | AJ17: 120 | AK17: 118 | AL17: 134 | AM17: 184 | AN17: 132 | AO17: 180 | AP17: 189 | AQ17: 188 | AR17: 197 | AS17: 88 | AT17: 166 | AU17: 198 | AV17: 193 | AW17: 124 | AX17: 151 | AY17: 175 | AZ17: 116 | DT17: 11 | DU17: 13 | DV17: 13 | DX17: 1 | EB17: 3 | ED17: 13 | EE17: (11)
A18: 14(12) | B18: Gert Karlsson | C18: Korpen Åseda | D18: 145.7058824 | F18: 34 | G18: 4954 | I18: 0 | J18: 0 | K18: 0 | L18: 0 | M18: 0 | N18: 158 | O18: 133 | P18: 114 | Q18: 201 | R18: 125 | S18: 187 | T18: 134 | U18: 158 | V18: 136 | W18: 219 | X18: 132 | Y18: 109 | Z18: 91 | AA18: 104 | AB18: 119 | AC18: 172 | AD18: 110 | AE18: 145 | AF18: 103 | AG18: 158 | AH18: 108 | AI18: 147 | AJ18: 161 | AK18: 160 | AL18: 148 | AM18: 119 | AN18: 177 | AO18: 178 | AP18: 184 | AQ18: 155 | AR18: 164 | AS18: 128 | AT18: 179 | AU18: 138 | DT18: 12 | DU18: 14 | DV18: 14 | DX18: 1 | EB18: 7 | ED18: 14 | EE18: (12)
A19: 15(14) | B19: Bo Petersson | C19: Korpen Nybro | D19: 143.1904762 | F19: 21 | G19: 3007 | I19: 0 | J19: 0 | K19: 0 | L19: 0 | M19: 0 | N19: 196 | O19: 106 | P19: 135 | Q19: 133 | R19: 105 | S19: 144 | T19: 151 | U19: 168 | V19: 133 | W19: 149 | X19: 97 | Y19: 196 | Z19: 119 | AA19: 144 | AB19: 134 | AC19: 195 | AD19: 135 | AE19: 141 | AF19: 153 | AG19: 111 | AH19: 162 | DT19: 14 | DU19: 15 | DV19: 15 | DX19: 1 | EB19: 17 | ED19: 15 | EE19: (14)
A20: 16(17) | B20: Magnus Israelsson | C20: Sibbamåla | D20: 142.9032258 | F20: 31 | G20: 4430 | I20: 0 | J20: 0 | K20: 0 | L20: 0 | M20: 0 | N20: 91 | O20: 125 | P20: 102 | Q20: 144 | R20: 117 | S20: 171 | T20: 141 | U20: 210 | V20: 190 | W20: 147 | X20: 245 | Y20: 128 | Z20: 164 | AA20: 162 | AB20: 98 | AC20: 125 | AD20: 104 | AE20: 118 | AF20: 111 | AG20: 103 | AH20: 109 | AI20: 185 | AJ20: 148 | AK20: 205 | AL20: 100 | AM20: 102 | AN20: 165 | AO20: 134 | AP20: 162 | AQ20: 159 | AR20: 165 | DT20: 17 | DU20: 16 | DV20: 16 | DX20: 1 | EB20: 18 | ED20: 16 | EE20: (17)
A21: 17(16) | B21: Anders Johansson | C21: Dynapac Södra | D21: 142.0526316 | F21: 38 | G21: 5398 | I21: 0 | J21: 0 | K21: 0 | L21: 0 | M21: 0 | N21: 154 | O21: 137 | P21: 121 | Q21: 197 | R21: 128 | S21: 109 | T21: 141 | U21: 118 | V21: 141 | W21: 156 | X21: 210 | Y21: 134 | Z21: 91 | AA21: 169 | AB21: 155 | AC21: 118 | AD21: 141 | AE21: 128 | AF21: 88 | AG21: 88 | AH21: 147 | AI21: 211 | AJ21: 249 | AK21: 127 | AL21: 143 | AM21: 193 | AN21: 147 | AO21: 116 | AP21: 83 | AQ21: 182 | AR21: 180 | AS21: 92 | AT21: 80 | AU21: 92 | AV21: 125 | AW21: 170 | AX21: 151 | AY21: 186 | DT21: 16 | DU21: 17 | DV21: 17 | DX21: 1 | EB21: 24 | ED21: 17 | EE21: (16)
A22: 18(18) | B22: Lisbeth Nygaard-Karlsson | C22: Tingsryd | D22: 140.8205128 | F22: 39 | G22: 5492 | I22: 0 | J22: 0 | K22: 0 | L22: 0 | M22: 0 | N22: 195 | O22: 187 | P22: 45 | Q22: 109 | R22: 136 | S22: 216 | T22: 133 | U22: 159 | V22: 124 | W22: 124 | X22: 68 | Y22: 122 | Z22: 136 | AA22: 110 | AB22: 157 | AC22: 183 | AD22: 139 | AE22: 140 | AF22: 105 | AG22: 149 | AH22: 141 | AI22: 217 | AJ22: 118 | AK22: 100 | AL22: 130 | AM22: 174 | AN22: 135 | AO22: 107 | AP22: 217 | AQ22: 149 | AR22: 60 | AS22: 158 | AT22: 174 | AU22: 151 | AV22: 156 | AW22: 149 | AX22: 129 | AY22: 178 | AZ22: 112 | DT22: 18 | DU22: 18 | DV22: 18 | DX22: 1 | EB22: 9 | ED22: 18 | EE22: (18)
A23: 19(19) | B23: Peter Olsson | C23: Dynapac Södra | D23: 139.25 | F23: 40 | G23: 5570 | I23: 0 | J23: 0 | K23: 0 | L23: 0 | M23: 0 | N23: 129 | O23: 88 | P23: 144 | Q23: 132 | R23: 161 | S23: 129 | T23: 151 | U23: 100 | V23: 108 | W23: 124 | X23: 136 | Y23: 73 | Z23: 220 | AA23: 162 | AB23: 165 | AC23: 171 | AD23: 164 | AE23: 167 | AF23: 106 | AG23: 127 | AH23: 114 | AI23: 104 | AJ23: 104 | AK23: 190 | AL23: 158 | AM23: 82 | AN23: 128 | AO23: 177 | AP23: 155 | AQ23: 166 | AR23: 104 | AS23: 158 | AT23: 185 | AU23: 129 | AV23: 131 | AW23: 108 | AX23: 161 | AY23: 145 | AZ23: 158 | BA23: 156 | DT23: 19 | DU23: 19 | DV23: 19 | DX23: 1 | EB23: 10 | ED23: 19 | EE23: (19)
A24: 20(20) | B24: Mattias Gneupel | C24: Sibbamåla | D24: 135.3030303 | F24: 33 | G24: 4465 | I24: 0 | J24: 0 | K24: 0 | L24: 0 | M24: 0 | N24: 101 | O24: 144 | P24: 137 | Q24: 87 | R24: 102 | S24: 129 | T24: 135 | U24: 118 | V24: 155 | W24: 118 | X24: 127 | Y24: 106 | Z24: 105 | AA24: 116 | AB24: 191 | AC24: 111 | AD24: 139 | AE24: 123 | AF24: 163 | AG24: 147 | AH24: 127 | AI24: 119 | AJ24: 125 | AK24: 118 | AL24: 205 | AM24: 158 | AN24: 191 | AO24: 117 | AP24: 170 | AQ24: 102 | AR24: 179 | AS24: 152 | AT24: 148 | DT24: 20 | DU24: 20 | DV24: 20 | DX24: 1 | EB24: 22 | ED24: 20 | EE24: (20)
A25: 21(22) | B25: Lukas Bern | C25: Dynapac Södra | D25: 129.5 | F25: 4 | G25: 518 | I25: 0 | J25: 0 | K25: 0 | L25: 0 | M25: 0 | N25: 93 | O25: 172 | P25: 114 | Q25: 139 | DT25: 22 | DU25: 21 | DV25: 21 | DX25: 1 | EB25: 14 | ED25: 21 | EE25: (22)
A26: 22(21) | B26: Leif Sundahl | C26: Carlskrona | D26: 129.4571429 | F26: 35 | G26: 4531 | I26: 0 | J26: 0 | K26: 0 | L26: 0 | M26: 0 | N26: 77 | O26: 158 | P26: 179 | Q26: 138 | R26: 115 | S26: 85 | T26: 199 | U26: 187 | V26: 107 | W26: 198 | X26: 152 | Y26: 162 | Z26: 185 | AA26: 122 | AB26: 70 | AC26: 77 | AD26: 70 | AE26: 149 | AF26: 91 | AG26: 91 | AH26: 132 | AI26: 100 | AJ26: 161 | AK26: 151 | AL26: 85 | AM26: 92 | AN26: 194 | AO26: 171 | AP26: 118 | AQ26: 127 | AR26: 143 | AS26: 131 | AT26: 104 | AU26: 111 | AV26: 99 | DT26: 21 | DU26: 22 | DV26: 22 | DX26: 1 | EB26: 13 | ED26: 22 | EE26: (21)
A27: 23(24) | B27: Carina Gneupel | C27: Sibbamåla | D27: 125.9142857 | F27: 35 | G27: 4407 | I27: 0 | J27: 0 | K27: 0 | L27: 0 | M27: 0 | N27: 111 | O27: 140 | P27: 137 | Q27: 123 | R27: 105 | S27: 95 | T27: 167 | U27: 149 | V27: 127 | W27: 135 | X27: 92 | Y27: 142 | Z27: 115 | AA27: 95 | AB27: 137 | AC27: 125 | AD27: 119 | AE27: 109 | AF27: 121 | AG27: 124 | AH27: 87 | AI27: 129 | AJ27: 67 | AK27: 131 | AL27: 138 | AM27: 143 | AN27: 89 | AO27: 136 | AP27: 186 | AQ27: 180 | AR27: 123 | AS27: 144 | AT27: 115 | AU27: 108 | AV27: 163 | DT27: 24 | DU27: 23 | DV27: 23 | DX27: 1 | EB27: 19 | ED27: 23 | EE27: (24)
A28: =DU28&EE28 -> 24(23) | B28: Hans Lundkvist | C28: Växjö | D28: 125.4 | F28: 5 | G28: 627 | I28: 0 | J28: 0 | K28: 0 | L28: 0 | M28: 0 | N28: 106 | O28: 144 | P28: 101 | Q28: 99 | R28: 177 | DT28: 23 | DU28: =IF(AND(D28=D27,D28=D26,D28=D25,D28=D24),ROW(20:20),IF(AND(D28=D27,D28=D26,D28=D25),ROW(21:21),IF(AND(D28=D27,D28=D26),ROW(22:22),IF(D28=D27,ROW(23:23),IF(D28>1,ROW(24:24),"-"))))) -> 24 | DV28: =IF(DX28=1,ROW(24:24),"-") -> 24 | DX28: 1 | EB28: 28 | ED28: =IF(DX28=1,DU28,IF(DX28="",DU28,"")) -> 24 | EE28: =IF(DX28=1,"("&DT28&")","("&DV28&")") -> (23)
A29: =DU29&EE29 -> 25(28) | B29: Christian Balsiger | C29: Värends Hsk | D29: 124.3611111 | F29: 36 | G29: 4477 | I29: 0 | J29: 0 | K29: 0 | L29: 0 | M29: 0 | N29: 123 | O29: 74 | P29: 196 | Q29: 73 | R29: 116 | S29: 135 | T29: 119 | U29: 135 | V29: 95 | W29: 103 | X29: 116 | Y29: 114 | Z29: 117 | AA29: 99 | AB29: 66 | AC29: 95 | AD29: 102 | AE29: 86 | AF29: 96 | AG29: 106 | AH29: 120 | AI29: 114 | AJ29: 84 | AK29: 155 | AL29: 145 | AM29: 130 | AN29: 148 | AO29: 154 | AP29: 169 | AQ29: 140 | AR29: 115 | AS29: 135 | AT29: 164 | AU29: 198 | AV29: 174 | AW29: 166 | DT29: 28 | DU29: =IF(AND(D29=D28,D29=D27,D29=D26,D29=D25),ROW(21:21),IF(AND(D29=D28,D29=D27,D29=D26),ROW(22:22),IF(AND(D29=D28,D29=D27),ROW(23:23),IF(D29=D28,ROW(24:24),IF(D29>1,ROW(25:25),"-"))))) -> 25 | DV29: =IF(DX29=1,ROW(25:25),"-") -> 25 | DX29: 1 | EB29: 23 | ED29: =IF(DX29=1,DU29,IF(DX29="",DU29,"")) -> 25 | EE29: =IF(DX29=1,"("&DT29&")","("&DV29&")") -> (28)
A30: =DU30&EE30 -> 26(25) | B30: Ewa Malmqvist | C30: Jämjö Hsc | D30: 121.6578947 | F30: 38 | G30: 4623 | I30: 0 | J30: 0 | K30: 0 | L30: 0 | M30: 0 | N30: 89 | O30: 114 | P30: 158 | Q30: 161 | R30: 118 | S30: 115 | T30: 107 | U30: 88 | V30: 95 | W30: 102 | X30: 157 | Y30: 169 | Z30: 161 | AA30: 104 | AB30: 154 | AC30: 90 | AD30: 106 | AE30: 72 | AF30: 105 | AG30: 171 | AH30: 125 | AI30: 130 | AJ30: 114 | AK30: 120 | AL30: 130 | AM30: 205 | AN30: 109 | AO30: 89 | AP30: 124 | AQ30: 195 | AR30: 131 | AS30: 105 | AT30: 109 | AU30: 92 | AV30: 99 | AW30: 102 | AX30: 112 | AY30: 96 | DT30: 25 | DU30: =IF(AND(D30=D29,D30=D28,D30=D27,D30=D26),ROW(22:22),IF(AND(D30=D29,D30=D28,D30=D27),ROW(23:23),IF(AND(D30=D29,D30=D28),ROW(24:24),IF(D30=D29,ROW(25:25),IF(D30>1,ROW(26:26),"-"))))) -> 26 | DV30: =IF(DX30=1,ROW(26:26),"-") -> 26 | DX30: 1 | EB30: 25 | ED30: =IF(DX30=1,DU30,IF(DX30="",DU30,"")) -> 26 | EE30: =IF(DX30=1,"("&DT30&")","("&DV30&")") -> (25)
A31: =DU31&EE31 -> 27(26) | B31: Lennart Karlsson | C31: Lanternan | D31: 120.5 | F31: 10 | G31: 1205 | I31: 0 | J31: 0 | K31: 0 | L31: 0 | M31: 0 | N31: 195 | O31: 81 | P31: 80 | Q31: 128 | R31: 159 | S31: 72 | T31: 109 | U31: 143 | V31: 122 | W31: 116 | DT31: 26 | DU31: =IF(AND(D31=D30,D31=D29,D31=D28,D31=D27),ROW(23:23),IF(AND(D31=D30,D31=D29,D31=D28),ROW(24:24),IF(AND(D31=D30,D31=D29),ROW(25:25),IF(D31=D30,ROW(26:26),IF(D31>1,ROW(27:27),"-"))))) -> 27 | DV31: =IF(DX31=1,ROW(27:27),"-") -> 27 | DX31: 1 | EB31: 26 | ED31: =IF(DX31=1,DU31,IF(DX31="",DU31,"")) -> 27 | EE31: =IF(DX31=1,"("&DT31&")","("&DV31&")") -> (26)
A32: =DU32&EE32 -> 28(33) | B32: Lasse Brincner | C32: Värends Hsk | D32: 118.3823529 | F32: 34 | G32: 4025 | I32: 0 | J32: 0 | K32: 0 | L32: 0 | M32: 0 | N32: 145 | O32: 101 | P32: 120 | Q32: 169 | R32: 192 | S32: 141 | T32: 119 | U32: 119 | V32: 95 | W32: 151 | X32: 84 | Y32: 45 | Z32: 91 | AA32: 73 | AB32: 86 | AC32: 153 | AD32: 129 | AE32: 112 | AF32: 113 | AG32: 64 | AH32: 96 | AI32: 91 | AJ32: 114 | AK32: 108 | AL32: 99 | AM32: 100 | AN32: 150 | AO32: 136 | AP32: 90 | AQ32: 122 | AR32: 169 | AS32: 124 | AT32: 164 | AU32: 160 | DT32: 33 | DU32: =IF(AND(D32=D31,D32=D30,D32=D29,D32=D28),ROW(24:24),IF(AND(D32=D31,D32=D30,D32=D29),ROW(25:25),IF(AND(D32=D31,D32=D30),ROW(26:26),IF(D32=D31,ROW(27:27),IF(D32>1,ROW(28:28),"-"))))) -> 28 | DV32: =IF(DX32=1,ROW(28:28),"-") -> 28 | DX32: 1 | EB32: 27 | ED32: =IF(DX32=1,DU32,IF(DX32="",DU32,"")) -> 28 | EE32: =IF(DX32=1,"("&DT32&")","("&DV32&")") -> (33)
A33: 29(27) | B33: Mikael Bodi | C33: Växjö | D33: 118 | F33: 6 | G33: 708 | I33: 0 | J33: 0 | K33: 0 | L33: 0 | M33: 0 | N33: 159 | O33: 97 | P33: 57 | Q33: 104 | R33: 177 | S33: 114 | DT33: 27 | DU33: 29 | DV33: 29 | DX33: 1 | EB33: 29 | ED33: 29 | EE33: (27)
A34: 30(29) | B34: Gebriela Kostantinos | C34: Korpen Åseda | D34: 117.8333333 | F34: 24 | G34: 2828 | I34: 0 | J34: 0 | K34: 0 | L34: 0 | M34: 0 | N34: 70 | O34: 113 | P34: 97 | Q34: 128 | R34: 91 | S34: 165 | T34: 112 | U34: 92 | V34: 92 | W34: 93 | X34: 86 | Y34: 108 | Z34: 157 | AA34: 94 | AB34: 163 | AC34: 119 | AD34: 172 | AE34: 133 | AF34: 104 | AG34: 185 | AH34: 171 | AI34: 106 | AJ34: 106 | AK34: 71 | DT34: 29 | DU34: 30 | DV34: 30 | DX34: 1 | EB34: 30 | ED34: 30 | EE34: (29)
A35: 31(32) | B35: Dan Hallstan | C35: Växjö | D35: 115.5151515 | F35: 33 | G35: 3812 | I35: 0 | J35: 0 | K35: 0 | L35: 0 | M35: 0 | N35: 132 | O35: 73 | P35: 194 | Q35: 137 | R35: 98 | S35: 155 | T35: 79 | U35: 73 | V35: 112 | W35: 117 | X35: 84 | Y35: 127 | Z35: 160 | AA35: 118 | AB35: 126 | AC35: 105 | AD35: 89 | AE35: 95 | AF35: 134 | AG35: 100 | AH35: 72 | AI35: 178 | AJ35: 133 | AK35: 108 | AL35: 118 | AM35: 100 | AN35: 100 | AO35: 90 | AP35: 109 | AQ35: 137 | AR35: 121 | AS35: 110 | AT35: 128 | DT35: 32 | DU35: 31 | DV35: 31 | DX35: 1 | EB35: 31 | ED35: 31 | EE35: (32)
A36: 32(30) | B36: Göran Persson | C36: Dynapac Södra | D36: 115.1428571 | F36: 42 | G36: 4836 | I36: 0 | J36: 0 | K36: 0 | L36: 0 | M36: 0 | N36: 124 | O36: 113 | P36: 87 | Q36: 118 | R36: 109 | S36: 165 | T36: 169 | U36: 86 | V36: 150 | W36: 91 | X36: 129 | Y36: 105 | Z36: 166 | AA36: 168 | AB36: 142 | AC36: 182 | AD36: 111 | AE36: 143 | AF36: 111 | AG36: 36 | AH36: 80 | AI36: 63 | AJ36: 85 | AK36: 113 | AL36: 109 | AM36: 76 | AN36: 119 | AO36: 94 | AP36: 106 | AQ36: 102 | AR36: 101 | AS36: 133 | AT36: 118 | AU36: 127 | AV36: 83 | AW36: 151 | AX36: 94 | AY36: 118 | AZ36: 106 | BA36: 135 | BB36: 131 | BC36: 87 | DT36: 30 | DU36: 32 | DV36: 32 | DX36: 1 | EB36: 32 | ED36: 32 | EE36: (30)
A37: =DU37&EE37 -> 33(35) | B37: Bo Andersson | C37: Tingzås | D37: =IF(F37>0.5,(G37/F37),0) -> 112.4230769 | F37: =COUNT(N37:BO37) -> 26 | G37: =SUM(N37:BO37) -> 2923 | I37: =COUNTIF(BQ37:DR37,2) -> 0 | J37: =COUNTIF(BQ37:DR37,-2) -> 0 | K37: =COUNTIF(BQ37:DR37,1) -> 0 | L37: =COUNTIF(BQ37:DR37,-1) -> 0 | M37: =IF(F37>0,(I37+K37)/(F37),0) -> 0 | N37: 142 | O37: 85 | P37: 100 | Q37: 101 | R37: 200 | S37: 121 | T37: 53 | U37: 94 | V37: 129 | W37: 103 | X37: 113 | Y37: 106 | Z37: 101 | AA37: 118 | AB37: 188 | AC37: 153 | AD37: 164 | AE37: 95 | AF37: 67 | AG37: 132 | AH37: 63 | AI37: 90 | AJ37: 40 | AK37: 44 | AL37: 202 | AM37: 119 | DT37: 35 | DU37: 33 | DV37: =IF(DX37=1,ROW(33:33),"-") -> 33 | DX37: 1 | EB37: 33 | ED37: =IF(DX37=1,DU37,IF(DX37="",DU37,"")) -> 33 | EE37: =IF(DX37=1,"("&DT37&")","("&DV37&")") -> (35)
A38: 34(37) | B38: Anita Fabbeke | C38: Dynapac Södra | D38: 111.3793103 | F38: 29 | G38: 3230 | I38: 0 | J38: 0 | K38: 0 | L38: 0 | M38: 0 | N38: 161 | O38: 71 | P38: 71 | Q38: 50 | R38: 78 | S38: 130 | T38: 132 | U38: 124 | V38: 126 | W38: 123 | X38: 157 | Y38: 96 | Z38: 100 | AA38: 87 | AB38: 135 | AC38: 69 | AD38: 95 | AE38: 150 | AF38: 150 | AG38: 92 | AH38: 121 | AI38: 133 | AJ38: 77 | AK38: 109 | AL38: 109 | AM38: 183 | AN38: 95 | AO38: 118 | AP38: 88 | DT38: 37 | DU38: 34 | DV38: 34 | DX38: 1 | EB38: 34 | ED38: 34 | EE38: (37)
A39: 35(36) | B39: Berndt Petersson | C39: Lanternan | D39: 110.1176471 | F39: 17 | G39: 1872 | I39: 0 | J39: 0 | K39: 0 | L39: 0 | M39: 0 | N39: 127 | O39: 131 | P39: 105 | Q39: 112 | R39: 101 | S39: 96 | T39: 66 | U39: 143 | V39: 178 | W39: 71 | X39: 98 | Y39: 81 | Z39: 82 | AA39: 118 | AB39: 120 | AC39: 119 | AD39: 124 | DT39: 36 | DU39: 35 | DV39: 35 | DX39: 1 | EB39: 35 | ED39: 35 | EE39: (36)
A40: 36(38) | B40: Tobias Vikström | C40: Växjö | D40: 109.8333333 | F40: 6 | G40: 659 | I40: 0 | J40: 0 | K40: 0 | L40: 0 | M40: 0 | N40: 72 | O40: 93 | P40: 103 | Q40: 140 | R40: 114 | S40: 137 | DT40: 38 | DU40: 36 | DV40: 36 | DX40: 1 | EB40: 36 | ED40: 36 | EE40: (38)
A41: 37(39) | B41: Peter Edlund | C41: Dynapac Södra | D41: 109.7368421 | F41: 19 | G41: 2085 | I41: 0 | J41: 0 | K41: 0 | L41: 0 | M41: 0 | N41: 121 | O41: 158 | P41: 107 | Q41: 161 | R41: 154 | S41: 110 | T41: 64 | U41: 157 | V41: 105 | W41: 113 | X41: 69 | Y41: 127 | Z41: 118 | AA41: 69 | AB41: 85 | AC41: 41 | AD41: 117 | AE41: 100 | AF41: 109 | DT41: 39 | DU41: 37 | DV41: 37 | DX41: 1 | EB41: 37 | ED41: 37 | EE41: (39)
A42: 38(31) | B42: Christer Blomgren | C42: Lanternan | D42: 109.5789474 | F42: 19 | G42: 2082 | I42: 0 | J42: 0 | K42: 0 | L42: 0 | M42: 0 | N42: 115 | O42: 151 | P42: 68 | Q42: 86 | R42: 121 | S42: 83 | T42: 108 | U42: 125 | V42: 95 | W42: 68 | X42: 123 | Y42: 184 | Z42: 163 | AA42: 96 | AB42: 110 | AC42: 109 | AD42: 122 | AE42: 66 | AF42: 89 | DT42: 31 | DU42: 38 | DV42: 38 | DX42: 1 | EB42: 38 | ED42: 38 | EE42: (31)
A43: 39(40) | B43: Sebastian Israelsson | C43: Sibbamåla | D43: 109.5 | F43: 8 | G43: 876 | I43: 0 | J43: 0 | K43: 0 | L43: 0 | M43: 0 | N43: 92 | O43: 121 | P43: 59 | Q43: 122 | R43: 92 | S43: 132 | T43: 107 | U43: 151 | DT43: 40 | DU43: =IF(AND(D43=D42,D43=D41,D43=D40,D43=D39),ROW(35:35),IF(AND(D43=D42,D43=D41,D43=D40),ROW(36:36),IF(AND(D43=D42,D43=D41),ROW(37:37),IF(D43=D42,ROW(38:38),IF(D43>1,ROW(39:39),"-"))))) -> 39 | DV43: 39 | DX43: 1 | EB43: 39 | ED43: 39 | EE43: (40)
A44: 40(44) | B44: Hans Johansson | C44: Tingsryd | D44: 108.9333333 | F44: 30 | G44: 3268 | I44: 0 | J44: 0 | K44: 0 | L44: 0 | M44: 0 | N44: 102 | O44: 128 | P44: 113 | Q44: 127 | R44: 184 | S44: 145 | T44: 63 | U44: 71 | V44: 86 | W44: 133 | X44: 88 | Y44: 67 | Z44: 92 | AA44: 67 | AB44: 133 | AC44: 96 | AD44: 117 | AE44: 122 | AF44: 56 | AG44: 107 | AH44: 100 | AI44: 91 | AJ44: 139 | AK44: 116 | AL44: 117 | AM44: 92 | AN44: 170 | AO44: 123 | AP44: 101 | AQ44: 122 | DT44: 44 | DU44: 40 | DV44: 40 | DX44: 1 | EB44: 40 | ED44: 40 | EE44: (44)
A45: 41(41) | B45: Bertil Olsson | C45: Jämjö Hsc | D45: 107.9333333 | F45: 15 | G45: 1619 | I45: 0 | J45: 0 | K45: 0 | L45: 0 | M45: 0 | N45: 101 | O45: 131 | P45: 120 | Q45: 87 | R45: 124 | S45: 77 | T45: 116 | U45: 109 | V45: 97 | W45: 116 | X45: 92 | Y45: 83 | Z45: 117 | AA45: 113 | AB45: 136 | DT45: 41 | DU45: 41 | DV45: 41 | DX45: 1 | EB45: 41 | ED45: 41 | EE45: (41)
A46: 42(42) | B46: Inger Andersson | C46: Korpen Nybro | D46: 107.3333333 | F46: 6 | G46: 644 | I46: 0 | J46: 0 | K46: 0 | L46: 0 | M46: 0 | N46: 92 | O46: 93 | P46: 110 | Q46: 134 | R46: 119 | S46: 96 | DT46: 42 | DU46: 42 | DV46: 42 | DX46: 1 | EB46: 42 | ED46: 42 | EE46: (42)
A47: 43(34) | B47: Jan Petersson | C47: Lanternan | D47: 106.5333333 | F47: 15 | G47: 1598 | I47: 0 | J47: 0 | K47: 0 | L47: 0 | M47: 0 | N47: 125 | O47: 82 | P47: 133 | Q47: 146 | R47: 95 | S47: 161 | T47: 78 | U47: 91 | V47: 95 | W47: 126 | X47: 113 | Y47: 82 | Z47: 82 | AA47: 113 | AB47: 76 | DT47: 34 | DU47: 43 | DV47: 43 | DX47: 1 | EB47: 43 | ED47: 43 | EE47: (34)
A48: 44(45) | B48: Ronny Lundberg | C48: Lanternan | D48: 106.1875 | F48: 16 | G48: 1699 | I48: 0 | J48: 0 | K48: 0 | L48: 0 | M48: 0 | N48: 165 | O48: 101 | P48: 148 | Q48: 100 | R48: 67 | S48: 74 | T48: 78 | U48: 105 | V48: 67 | W48: 68 | X48: 131 | Y48: 179 | Z48: 114 | AA48: 88 | AB48: 88 | AC48: 126 | DT48: 45 | DU48: 44 | DV48: 44 | DX48: 1 | EB48: 52 | ED48: 44 | EE48: (45)
A49: 45(43) | B49: Bernt Olsson | C49: Jämjö Hsc | D49: 105.8918919 | F49: 37 | G49: 3918 | I49: 0 | J49: 0 | K49: 0 | L49: 0 | M49: 0 | N49: 70 | O49: 115 | P49: 164 | Q49: 151 | R49: 131 | S49: 152 | T49: 70 | U49: 70 | V49: 75 | W49: 124 | X49: 81 | Y49: 97 | Z49: 118 | AA49: 123 | AB49: 101 | AC49: 125 | AD49: 107 | AE49: 88 | AF49: 85 | AG49: 60 | AH49: 88 | AI49: 140 | AJ49: 101 | AK49: 117 | AL49: 169 | AM49: 101 | AN49: 62 | AO49: 98 | AP49: 82 | AQ49: 81 | AR49: 156 | AS49: 113 | AT49: 71 | AU49: 114 | AV49: 99 | AW49: 95 | AX49: 124 | DT49: 43 | DU49: 45 | DV49: 45 | DX49: 1 | EB49: 44 | ED49: 45 | EE49: (43)
A50: 46(46) | B50: Christina Holmberg | C50: Tingsryd | D50: 105.8846154 | F50: 26 | G50: 2753 | I50: 0 | J50: 0 | K50: 0 | L50: 0 | M50: 0 | N50: 104 | O50: 149 | P50: 134 | Q50: 117 | R50: 110 | S50: 112 | T50: 137 | U50: 135 | V50: 76 | W50: 84 | X50: 75 | Y50: 147 | Z50: 59 | AA50: 132 | AB50: 84 | AC50: 123 | AD50: 91 | AE50: 104 | AF50: 57 | AG50: 98 | AH50: 75 | AI50: 118 | AJ50: 81 | AK50: 110 | AL50: 126 | AM50: 115 | DT50: 46 | DU50: 46 | DV50: 46 | DX50: 1 | EB50: 45 | ED50: 46 | EE50: (46)
A51: 47(49) | B51: Bengt Fabbeke | C51: Dynapac Södra | D51: 104.9166667 | F51: 36 | G51: 3777 | I51: 0 | J51: 0 | K51: 0 | L51: 0 | M51: 0 | N51: 70 | O51: 64 | P51: 63 | Q51: 106 | R51: 112 | S51: 124 | T51: 112 | U51: 82 | V51: 120 | W51: 96 | X51: 64 | Y51: 82 | Z51: 142 | AA51: 100 | AB51: 159 | AC51: 18 | AD51: 54 | AE51: 100 | AF51: 122 | AG51: 158 | AH51: 209 | AI51: 148 | AJ51: 67 | AK51: 80 | AL51: 115 | AM51: 83 | AN51: 110 | AO51: 83 | AP51: 95 | AQ51: 122 | AR51: 100 | AS51: 131 | AT51: 163 | AU51: 88 | AV51: 103 | AW51: 132 | DT51: 49 | DU51: 47 | DV51: 47 | DX51: 1 | EB51: 46 | ED51: 47 | EE51: (49)
A52: 48(51) | B52: Ingegerd Pettersson | C52: Lanternan | D52: 103.9444444 | F52: 18 | G52: 1871 | I52: 0 | J52: 0 | K52: 0 | L52: 0 | M52: 0 | N52: 120 | O52: 66 | P52: 160 | Q52: 116 | R52: 98 | S52: 91 | T52: 128 | U52: 81 | V52: 73 | W52: 75 | X52: 103 | Y52: 98 | Z52: 109 | AA52: 72 | AB52: 109 | AC52: 149 | AD52: 123 | AE52: 100 | DT52: 51 | DU52: 48 | DV52: 48 | DX52: 1 | EB52: 47 | ED52: 48 | EE52: (51)
A53: 49(47) | B53: Nils-Åke Hansson | C53: Korpen Nybro | D53: 103.2727273 | F53: 22 | G53: 2272 | I53: 0 | J53: 0 | K53: 0 | L53: 0 | M53: 0 | N53: 102 | O53: 149 | P53: 119 | Q53: 118 | R53: 132 | S53: 85 | T53: 82 | U53: 124 | V53: 42 | W53: 61 | X53: 98 | Y53: 111 | Z53: 188 | AA53: 86 | AB53: 74 | AC53: 142 | AD53: 75 | AE53: 85 | AF53: 77 | AG53: 104 | AH53: 84 | AI53: 134 | DT53: 47 | DU53: 49 | DV53: 49 | DX53: 1 | EB53: 48 | ED53: 49 | EE53: (47)
A54: 50(53) | B54: Bela Bodi | C54: Växjö | D54: 103.1025641 | F54: 39 | G54: 4021 | I54: 0 | J54: 0 | K54: 0 | L54: 0 | M54: 0 | N54: 108 | O54: 126 | P54: 91 | Q54: 92 | R54: 154 | S54: 79 | T54: 54 | U54: 111 | V54: 121 | W54: 119 | X54: 67 | Y54: 73 | Z54: 87 | AA54: 100 | AB54: 74 | AC54: 57 | AD54: 84 | AE54: 103 | AF54: 101 | AG54: 97 | AH54: 99 | AI54: 116 | AJ54: 88 | AK54: 78 | AL54: 96 | AM54: 94 | AN54: 117 | AO54: 72 | AP54: 158 | AQ54: 146 | AR54: 144 | AS54: 104 | AT54: 84 | AU54: 165 | AV54: 111 | AW54: 92 | AX54: 129 | AY54: 106 | AZ54: 124 | DT54: 53 | DU54: 50 | DV54: 50 | DX54: 1 | EB54: 49 | ED54: 50 | EE54: (53)
A55: 51(50) | B55: Bengt Andersson | C55: Växjö | D55: 101.4 | F55: 10 | G55: 1014 | I55: 0 | J55: 0 | K55: 0 | L55: 0 | M55: 0 | N55: 99 | O55: 167 | P55: 178 | Q55: 75 | R55: 82 | S55: 72 | T55: 58 | U55: 91 | V55: 104 | W55: 88 | DT55: 50 | DU55: 51 | DV55: 51 | DX55: 1 | EB55: 50 | ED55: 51 | EE55: (50)
A56: 52(52) | B56: Bengt-Erik Holmberg | C56: Tingsryd | D56: 100.1818182 | F56: 22 | G56: 2204 | I56: 0 | J56: 0 | K56: 0 | L56: 0 | M56: 0 | N56: 82 | O56: 115 | P56: 88 | Q56: 92 | R56: 86 | S56: 138 | T56: 65 | U56: 96 | V56: 142 | W56: 106 | X56: 95 | Y56: 118 | Z56: 71 | AA56: 88 | AB56: 47 | AC56: 161 | AD56: 108 | AE56: 88 | AF56: 74 | AG56: 102 | AH56: 138 | AI56: 104 | DT56: 52 | DU56: 52 | DV56: 52 | DX56: 1 | EB56: 51 | ED56: 52 | EE56: (52)
A57: 53(48) | B57: Niklas Berglund | C57: Växjö | D57: 100.1764706 | F57: 17 | G57: 1703 | I57: 0 | J57: 0 | K57: 0 | L57: 0 | M57: 0 | N57: 132 | O57: 108 | P57: 105 | Q57: 74 | R57: 97 | S57: 92 | T57: 124 | U57: 105 | V57: 105 | W57: 101 | X57: 118 | Y57: 94 | Z57: 85 | AA57: 50 | AB57: 51 | AC57: 120 | AD57: 142 | DT57: 48 | DU57: 53 | DV57: 53 | DX57: 1 | EB57: 53 | ED57: 53 | EE57: (48)
A58: 54(57) | B58: Lasse Nilsson | C58: Värends Hsk | D58: 98.5 | F58: 26 | G58: 2561 | I58: 0 | J58: 0 | K58: 0 | L58: 0 | M58: 0 | N58: 128 | O58: 103 | P58: 85 | Q58: 92 | R58: 133 | S58: 85 | T58: 83 | U58: 100 | V58: 71 | W58: 52 | X58: 62 | Y58: 85 | Z58: 128 | AA58: 40 | AB58: 64 | AC58: 95 | AD58: 120 | AE58: 105 | AF58: 88 | AG58: 125 | AH58: 128 | AI58: 121 | AJ58: 121 | AK58: 98 | AL58: 134 | AM58: 115 | DT58: 57 | DU58: 54 | DV58: 54 | DX58: 1 | EB58: 109 | ED58: 54 | EE58: (57)
A59: 55(56) | B59: Göran Olofsson | C59: Korpen Nybro | D59: 97.4 | F59: 25 | G59: 2435 | I59: 0 | J59: 0 | K59: 0 | L59: 0 | M59: 0 | N59: 110 | O59: 85 | P59: 67 | Q59: 98 | R59: 114 | S59: 94 | T59: 95 | U59: 89 | V59: 77 | W59: 112 | X59: 52 | Y59: 71 | Z59: 100 | AA59: 94 | AB59: 91 | AC59: 68 | AD59: 134 | AE59: 100 | AF59: 145 | AG59: 116 | AH59: 89 | AI59: 143 | AJ59: 54 | AK59: 99 | AL59: 138 | DT59: 56 | DU59: 55 | DV59: 55 | DX59: 1 | EB59: 54 | ED59: 55 | EE59: (56)
A60: 56(54) | B60: Rune Karlsson | C60: Korpen Nybro | D60: 96.60869565 | F60: 23 | G60: 2222 | I60: 0 | J60: 0 | K60: 0 | L60: 0 | M60: 0 | N60: 77 | O60: 57 | P60: 97 | Q60: 90 | R60: 104 | S60: 172 | T60: 79 | U60: 97 | V60: 135 | W60: 123 | X60: 134 | Y60: 102 | Z60: 107 | AA60: 93 | AB60: 137 | AC60: 81 | AD60: 81 | AE60: 40 | AF60: 77 | AG60: 66 | AH60: 58 | AI60: 87 | AJ60: 128 | DT60: 54 | DU60: 56 | DV60: 56 | DX60: 1 | EB60: 55 | ED60: 56 | EE60: (54)
A61: 57(59) | B61: Rolf Johannesson | C61: Värends Hsk | D61: 94.85 | F61: 20 | G61: 1897 | I61: 0 | J61: 0 | K61: 0 | L61: 0 | M61: 0 | N61: 70 | O61: 121 | P61: 79 | Q61: 86 | R61: 82 | S61: 74 | T61: 62 | U61: 98 | V61: 81 | W61: 128 | X61: 59 | Y61: 92 | Z61: 102 | AA61: 72 | AB61: 100 | AC61: 87 | AD61: 166 | AE61: 84 | AF61: 118 | AG61: 136 | DT61: 59 | DU61: 57 | DV61: 57 | DX61: 1 | EB61: 56 | ED61: 57 | EE61: (59)
A62: 58(55) | B62: Stefan Tollstam | C62: Dynapac Södra | D62: 94.36 | F62: 25 | G62: 2359 | I62: 0 | J62: 0 | K62: 0 | L62: 0 | M62: 0 | N62: 84 | O62: 110 | P62: 141 | Q62: 85 | R62: 97 | S62: 119 | T62: 87 | U62: 84 | V62: 43 | W62: 56 | X62: 114 | Y62: 117 | Z62: 152 | AA62: 101 | AB62: 108 | AC62: 118 | AD62: 111 | AE62: 81 | AF62: 55 | AG62: 68 | AH62: 101 | AI62: 110 | AJ62: 44 | AK62: 138 | AL62: 35 | DT62: 55 | DU62: 58 | DV62: 58 | DX62: 1 | EB62: 57 | ED62: 58 | EE62: (55)
A63: 59() | B63: Ann-Marie Larsson | C63: Tingsryd | D63: 92.5 | F63: 2 | G63: 185 | I63: 0 | J63: 0 | K63: 0 | L63: 0 | M63: 0 | N63: 48 | O63: 137 | DU63: 59 | DV63: 59 | DX63: 1 | EB63: 58 | ED63: 59 | EE63: ()
A64: 60(58) | B64: Thomas Dahl | C64: Växjö | D64: 92.34210526 | F64: 38 | G64: 3509 | I64: 0 | J64: 0 | K64: 0 | L64: 0 | M64: 0 | N64: 79 | O64: 140 | P64: 89 | Q64: 77 | R64: 50 | S64: 73 | T64: 89 | U64: 111 | V64: 107 | W64: 101 | X64: 59 | Y64: 36 | Z64: 88 | AA64: 76 | AB64: 64 | AC64: 68 | AD64: 90 | AE64: 76 | AF64: 92 | AG64: 142 | AH64: 64 | AI64: 128 | AJ64: 95 | AK64: 97 | AL64: 116 | AM64: 76 | AN64: 115 | AO64: 64 | AP64: 107 | AQ64: 140 | AR64: 92 | AS64: 94 | AT64: 144 | AU64: 103 | AV64: 76 | AW64: 118 | AX64: 80 | AY64: 93 | DT64: 58 | DU64: 60 | DV64: 60 | DX64: 1 | EB64: 59 | ED64: 60 | EE64: (58)
A65: 61(60) | B65: Kjell Rydh | C65: Korpen Nybro | D65: 90.72727273 | F65: 22 | G65: 1996 | I65: 0 | J65: 0 | K65: 0 | L65: 0 | M65: 0 | N65: 115 | O65: 42 | P65: 70 | Q65: 85 | R65: 74 | S65: 106 | T65: 34 | U65: 46 | V65: 108 | W65: 97 | X65: 82 | Y65: 64 | Z65: 83 | AA65: 148 | AB65: 133 | AC65: 94 | AD65: 121 | AE65: 109 | AF65: 105 | AG65: 93 | AH65: 82 | AI65: 105 | DT65: 60 | DU65: 61 | DV65: 61 | DX65: 1 | EB65: 60 | ED65: 61 | EE65: (60)
A66: 62(63) | B66: Martin Antic | C66: Värends Hsk | D66: 89.35483871 | F66: 31 | G66: 2770 | I66: 0 | J66: 0 | K66: 0 | L66: 0 | M66: 0 | N66: 101 | O66: 90 | P66: 73 | Q66: 65 | R66: 80 | S66: 68 | T66: 56 | U66: 75 | V66: 64 | W66: 82 | X66: 72 | Y66: 51 | Z66: 128 | AA66: 69 | AB66: 91 | AC66: 92 | AD66: 74 | AE66: 112 | AF66: 65 | AG66: 124 | AH66: 94 | AI66: 135 | AJ66: 109 | AK66: 98 | AL66: 111 | AM66: 84 | AN66: 117 | AO66: 64 | AP66: 131 | AQ66: 87 | AR66: 108 | DT66: 63 | DU66: 62 | DV66: 62 | DX66: 1 | EB66: 61 | ED66: 62 | EE66: (63)
A67: 63(67) | B67: Lennart Karlsson | C67: Tingsryd | D67: 89.05714286 | F67: 35 | G67: 3117 | I67: 0 | J67: 0 | K67: 0 | L67: 0 | M67: 0 | N67: 83 | O67: 95 | P67: 53 | Q67: 53 | R67: 174 | S67: 146 | T67: 43 | U67: 102 | V67: 41 | W67: 81 | X67: 80 | Y67: 70 | Z67: 89 | AA67: 71 | AB67: 117 | AC67: 77 | AD67: 74 | AE67: 108 | AF67: 94 | AG67: 44 | AH67: 73 | AI67: 62 | AJ67: 118 | AK67: 71 | AL67: 69 | AM67: 107 | AN67: 43 | AO67: 64 | AP67: 119 | AQ67: 75 | AR67: 192 | AS67: 108 | AT67: 142 | AU67: 94 | AV67: 85 | DT67: 67 | DU67: 63 | DV67: 63 | DX67: 1 | EB67: 62 | ED67: 63 | EE67: (67)
A68: 64(69) | B68: Clara Larsson | C68: Värends Hsk | D68: 88.77272727 | F68: 22 | G68: 1953 | I68: 0 | J68: 0 | K68: 0 | L68: 0 | M68: 0 | N68: 75 | O68: 75 | P68: 66 | Q68: 102 | R68: 99 | S68: 60 | T68: 122 | U68: 33 | V68: 47 | W68: 34 | X68: 122 | Y68: 82 | Z68: 48 | AA68: 58 | AB68: 118 | AC68: 151 | AD68: 68 | AE68: 88 | AF68: 100 | AG68: 174 | AH68: 131 | AI68: 100 | DT68: 69 | DU68: 64 | DV68: 64 | DX68: 1 | EB68: 64 | ED68: 64 | EE68: (69)
A69: =DU69&EE69 -> 65(61) | B69: Alf Svensson | C69: Korpen Åseda | D69: =IF(F69>0.5,(G69/F69),0) -> 87.07142857 | F69: =COUNT(N69:BO69) -> 14 | G69: =SUM(N69:BO69) -> 1219 | I69: =COUNTIF(BQ69:DR69,2) -> 0 | J69: =COUNTIF(BQ69:DR69,-2) -> 0 | K69: =COUNTIF(BQ69:DR69,1) -> 0 | L69: =COUNTIF(BQ69:DR69,-1) -> 0 | M69: =IF(F69>0,(I69+K69)/(F69),0) -> 0 | N69: 131 | O69: 120 | P69: 129 | Q69: 135 | R69: 110 | S69: 91 | T69: 38 | U69: 73 | V69: 50 | W69: 40 | X69: 70 | Y69: 81 | Z69: 77 | AA69: 74 | DT69: 61 | DU69: 65 | DV69: =IF(DX69=1,ROW(65:65),"-") -> 65 | DX69: 1 | EB69: 65 | ED69: =IF(DX69=1,DU69,IF(DX69="",DU69,"")) -> 65 | EE69: =IF(DX69=1,"("&DT69&")","("&DV69&")") -> (61)
A70: 66(64) | B70: Gilbert Pettersson | C70: Lanternan | D70: 86.5 | F70: 6 | G70: 519 | I70: 0 | J70: 0 | K70: 0 | L70: 0 | M70: 0 | N70: 68 | O70: 53 | P70: 50 | Q70: 137 | R70: 75 | S70: 136 | DT70: 64 | DU70: 66 | DV70: 66 | DX70: 1 | EB70: 66 | ED70: 66 | EE70: (64)
A71: 67(62) | B71: Marianne Karlsson | C71: Jämjö Hsc | D71: 84.5862069 | F71: 29 | G71: 2453 | I71: 0 | J71: 0 | K71: 0 | L71: 0 | M71: 0 | N71: 110 | O71: 65 | P71: 66 | Q71: 86 | R71: 91 | S71: 118 | T71: 86 | U71: 85 | V71: 119 | W71: 58 | X71: 86 | Y71: 100 | Z71: 83 | AA71: 92 | AB71: 99 | AC71: 77 | AD71: 75 | AE71: 86 | AF71: 74 | AG71: 103 | AH71: 103 | AI71: 76 | AJ71: 71 | AK71: 89 | AL71: 40 | AM71: 82 | AN71: 51 | AO71: 99 | AP71: 83 | DT71: 62 | DU71: 67 | DV71: 67 | DX71: 1 | EB71: 67 | ED71: 67 | EE71: (62)
A72: 68(68) | B72: Kent Vikström | C72: Växjö | D72: 83 | F72: 2 | G72: 166 | I72: 0 | J72: 0 | K72: 0 | L72: 0 | M72: 0 | N72: 102 | O72: 64 | DT72: 68 | DU72: 68 | DV72: 68 | DX72: 1 | EB72: 68 | ED72: 68 | EE72: (68)
A73: 69(66) | B73: Lars-Åke Karlsson | C73: Jämjö Hsc | D73: 82.96551724 | F73: 29 | G73: 2406 | I73: 0 | J73: 0 | K73: 0 | L73: 0 | M73: 0 | N73: 89 | O73: 70 | P73: 100 | Q73: 53 | R73: 49 | S73: 91 | T73: 81 | U73: 59 | V73: 95 | W73: 106 | X73: 60 | Y73: 63 | Z73: 114 | AA73: 125 | AB73: 46 | AC73: 124 | AD73: 92 | AE73: 86 | AF73: 72 | AG73: 64 | AH73: 62 | AI73: 100 | AJ73: 118 | AK73: 85 | AL73: 50 | AM73: 86 | AN73: 98 | AO73: 63 | AP73: 105 | DT73: 66 | DU73: 69 | DV73: 69 | DX73: 1 | EB73: 69 | ED73: 69 | EE73: (66)
A74: 70(65) | B74: Olle Nilsson | C74: Tingsryd | D74: 82.3125 | F74: 32 | G74: 2634 | I74: 0 | J74: 0 | K74: 0 | L74: 0 | M74: 0 | N74: 65 | O74: 64 | P74: 95 | Q74: 68 | R74: 98 | S74: 118 | T74: 92 | U74: 91 | V74: 72 | W74: 99 | X74: 84 | Y74: 89 | Z74: 47 | AA74: 128 | AB74: 105 | AC74: 109 | AD74: 81 | AE74: 44 | AF74: 161 | AG74: 71 | AH74: 82 | AI74: 61 | AJ74: 46 | AK74: 68 | AL74: 111 | AM74: 70 | AN74: 91 | AO74: 54 | AP74: 105 | AQ74: 64 | AR74: 43 | AS74: 58 | DT74: 65 | DU74: 70 | DV74: 70 | DX74: 1 | EB74: 70 | ED74: 70 | EE74: (65)
A75: 71(70) | B75: Tommy Karlsson | C75: Korpen Nybro | D75: 81.2 | F75: 5 | G75: 406 | I75: 0 | J75: 0 | K75: 0 | L75: 0 | M75: 0 | N75: 86 | O75: 85 | P75: 47 | Q75: 108 | R75: 80 | DT75: 70 | DU75: =IF(AND(D75=D74,D75=D73,D75=D72,D75=D71),ROW(67:67),IF(AND(D75=D74,D75=D73,D75=D72),ROW(68:68),IF(AND(D75=D74,D75=D73),ROW(69:69),IF(D75=D74,ROW(70:70),IF(D75>1,ROW(71:71),"-"))))) -> 71 | DV75: 71 | DX75: 1 | EB75: 114 | ED75: 71 | EE75: (70)
A76: 72(74) | B76: Maire Johansson | C76: Växjö | D76: 78.14814815 | F76: 27 | G76: 2110 | I76: 0 | J76: 0 | K76: 0 | L76: 0 | M76: 0 | N76: 44 | O76: 42 | P76: 105 | Q76: 116 | R76: 88 | S76: 72 | T76: 66 | U76: 66 | V76: 69 | W76: 91 | X76: 49 | Y76: 67 | Z76: 36 | AA76: 77 | AB76: 49 | AC76: 125 | AD76: 95 | AE76: 86 | AF76: 89 | AG76: 93 | AH76: 83 | AI76: 71 | AJ76: 126 | AK76: 75 | AL76: 57 | AM76: 99 | AN76: 74 | DT76: 74 | DU76: 72 | DV76: 72 | DX76: 1 | EB76: 71 | ED76: 72 | EE76: (74)
A77: 73(72) | B77: Kerstin Petersen | C77: Växjö | D77: 77.25 | F77: 4 | G77: 309 | I77: 0 | J77: 0 | K77: 0 | L77: 0 | M77: 0 | N77: 37 | O77: 93 | P77: 94 | Q77: 85 | DT77: 72 | DU77: 73 | DV77: 73 | DX77: 1 | EB77: 111 | ED77: 73 | EE77: (72)
A78: 74(71) | B78: Alf Johansson | C78: Värends Hsk | D78: 77 | F78: 28 | G78: 2156 | I78: 0 | J78: 0 | K78: 0 | L78: 0 | M78: 0 | N78: 106 | O78: 54 | P78: 74 | Q78: 62 | R78: 99 | S78: 79 | T78: 112 | U78: 111 | V78: 110 | W78: 65 | X78: 61 | Y78: 74 | Z78: 87 | AA78: 48 | AB78: 67 | AC78: 51 | AD78: 95 | AE78: 97 | AF78: 47 | AG78: 34 | AH78: 47 | AI78: 82 | AJ78: 89 | AK78: 99 | AL78: 85 | AM78: 72 | AN78: 76 | AO78: 73 | DT78: 71 | DU78: 74 | DV78: 74 | DX78: 1 | EB78: 72 | ED78: 74 | EE78: (71)
A79: 75(73) | B79: Ronnie Pettersson | C79: Tingsryd | D79: 76.81818182 | F79: 11 | G79: 845 | I79: 0 | J79: 0 | K79: 0 | L79: 0 | M79: 0 | N79: 68 | O79: 50 | P79: 89 | Q79: 91 | R79: 44 | S79: 106 | T79: 116 | U79: 77 | V79: 75 | W79: 71 | X79: 58 | DT79: 73 | DU79: 75 | DV79: 75 | DX79: 1 | EB79: 73 | ED79: 75 | EE79: (73)
A80: 76(76) | B80: Kerstin Svensson | C80: Växjö | D80: 74.07142857 | F80: 28 | G80: 2074 | I80: 0 | J80: 0 | K80: 0 | L80: 0 | M80: 0 | N80: 20 | O80: 88 | P80: 32 | Q80: 65 | R80: 107 | S80: 92 | T80: 47 | U80: 100 | V80: 57 | W80: 51 | X80: 56 | Y80: 94 | Z80: 85 | AA80: 120 | AB80: 71 | AC80: 16 | AD80: 50 | AE80: 99 | AF80: 88 | AG80: 81 | AH80: 76 | AI80: 88 | AJ80: 74 | AK80: 68 | AL80: 87 | AM80: 74 | AN80: 115 | AO80: 73 | DT80: 76 | DU80: 76 | DV80: 76 | DX80: 1 | EB80: 74 | ED80: 76 | EE80: (76)
A81: 77(75) | B81: Gunnar Lundbeck | C81: Tingsryd | D81: 73.32 | F81: 25 | G81: 1833 | I81: 0 | J81: 0 | K81: 0 | L81: 0 | M81: 0 | N81: 55 | O81: 95 | P81: 82 | Q81: 98 | R81: 58 | S81: 74 | T81: 41 | U81: 44 | V81: 113 | W81: 62 | X81: 99 | Y81: 104 | Z81: 81 | AA81: 98 | AB81: 75 | AC81: 99 | AD81: 51 | AE81: 55 | AF81: 73 | AG81: 63 | AH81: 92 | AI81: 52 | AJ81: 63 | AK81: 51 | AL81: 55 | DT81: 75 | DU81: 77 | DV81: 77 | DX81: 1 | EB81: 75 | ED81: 77 | EE81: (75)
A82: 78(77) | B82: Madelene Bergendorf | C82: Tingzås | D82: 69.46666667 | F82: 15 | G82: 1042 | I82: 0 | J82: 0 | K82: 0 | L82: 0 | M82: 0 | N82: 106 | O82: 97 | P82: 103 | Q82: 104 | R82: 24 | S82: 66 | T82: 59 | U82: 37 | V82: 47 | W82: 55 | X82: 63 | Y82: 63 | Z82: 57 | AA82: 88 | AB82: 73 | DT82: 77 | DU82: 78 | DV82: 78 | DX82: 1 | EB82: 76 | ED82: 78 | EE82: (77)
A83: 79(85) | B83: Roland Sjöstrand | C83: Tingzås | D83: 68.53846154 | F83: 26 | G83: 1782 | I83: 0 | J83: 0 | K83: 0 | L83: 0 | M83: 0 | N83: 59 | O83: 61 | P83: 53 | Q83: 112 | R83: 91 | S83: 91 | T83: 66 | U83: 38 | V83: 72 | W83: 79 | X83: 58 | Y83: 30 | Z83: 43 | AA83: 37 | AB83: 47 | AC83: 73 | AD83: 87 | AE83: 94 | AF83: 56 | AG83: 34 | AH83: 34 | AI83: 72 | AJ83: 115 | AK83: 112 | AL83: 111 | AM83: 57 | DT83: 85 | DU83: 79 | DV83: 79 | DX83: 1 | EB83: 77 | ED83: 79 | EE83: (85)
A84: 80(78) | B84: Gunnel Karlsson | C84: Tingzås | D84: 68.4 | F84: 15 | G84: 1026 | I84: 0 | J84: 0 | K84: 0 | L84: 0 | M84: 0 | N84: 125 | O84: 92 | P84: 109 | Q84: 44 | R84: 65 | S84: 72 | T84: 74 | U84: 17 | V84: 13 | W84: 61 | X84: 93 | Y84: 40 | Z84: 101 | AA84: 65 | AB84: 55 | DT84: 78 | DU84: 80 | DV84: 80 | DX84: 1 | EB84: 78 | ED84: 80 | EE84: (78)
A85: 81(79) | B85: Maria Andersson | C85: Värends Hsk | D85: 66.5 | F85: 4 | G85: 266 | I85: 0 | J85: 0 | K85: 0 | L85: 0 | M85: 0 | N85: 54 | O85: 76 | P85: 58 | Q85: 78 | DT85: 79 | DU85: 81 | DV85: 81 | DX85: 1 | EB85: 79 | ED85: 81 | EE85: (79)
A86: 82(80) | B86: Gunilla Andersson | C86: Tingzås | D86: 66.07692308 | F86: 13 | G86: 859 | I86: 0 | J86: 0 | K86: 0 | L86: 0 | M86: 0 | N86: 45 | O86: 80 | P86: 102 | Q86: 138 | R86: 85 | S86: 87 | T86: 63 | U86: 41 | V86: 42 | W86: 17 | X86: 44 | Y86: 54 | Z86: 61 | DT86: 80 | DU86: 82 | DV86: 82 | DX86: 1 | EB86: 80 | ED86: 82 | EE86: (80)
A87: 83(81) | B87: Jonas Klarström | C87: Värends Hsk | D87: 65.82352941 | F87: 17 | G87: 1119 | I87: 0 | J87: 0 | K87: 0 | L87: 0 | M87: 0 | N87: 85 | O87: 81 | P87: 132 | Q87: 80 | R87: 17 | S87: 42 | T87: 92 | U87: 65 | V87: 58 | W87: 81 | X87: 34 | Y87: 62 | Z87: 30 | AA87: 71 | AB87: 69 | AC87: 58 | AD87: 62 | DT87: 81 | DU87: 83 | DV87: 83 | DX87: 1 | EB87: 81 | ED87: 83 | EE87: (81)
A88: 84(83) | B88: Ulrika Rydell | C88: Värends Hsk | D88: 64.69230769 | F88: 13 | G88: 841 | I88: 0 | J88: 0 | K88: 0 | L88: 0 | M88: 0 | N88: 41 | O88: 41 | P88: 71 | Q88: 64 | R88: 127 | S88: 51 | T88: 86 | U88: 118 | V88: 34 | W88: 84 | X88: 14 | Y88: 62 | Z88: 48 | DT88: 83 | DU88: 84 | DV88: 84 | DX88: 1 | EB88: 82 | ED88: 84 | EE88: (83)
A89: 85(86) | B89: Michael Karlsson | C89: Tingzås | D89: 63.7037037 | F89: 27 | G89: 1720 | I89: 0 | J89: 0 | K89: 0 | L89: 0 | M89: 0 | N89: 45 | O89: 138 | P89: 82 | Q89: 77 | R89: 103 | S89: 54 | T89: 71 | U89: 97 | V89: 55 | W89: 37 | X89: 78 | Y89: 51 | Z89: 34 | AA89: 37 | AB89: 54 | AC89: 29 | AD89: 45 | AE89: 36 | AF89: 63 | AG89: 40 | AH89: 40 | AI89: 92 | AJ89: 96 | AK89: 78 | AL89: 56 | AM89: 54 | AN89: 78 | DT89: 86 | DU89: 85 | DV89: 85 | DX89: 1 | EB89: 83 | ED89: 85 | EE89: (86)
A90: 86(84) | B90: Lena Johansson | C90: Tingsryd | D90: 63.4 | F90: 5 | G90: 317 | I90: 0 | J90: 0 | K90: 0 | L90: 0 | M90: 0 | N90: 46 | O90: 54 | P90: 78 | Q90: 41 | R90: 98 | DT90: 84 | DU90: 86 | DV90: 86 | DX90: 1 | EB90: 84 | ED90: 86 | EE90: (84)
A91: 87(82) | B91: Allan Persson | C91: Tingsryd | D91: 61.54545455 | F91: 11 | G91: 677 | I91: 0 | J91: 0 | K91: 0 | L91: 0 | M91: 0 | N91: 65 | O91: 74 | P91: 64 | Q91: 71 | R91: 34 | S91: 94 | T91: 43 | U91: 78 | V91: 68 | W91: 66 | X91: 20 | DT91: 82 | DU91: 87 | DV91: 87 | DX91: 1 | EB91: 85 | ED91: 87 | EE91: (82)
A92: 88(87) | B92: Ingegerd Sjöstrand | C92: Tingzås | D92: 55 | F92: 13 | G92: 715 | I92: 0 | J92: 0 | K92: 0 | L92: 0 | M92: 0 | N92: 62 | O92: 59 | P92: 69 | Q92: 72 | R92: 58 | S92: 85 | T92: 27 | U92: 65 | V92: 48 | W92: 48 | X92: 31 | Y92: 43 | Z92: 48 | DT92: 87 | DU92: 88 | DV92: 88 | DX92: 1 | EB92: 86 | ED92: 88 | EE92: (87)
A93: 89(88) | B93: Nathalie Jonasson | C93: Värends Hsk | D93: 50 | F93: 5 | G93: 250 | I93: 0 | J93: 0 | K93: 0 | L93: 0 | M93: 0 | N93: 13 | O93: 33 | P93: 92 | Q93: 44 | R93: 68 | DT93: 88 | DU93: 89 | DV93: 89 | DX93: 1 | EB93: 87 | ED93: 89 | EE93: (88)
A94: 89(88) | B94: Lars-Erik Gren | C94: Värends Hsk | D94: 50 | F94: 5 | G94: 250 | I94: 0 | J94: 0 | K94: 0 | L94: 0 | M94: 0 | N94: 37 | O94: 37 | P94: 75 | Q94: 58 | R94: 43 | DT94: 88 | DU94: 89 | DV94: 90 | DX94: 1 | EB94: 88 | ED94: 89 | EE94: (88)
A95: 91(93) | B95: Anders Karlsson | C95: Värends Hsk | D95: 49.6 | F95: 10 | G95: 496 | I95: 0 | J95: 0 | K95: 0 | L95: 0 | M95: 0 | N95: 56 | O95: 7 | P95: 20 | Q95: 71 | R95: 53 | S95: 22 | T95: 50 | U95: 98 | V95: 65 | W95: 54 | DT95: 93 | DU95: 91 | DV95: 91 | DX95: 1 | EB95: 89 | ED95: 91 | EE95: (93)
A96: 92(90) | B96: Susanne Andersson | C96: Värends Hsk | D96: 48.2 | F96: 5 | G96: 241 | I96: 0 | J96: 0 | K96: 0 | L96: 0 | M96: 0 | N96: 63 | O96: 44 | P96: 50 | Q96: 41 | R96: 43 | DT96: 90 | DU96: 92 | DV96: 92 | DX96: 1 | EB96: 112 | ED96: 92 | EE96: (90)
A97: 93(91) | B97: Solveig Brincner | C97: Värends Hsk | D97: 44.83333333 | F97: 6 | G97: 269 | I97: 0 | J97: 0 | K97: 0 | L97: 0 | M97: 0 | N97: 67 | O97: 79 | P97: 10 | Q97: 28 | R97: 44 | S97: 41 | DT97: 91 | DU97: 93 | DV97: 93 | DX97: 1 | EB97: 90 | ED97: 93 | EE97: (91)
A98: 94(92) | B98: Göran Brincner | C98: Värends Hsk | D98: 43 | F98: 6 | G98: 258 | I98: 0 | J98: 0 | K98: 0 | L98: 0 | M98: 0 | N98: 68 | O98: 27 | P98: 28 | Q98: 56 | R98: 62 | S98: 17 | DT98: 92 | DU98: 94 | DV98: 94 | DX98: 1 | EB98: 91 | ED98: 94 | EE98: (92)
A99: -(-) | D99: 0 | F99: 0 | G99: 0 | I99: 0 | J99: 0 | K99: 0 | L99: 0 | M99: 0 | DT99: - | DU99: - | DV99: 95 | DX99: 1 | EB99: 92 | ED99: - | EE99: (-)
A100: 95(95) | D100: 0 | F100: 0 | G100: 0 | I100: 0 | J100: 0 | K100: 0 | L100: 0 | M100: 0 | DT100: 95 | DU100: 95 | DV100: 96 | DX100: 1 | EB100: 63 | ED100: 95 | EE100: (95)
A101: 95(95) | D101: =IF(F101>0.5,(G101/F101),0) -> 0 | F101: =COUNT(N101:BO101) -> 0 | G101: =SUM(N101:BO101) -> 0 | I101: =COUNTIF(BQ101:DR101,2) -> 0 | J101: =COUNTIF(BQ101:DR101,-2) -> 0 | K101: =COUNTIF(BQ101:DR101,1) -> 0 | L101: =COUNTIF(BQ101:DR101,-1) -> 0 | M101: =IF(F101>0,(I101+K101)/(F101),0) -> 0 | DT101: 95 | DU101: 95 | DV101: =IF(DX101=1,ROW(97:97),"-") -> 97 | DX101: 1 | EB101: 93 | ED101: =IF(DX101=1,DU101,IF(DX101="",DU101,"")) -> 95 | EE101: =IF(DX101=1,"("&DT101&")","("&DV101&")") -> (95)
A102: 95(95) | D102: 0 | F102: 0 | G102: 0 | I102: 0 | J102: 0 | K102: 0 | L102: 0 | M102: 0 | DT102: 95 | DU102: 95 | DV102: 98 | DX102: 1 | EB102: 94 | ED102: 95 | EE102: (95)
A103: 95(95) | D103: 0 | F103: 0 | G103: 0 | I103: 0 | J103: 0 | K103: 0 | L103: 0 | M103: 0 | DT103: 95 | DU103: 95 | DV103: 99 | DX103: 1 | EB103: 95 | ED103: 95 | EE103: (95)
A104: 96(96) | D104: 0 | F104: 0 | G104: 0 | I104: 0 | J104: 0 | K104: 0 | L104: 0 | M104: 0 | DT104: 96 | DU104: 96 | DV104: 100 | DX104: 1 | EB104: 96 | ED104: 96 | EE104: (96)
A105: 97(97) | D105: 0 | F105: 0 | G105: 0 | I105: 0 | J105: 0 | K105: 0 | L105: 0 | M105: 0 | DT105: 97 | DU105: 97 | DV105: 101 | DX105: 1 | EB105: 97 | ED105: 97 | EE105: (97)
A106: 98(98) | D106: 0 | F106: 0 | G106: 0 | I106: 0 | J106: 0 | K106: 0 | L106: 0 | M106: 0 | DT106: 98 | DU106: 98 | DV106: 102 | DX106: 1 | EB106: 98 | ED106: 98 | EE106: (98)
A107: 99(99) | D107: 0 | F107: 0 | G107: 0 | I107: 0 | J107: 0 | K107: 0 | L107: 0 | M107: 0 | DT107: 99 | DU107: =IF(AND(D107=D106,D107=D105,D107=D104,D107=D103),ROW(99:99),IF(AND(D107=D106,D107=D105,D107=D104),ROW(100:100),IF(AND(D107=D106,D107=D105),ROW(101:101),IF(D107=D106,ROW(102:102),IF(D107>1,ROW(103:103),"-"))))) -> 99 | DV107: 103 | DX107: 1 | EB107: 99 | ED107: 99 | EE107: (99)
A108: 100(100) | D108: 0 | F108: 0 | G108: 0 | I108: 0 | J108: 0 | K108: 0 | L108: 0 | M108: 0 | DT108: 100 | DU108: 100 | DV108: 104 | DX108: 1 | EB108: 100 | ED108: 100 | EE108: (100)
A109: 101(101) | D109: 0 | F109: 0 | G109: 0 | I109: 0 | J109: 0 | K109: 0 | L109: 0 | M109: 0 | DT109: 101 | DU109: 101 | DV109: 105 | DX109: 1 | EB109: 101 | ED109: 101 | EE109: (101)
A110: 102(102) | D110: 0 | F110: 0 | G110: 0 | I110: 0 | J110: 0 | K110: 0 | L110: 0 | M110: 0 | DT110: 102 | DU110: 102 | DV110: 106 | DX110: 1 | EB110: 102 | ED110: 102 | EE110: (102)
A111: 103(103) | D111: 0 | F111: 0 | G111: 0 | I111: 0 | J111: 0 | K111: 0 | L111: 0 | M111: 0 | DT111: 103 | DU111: 103 | DV111: 107 | DX111: 1 | EB111: 110 | ED111: 103 | EE111: (103)
A112: 104(104) | D112: 0 | F112: 0 | G112: 0 | I112: 0 | J112: 0 | K112: 0 | L112: 0 | M112: 0 | DT112: 104 | DU112: 104 | DV112: 108 | DX112: 1 | EB112: 103 | ED112: 104 | EE112: (104)
A113: 105(105) | D113: 0 | F113: 0 | G113: 0 | I113: 0 | J113: 0 | K113: 0 | L113: 0 | M113: 0 | DT113: 105 | DU113: 105 | DV113: 109 | DX113: 1 | EB113: 104 | ED113: 105 | EE113: (105)
A114: 106(106) | D114: 0 | F114: 0 | G114: 0 | I114: 0 | J114: 0 | K114: 0 | L114: 0 | M114: 0 | DT114: 106 | DU114: 106 | DV114: 110 | DX114: 1 | EB114: 105 | ED114: 106 | EE114: (106)
A115: 107(107) | D115: 0 | F115: 0 | G115: 0 | I115: 0 | J115: 0 | K115: 0 | L115: 0 | M115: 0 | DT115: 107 | DU115: 107 | DV115: 111 | DX115: 1 | EB115: 106 | ED115: 107 | EE115: (107)
A116: 108(108) | D116: 0 | F116: 0 | G116: 0 | I116: 0 | J116: 0 | K116: 0 | L116: 0 | M116: 0 | DT116: 108 | DU116: 108 | DV116: 112 | DX116: 1 | EB116: 107 | ED116: 108 | EE116: (108)
A117: 109(109) | D117: 0 | F117: 0 | G117: 0 | I117: 0 | J117: 0 | K117: 0 | L117: 0 | M117: 0 | DT117: 109 | DU117: 109 | DV117: 113 | DX117: 1 | EB117: 108 | ED117: 109 | EE117: (109)
A118: 110(110) | D118: 0 | F118: 0 | G118: 0 | I118: 0 | J118: 0 | K118: 0 | L118: 0 | M118: 0 | DT118: 110 | DU118: 110 | DV118: 114 | DX118: 1 | EB118: 109 | ED118: 110 | EE118: (110)
A119: 111(111) | D119: 0 | F119: 0 | G119: 0 | I119: 0 | J119: 0 | K119: 0 | L119: 0 | M119: 0 | DT119: 111 | DU119: 111 | DV119: 115 | DX119: 1 | EB119: 112 | ED119: 111 | EE119: (111)
A120: 112(112) | D120: 0 | F120: 0 | G120: 0 | I120: 0 | J120: 0 | K120: 0 | L120: 0 | M120: 0 | DT120: 112 | DU120: 112 | DV120: 116 | DX120: 1 | EB120: 110 | ED120: 112 | EE120: (112)
A121: =DU121&EE121 -> 113(113) | D121: 0 | F121: 0 | G121: 0 | I121: 0 | J121: 0 | K121: 0 | L121: 0 | M121: 0 | DT121: 113 | DU121: =IF(AND(D121=D120,D121=D119,D121=D118,D121=D117),ROW(113:113),IF(AND(D121=D120,D121=D119,D121=D118),ROW(114:114),IF(AND(D121=D120,D121=D119),ROW(115:115),IF(D121=D120,ROW(116:116),IF(D121>1,ROW(117:117),"-"))))) -> 113 | DV121: =IF(DX121=1,ROW(117:117),"-") -> 117 | DX121: 1 | EB121: 111 | ED121: =IF(DX121=1,DU121,IF(DX121="",DU121,"")) -> 113 | EE121: =IF(DX121=1,"("&DT121&")","("&DV121&")") -> (113)
A122: =DU122&EE122 -> 114(114) | D122: 0 | F122: 0 | G122: 0 | I122: 0 | J122: 0 | K122: 0 | L122: 0 | M122: 0 | DT122: 114 | DU122: =IF(AND(D122=D121,D122=D120,D122=D119,D122=D118),ROW(114:114),IF(AND(D122=D121,D122=D120,D122=D119),ROW(115:115),IF(AND(D122=D121,D122=D120),ROW(116:116),IF(D122=D121,ROW(117:117),IF(D122>1,ROW(118:118),"-"))))) -> 114 | DV122: =IF(DX122=1,ROW(118:118),"-") -> 118 | DX122: 1 | EB122: 113 | ED122: =IF(DX122=1,DU122,IF(DX122="",DU122,"")) -> 114 | EE122: =IF(DX122=1,"("&DT122&")","("&DV122&")") -> (114)
A123: =DU123&EE123 -> 115(115) | D123: 0 | F123: 0 | G123: 0 | I123: 0 | J123: 0 | K123: 0 | L123: 0 | M123: 0 | DT123: 115 | DU123: =IF(AND(D123=D122,D123=D121,D123=D120,D123=D119),ROW(115:115),IF(AND(D123=D122,D123=D121,D123=D120),ROW(116:116),IF(AND(D123=D122,D123=D121),ROW(117:117),IF(D123=D122,ROW(118:118),IF(D123>1,ROW(119:119),"-"))))) -> 115 | DV123: =IF(DX123=1,ROW(119:119),"-") -> 119 | DX123: 1 | EB123: 113 | ED123: =IF(DX123=1,DU123,IF(DX123="",DU123,"")) -> 115 | EE123: =IF(DX123=1,"("&DT123&")","("&DV123&")") -> (115)
